{"text_format":"1","workbook":"xlsx","n_sheets":3,"sheets":["HAROK1","HAROK2","harok3"],"not_rendered":{"charts":0,"images":0,"macros":1,"external_links":0,"defined_names":2,"comments":0,"pivot_tables":0},"unopened":[],"bounds":{"document_bytes":16777216,"sheet_cells":100000,"rows_first":2000,"rows_last":500,"rows_between":2000,"halvings":0,"cell_chars":16384,"cell_head_chars":4096},"cells_cut":0,"cells_raw":0,"read":"whole","date_system":"1900"}

{"sheet":"HAROK1","index":0,"n_rows":54,"n_cols":33,"rows_kept":54,"cut":false,"hidden":false,"merged":[]}
["TYP1","Stĺpec2","Stĺpec3","Stĺpec4","Stĺpec5","Stĺpec6","Stĺpec7","Stĺpec8","Stĺpec9","Stĺpec10","TYP","Stĺpec12","Stĺpec13","Stĺpec14","FLT",null,null,null,null,null,null,null,null,null,null,null,{"$f":"A1","v":"TYP1"}]
[272909,"COMLINE",null,"EOF266",null,null,"niečo",null,null,null,15995,"SKODA","CITIGO","1.0",{"$f":"SUBTOTAL(104,tblFilter[[#This Row],[TYP1]])=tblFilter[[#This Row],[TYP1]]","v":true},null,null,null,null,null,null,{"$f":"CONCATENATE(F2,\" \",B2,\" \",D2)","v":" COMLINE EOF266"},null,null,null,null,{"$f":"A2","v":272909},null,{"$f":"V2","v":" COMLINE EOF266"},{"$f":"H2","v":0},{"$f":"J2","v":0},{"$f":"B2","v":"COMLINE"},{"$f":"G2","v":"niečo"}]
[272909,"COMLINE",null,"EOF266",null,null,"iné",null,null,null,58802,"SKODA","CITIGO","1.0 CNG",{"$f":"SUBTOTAL(104,tblFilter[[#This Row],[TYP1]])=tblFilter[[#This Row],[TYP1]]","v":true},null,null,null,null,null,null," COMLINE EOF266",null,null,null,null,{"$f":"A3","v":272909},null,{"$f":"V3","v":" COMLINE EOF266"},{"$f":"H3","v":0},{"$f":"J3","v":0},{"$f":"B3","v":"COMLINE"},{"$f":"G3","v":"iné"}]
[272909,"COMLINE",null,"EOF266",null,null,"niečo",null,null,null,15989,"SKODA","CITIGO","1.0",{"$f":"SUBTOTAL(104,tblFilter[[#This Row],[TYP1]])=tblFilter[[#This Row],[TYP1]]","v":true},null,null,null,null,null,null," COMLINE EOF266",null,null,null,null,272909,null," COMLINE EOF266",0,0,"COMLINE","niečo"]
[272909,"COMLINE",null,"EOF266",null,null,"niečo",null,null,null,58758,"SKODA","OCTAVIA (5E3)","1.2 TSI",{"$f":"SUBTOTAL(104,tblFilter[[#This Row],[TYP1]])=tblFilter[[#This Row],[TYP1]]","v":true},null,null,null,null,null,null," COMLINE EOF266",null,null,null,null,272909,null," COMLINE EOF266",0,0,"COMLINE","niečo"]
[272909,"COMLINE",null,"EOF266",null,null,"niečo",null,null,null,58750,"SKODA","OCTAVIA (5E3)","1.4 TSI",{"$f":"SUBTOTAL(104,tblFilter[[#This Row],[TYP1]])=tblFilter[[#This Row],[TYP1]]","v":true},null,null,null,null,null,null," COMLINE EOF266",null,null,null,null,272909,null," COMLINE EOF266",0,0,"COMLINE","niečo"]
[272909,"COMLINE",null,"EOF266",null,null,"niečo",null,null,null,58757,"SKODA","OCTAVIA (5E3)","1.2 TSI",{"$f":"SUBTOTAL(104,tblFilter[[#This Row],[TYP1]])=tblFilter[[#This Row],[TYP1]]","v":true},null,null,null,null,null,null," COMLINE EOF266",null,null,null,null,272909,null," COMLINE EOF266",0,0,"COMLINE","niečo"]
[272909,"COMLINE",null,"EOF266",null,null,"niečo",null,null,null,58763,"SKODA","OCTAVIA Combi (5E5)","1.2 TSI",{"$f":"SUBTOTAL(104,tblFilter[[#This Row],[TYP1]])=tblFilter[[#This Row],[TYP1]]","v":true},null,null,null,null,null,null," COMLINE EOF266",null,null,null,null,272909,null," COMLINE EOF266",0,0,"COMLINE","niečo"]
[272909,"COMLINE",null,"EOF266",null,null,"niečo",null,null,null,58764,"SKODA","OCTAVIA Combi (5E5)","1.4 TSI",{"$f":"SUBTOTAL(104,tblFilter[[#This Row],[TYP1]])=tblFilter[[#This Row],[TYP1]]","v":true},null,null,null,null,null,null," COMLINE EOF266",null,null,null,null,272909,null," COMLINE EOF266",0,0,"COMLINE","niečo"]
[272909,"COMLINE",null,"EOF266",null,null,"niečo",null,null,null,58762,"SKODA","OCTAVIA Combi (5E5)","1.2 TSI",{"$f":"SUBTOTAL(104,tblFilter[[#This Row],[TYP1]])=tblFilter[[#This Row],[TYP1]]","v":true},null,null,null,null,null,null," COMLINE EOF266",null,null,null,null,272909,null," COMLINE EOF266",0,0,"COMLINE","niečo"]
[3919289,"COMLINE",null,"EOF036",null,null,null,null,null,null,15586,"SKODA","FABIA (6Y2)","2.0",{"$f":"SUBTOTAL(104,tblFilter[[#This Row],[TYP1]])=tblFilter[[#This Row],[TYP1]]","v":false},null,null,null,null,null,null," COMLINE EOF036",null,null,null,null,3919289,null," COMLINE EOF036",0,0,"COMLINE",0]
[3919289,"COMLINE",null,"EOF036",null,null,null,null,null,null,15585,"SKODA","FABIA Combi (6Y5)","2.0",{"$f":"SUBTOTAL(104,tblFilter[[#This Row],[TYP1]])=tblFilter[[#This Row],[TYP1]]","v":false},null,null,null,null,null,null," COMLINE EOF036",null,null,null,null,3919289,null," COMLINE EOF036",0,0,"COMLINE",0]
[3919289,"COMLINE",null,"EOF036",null,null,null,null,null,null,16290,"SKODA","FABIA limuzina (6Y3)","2.0",{"$f":"SUBTOTAL(104,tblFilter[[#This Row],[TYP1]])=tblFilter[[#This Row],[TYP1]]","v":false},null,null,null,null,null,null," COMLINE EOF036",null,null,null,null,3919289,null," COMLINE EOF036",0,0,"COMLINE",0]
[3919289,"COMLINE",null,"EOF036",null,null,null,null,null,null,11346,"SKODA","OCTAVIA (1U2)","1.8 T",{"$f":"SUBTOTAL(104,tblFilter[[#This Row],[TYP1]])=tblFilter[[#This Row],[TYP1]]","v":false},null,null,null,null,null,null," COMLINE EOF036",null,null,null,null,3919289,null," COMLINE EOF036",0,0,"COMLINE",0]
[3919289,"COMLINE",null,"EOF036",null,null,null,null,null,null,16086,"SKODA","OCTAVIA (1U2)","1.8 T 4x4",{"$f":"SUBTOTAL(104,tblFilter[[#This Row],[TYP1]])=tblFilter[[#This Row],[TYP1]]","v":false},null,null,null,null,null,null," COMLINE EOF036",null,null,null,null,3919289,null," COMLINE EOF036",0,0,"COMLINE",0]
[3919289,"COMLINE",null,"EOF036",null,null,null,null,null,null,13085,"SKODA","OCTAVIA (1U2)","2.0",{"$f":"SUBTOTAL(104,tblFilter[[#This Row],[TYP1]])=tblFilter[[#This Row],[TYP1]]","v":false},null,null,null,null,null,null," COMLINE EOF036",null,null,null,null,3919289,null," COMLINE EOF036",0,0,"COMLINE",0]
[3919289,"COMLINE",null,"EOF036",null,null,null,null,null,null,7908,"SKODA","OCTAVIA (1U2)",43313,{"$f":"SUBTOTAL(104,tblFilter[[#This Row],[TYP1]])=tblFilter[[#This Row],[TYP1]]","v":false},null,null,null,null,null,null," COMLINE EOF036",null,null,null,null,3919289,null," COMLINE EOF036",0,0,"COMLINE",0]
[3919289,"COMLINE",null,"EOF036",null,null,null,null,null,null,8009,"SKODA","OCTAVIA (1U2)",43252,{"$f":"SUBTOTAL(104,tblFilter[[#This Row],[TYP1]])=tblFilter[[#This Row],[TYP1]]","v":false},null,null,null,null,null,null," COMLINE EOF036",null,null,null,null,3919289,null," COMLINE EOF036",0,0,"COMLINE",0]
[3919289,"COMLINE",null,"EOF036",null,null,null,null,null,null,8009,"SKODA","OCTAVIA (1U2)",43252,{"$f":"SUBTOTAL(104,tblFilter[[#This Row],[TYP1]])=tblFilter[[#This Row],[TYP1]]","v":false},null,null,null,null,null,null," COMLINE EOF036",null,null,null,null,3919289,null," COMLINE EOF036",0,0,"COMLINE",0]
[3919289,"COMLINE",null,"EOF036",null,null,null,null,null,null,15910,"SKODA","OCTAVIA (1U2)",43252,{"$f":"SUBTOTAL(104,tblFilter[[#This Row],[TYP1]])=tblFilter[[#This Row],[TYP1]]","v":false},null,null,null,null,null,null," COMLINE EOF036",null,null,null,null,3919289,null," COMLINE EOF036",0,0,"COMLINE",0]
[3919289,"COMLINE",null,"EOF036",null,null,null,null,null,null,15910,"SKODA","OCTAVIA (1U2)",43252,{"$f":"SUBTOTAL(104,tblFilter[[#This Row],[TYP1]])=tblFilter[[#This Row],[TYP1]]","v":false},null,null,null,null,null,null," COMLINE EOF036",null,null,null,null,3919289,null," COMLINE EOF036",0,0,"COMLINE",0]
[3919289,"COMLINE",null,"EOF036",null,null,null,null,null,null,15293,"SKODA","OCTAVIA (1U2)","RS 1.8 T",{"$f":"SUBTOTAL(104,tblFilter[[#This Row],[TYP1]])=tblFilter[[#This Row],[TYP1]]","v":false},null,null,null,null,null,null," COMLINE EOF036",null,null,null,null,3919289,null," COMLINE EOF036",0,0,"COMLINE",0]
[3919289,"COMLINE",null,"EOF036",null,null,null,null,null,null,30441,"SKODA","OCTAVIA (1Z3)","1.6 MultiFuel",{"$f":"SUBTOTAL(104,tblFilter[[#This Row],[TYP1]])=tblFilter[[#This Row],[TYP1]]","v":false},null,null,null,null,null,null," COMLINE EOF036",null,null,null,null,3919289,null," COMLINE EOF036",0,0,"COMLINE",0]
[3919289,"COMLINE",null,"EOF036",null,null,null,null,null,null,17973,"SKODA","OCTAVIA (1Z3)",43252,{"$f":"SUBTOTAL(104,tblFilter[[#This Row],[TYP1]])=tblFilter[[#This Row],[TYP1]]","v":false},null,null,null,null,null,null," COMLINE EOF036",null,null,null,null,3919289,null," COMLINE EOF036",0,0,"COMLINE",0]
[3919289,"COMLINE",null,"EOF036",null,null,null,null,null,null,5020,"SKODA","OCTAVIA (1Z3)","1.6 LPG",{"$f":"SUBTOTAL(104,tblFilter[[#This Row],[TYP1]])=tblFilter[[#This Row],[TYP1]]","v":false},null,null,null,null,null,null," COMLINE EOF036",null,null,null,null,3919289,null," COMLINE EOF036",0,0,"COMLINE",0]
[3919289,"COMLINE",null,"EOF036",null,null,null,null,null,null,10270,"SKODA","OCTAVIA Combi (1U5)","1.8 T",{"$f":"SUBTOTAL(104,tblFilter[[#This Row],[TYP1]])=tblFilter[[#This Row],[TYP1]]","v":false},null,null,null,null,null,null," COMLINE EOF036",null,null,null,null,3919289,null," COMLINE EOF036",0,0,"COMLINE",0]
[3919289,"COMLINE",null,"EOF036",null,null,null,null,null,null,9516,"SKODA","OCTAVIA Combi (1U5)","1.8 20V",{"$f":"SUBTOTAL(104,tblFilter[[#This Row],[TYP1]])=tblFilter[[#This Row],[TYP1]]","v":false},null,null,null,null,null,null," COMLINE EOF036",null,null,null,null,3919289,null," COMLINE EOF036",0,0,"COMLINE",0]
[3919289,"COMLINE",null,"EOF036",null,null,null,null,null,null,9515,"SKODA","OCTAVIA Combi (1U5)",43252,{"$f":"SUBTOTAL(104,tblFilter[[#This Row],[TYP1]])=tblFilter[[#This Row],[TYP1]]","v":false},null,null,null,null,null,null," COMLINE EOF036",null,null,null,null,3919289,null," COMLINE EOF036",0,0,"COMLINE",0]
[3919289,"COMLINE",null,"EOF036",null,null,null,null,null,null,16945,"SKODA","OCTAVIA Combi (1U5)","RS 1.8 T",{"$f":"SUBTOTAL(104,tblFilter[[#This Row],[TYP1]])=tblFilter[[#This Row],[TYP1]]","v":false},null,null,null,null,null,null," COMLINE EOF036",null,null,null,null,3919289,null," COMLINE EOF036",0,0,"COMLINE",0]
[3919289,"COMLINE",null,"EOF036",null,null,null,null,null,null,16088,"SKODA","OCTAVIA Combi (1U5)","2.0 4x4",{"$f":"SUBTOTAL(104,tblFilter[[#This Row],[TYP1]])=tblFilter[[#This Row],[TYP1]]","v":false},null,null,null,null,null,null," COMLINE EOF036",null,null,null,null,3919289,null," COMLINE EOF036",0,0,"COMLINE",0]
[3919289,"COMLINE",null,"EOF036",null,null,null,null,null,null,16087,"SKODA","OCTAVIA Combi (1U5)","1.8 T 4x4",{"$f":"SUBTOTAL(104,tblFilter[[#This Row],[TYP1]])=tblFilter[[#This Row],[TYP1]]","v":false},null,null,null,null,null,null," COMLINE EOF036",null,null,null,null,3919289,null," COMLINE EOF036",0,0,"COMLINE",0]
[3919289,"COMLINE",null,"EOF036",null,null,null,null,null,null,15918,"SKODA","OCTAVIA Combi (1U5)",43252,{"$f":"SUBTOTAL(104,tblFilter[[#This Row],[TYP1]])=tblFilter[[#This Row],[TYP1]]","v":false},null,null,null,null,null,null," COMLINE EOF036",null,null,null,null,3919289,null," COMLINE EOF036",0,0,"COMLINE",0]
[3919289,"COMLINE",null,"EOF036",null,null,null,null,null,null,15905,"SKODA","OCTAVIA Combi (1U5)","2.0 4x4",{"$f":"SUBTOTAL(104,tblFilter[[#This Row],[TYP1]])=tblFilter[[#This Row],[TYP1]]","v":false},null,null,null,null,null,null," COMLINE EOF036",null,null,null,null,3919289,null," COMLINE EOF036",0,0,"COMLINE",0]
[3919289,"COMLINE",null,"EOF036",null,null,null,null,null,null,13086,"SKODA","OCTAVIA Combi (1U5)","2.0",{"$f":"SUBTOTAL(104,tblFilter[[#This Row],[TYP1]])=tblFilter[[#This Row],[TYP1]]","v":false},null,null,null,null,null,null," COMLINE EOF036",null,null,null,null,3919289,null," COMLINE EOF036",0,0,"COMLINE",0]
[3919289,"COMLINE",null,"EOF036",null,null,null,null,null,null,30442,"SKODA","OCTAVIA Combi (1Z5)","1.6 MultiFuel",{"$f":"SUBTOTAL(104,tblFilter[[#This Row],[TYP1]])=tblFilter[[#This Row],[TYP1]]","v":false},null,null,null,null,null,null," COMLINE EOF036",null,null,null,null,3919289,null," COMLINE EOF036",0,0,"COMLINE",0]
[3919289,"COMLINE",null,"EOF036",null,null,null,null,null,null,18246,"SKODA","OCTAVIA Combi (1Z5)",43252,{"$f":"SUBTOTAL(104,tblFilter[[#This Row],[TYP1]])=tblFilter[[#This Row],[TYP1]]","v":false},null,null,null,null,null,null," COMLINE EOF036",null,null,null,null,3919289,null," COMLINE EOF036",0,0,"COMLINE",0]
[3919289,"COMLINE",null,"EOF036",null,null,null,null,null,null,5017,"SKODA","OCTAVIA Combi (1Z5)","1.6 LPG",{"$f":"SUBTOTAL(104,tblFilter[[#This Row],[TYP1]])=tblFilter[[#This Row],[TYP1]]","v":false},null,null,null,null,null,null," COMLINE EOF036",null,null,null,null,3919289,null," COMLINE EOF036",0,0,"COMLINE",0]
[3919289,"COMLINE",null,"EOF036",null,null,null,null,null,null,16292,"SKODA","SUPERB (3U4)","2.0",{"$f":"SUBTOTAL(104,tblFilter[[#This Row],[TYP1]])=tblFilter[[#This Row],[TYP1]]","v":false},null,null,null,null,null,null," COMLINE EOF036",null,null,null,null,3919289,null," COMLINE EOF036",0,0,"COMLINE",0]
[]
[]
[]
[]
[null,null,null,null,null,null,null,null,null,null,null,null,null,null,null,null,null,null,null,null,"Z tohto listu kopírujete do harok3 hodnoty zo stĺpcov A,B,D,F,G,H,J. A to iba konkrétne z prvého vyfiltrovaného riadku (to nemusí byť riadok č. 2)."]
[null,null,null,null,null,null,null,null,null,null,null,null,null,null,null,null,null,null,null,null,"Podľa Vás sú všetky spomínané stĺpce VŽDY ÚPLNE ROVNAKÉ ?"]
[null,null,null,null,null,null,null,null,null,null,null,null,null,null,null,null,null,null,null,null,"Čo ak nastane príklad G2:G3 v červenom ováli ? Ktoré hodnoty sa potom majú kopírovať ?"]
[null,null,null,null,null,null,null,null,null,null,null,null,null,null,null,null,null,null,null,null,"Čo ak nastane, že vo filtry bude viac TYP1 ?"]
[]
[]
[]
[]
[]
[null,null,null,null,null,null,null,null,null,null,null,null,null,null,null,null,null,null,null,null,"A posledná otázka. Vy chcete aby sa toto dialo \"kvázi-automaticky\" - teda pri prepínaní medzi hociktorými listami ? Alebo tútokopírovaciu procedúru naštartujete vždy ručne tlačítkom, iba ak budete chcieť ?"]
[null,null,null,null,null,null,null,null,null,null,null,null,null,null,null,null,null,null,null,null,"Alebo má byť po stlačení tlačítka prechádzaný zoznam jedinečných TYP1, ten sa po jednom aplikuje na túto tabuľku, a vyfiltruje sa podľa TYP z hárku1 aj  hárok2, a potom sa urobí kopírovanie dát do hárku3?"]
[null,null,null,null,null,null,null,null,null,null,null,null,null,null,null,null,null,null,null,null,"A opäť sa dostavame k otázkam vyššie o jedinečnosti kombinácií údajov."]

{"sheet":"HAROK2","index":1,"n_rows":334,"n_cols":24,"rows_kept":334,"cut":false,"hidden":false,"merged":[]}
["ZNACKA","Stĺpec1","Stĺpec2","Stĺpec3","Stĺpec4","Stĺpec5","Stĺpec6","Stĺpec7","Stĺpec8","Stĺpec9","Stĺpec10","TYP","Stĺpec11","Stĺpec12","Stĺpec13","Stĺpec14","Stĺpec15","Stĺpec16","Stĺpec17","Stĺpec18","Stĺpec19","Prepnutie na tento list vyvolá makro, ktoré ho vyfiltruje podľa viditeľných riadkov v HAROK1"]
["ŠKODA","OCTAVIA Combi (1Z5)","2.0 TDI 4x4",null,"2011",5,2013,2,81,110,1968,4819,5162,575,"Engine type :: nafta | Engine code :: CFHF | Number of cylinders :: 4 | Valves per cylinder :: 4 | Fuel :: nafta | Drive type :: pohon vsetkych kolies | Refueling :: Priame vstrekovanie","CFHF",null,null,null,null,null,null,null,{"$f":"CONCATENATE(A2,\" > \",B2,\" > \",C2,\" ; \", F2,\"/\",E2,\" - \",H2,\"/\",G2,\" ; \",I2,\"kW\",\" ; \",J2,\"HP\",\" ; \",P2,\" \",Q2,\" \",R2,\" \",S2,\" \",T2,\" \",U2 )","v":"ŠKODA > OCTAVIA Combi (1Z5) > 2.0 TDI 4x4 ; 5/2011 - 2/2013 ; 81kW ; 110HP ; CFHF     "}]
["ŠKODA","OCTAVIA Combi (1Z5)","1.6 TDI 4x4",null,"2009",6,2013,2,77,105,1598,5013,5162,575,"Engine type :: nafta | Engine code :: CAYC | Number of cylinders :: 4 | Valves per cylinder :: 4 | Fuel :: nafta | Drive type :: pohon vsetkych kolies | Refueling :: Priame vstrekovanie","CAYC",null,null,null,null,null,null,null,{"$f":"CONCATENATE(A3,\" > \",B3,\" > \",C3,\" ; \", F3,\"/\",E3,\" - \",H3,\"/\",G3,\" ; \",I3,\"kW\",\" ; \",J3,\"HP\",\" ; \",P3,\" \",Q3,\" \",R3,\" \",S3,\" \",T3,\" \",U3 )","v":"ŠKODA > OCTAVIA Combi (1Z5) > 1.6 TDI 4x4 ; 6/2009 - 2/2013 ; 77kW ; 105HP ; CAYC     "}]
["ŠKODA","OCTAVIA Combi (1Z5)","1.6 LPG",null,"2009",8,2012,11,75,102,1595,5017,5162,575,"Engine type :: Benzinovy motor | Engine code :: CHGA | Number of cylinders :: 4 | Valves per cylinder :: 2 | Fuel :: Benzin/plyn (LPG) | Drive type :: predny pohon | Refueling :: vstrekovanie do sacieho potrubia/karburator","CHGA",null,null,null,null,null,null,null,"ŠKODA > OCTAVIA Combi (1Z5) > 1.6 LPG ; 8/2009 - 11/2012 ; 75kW ; 102HP ; CHGA     "]
["ŠKODA","OCTAVIA (1Z3)","1.6 LPG",null,"2009",8,2012,11,75,102,1595,5020,5120,575,"Engine type :: Benzinovy motor | Engine code :: CHGA | Number of cylinders :: 4 | Valves per cylinder :: 2 | Fuel :: Benzin/plyn (LPG) | Drive type :: predny pohon | Refueling :: vstrekovanie do sacieho potrubia/karburator","CHGA",null,null,null,null,null,null,null,"ŠKODA > OCTAVIA (1Z3) > 1.6 LPG ; 8/2009 - 11/2012 ; 75kW ; 102HP ; CHGA     "]
["ŠKODA","SUPERB (3T4)","1.8 TSI",null,"2009",3,2015,5,112,152,1798,5929,7588,575,"Engine type :: Benzinovy motor | Engine code :: CDAB | Number of cylinders :: 4 | Valves per cylinder :: 4 | Fuel :: Benzín | Drive type :: predny pohon | Refueling :: Priame vstrekovanie","CDAB",null,null,null,null,null,null,null,"ŠKODA > SUPERB (3T4) > 1.8 TSI ; 3/2009 - 5/2015 ; 112kW ; 152HP ; CDAB     "]
["ŠKODA","SUPERB (3T4)","1.8 TSI 4x4",null,"2009",3,2015,5,112,152,1798,5930,7588,575,"Engine type :: Benzinovy motor | Engine code :: CDAB | Number of cylinders :: 4 | Valves per cylinder :: 4 | Fuel :: Benzín | Drive type :: pohon vsetkych kolies | Refueling :: Priame vstrekovanie","CDAB",null,null,null,null,null,null,null,"ŠKODA > SUPERB (3T4) > 1.8 TSI 4x4 ; 3/2009 - 5/2015 ; 112kW ; 152HP ; CDAB     "]
["ŠKODA","SUPERB Kombi (3T5)","1.8 TSI",null,"2009",10,2015,5,112,152,1798,5935,8495,575,"Engine type :: Benzinovy motor | Engine code :: CDAB | Number of cylinders :: 4 | Valves per cylinder :: 4 | Fuel :: Benzín | Drive type :: predny pohon | Refueling :: Priame vstrekovanie","CDAB",null,null,null,null,null,null,null,"ŠKODA > SUPERB Kombi (3T5) > 1.8 TSI ; 10/2009 - 5/2015 ; 112kW ; 152HP ; CDAB     "]
["ŠKODA","SUPERB Kombi (3T5)","1.8 TSI 4x4",null,"2009",10,2015,5,112,152,1798,5936,8495,575,"Engine type :: Benzinovy motor | Engine code :: CDAB | Number of cylinders :: 4 | Valves per cylinder :: 4 | Fuel :: Benzín | Drive type :: pohon vsetkych kolies | Refueling :: Priame vstrekovanie","CDAB",null,null,null,null,null,null,null,"ŠKODA > SUPERB Kombi (3T5) > 1.8 TSI 4x4 ; 10/2009 - 5/2015 ; 112kW ; 152HP ; CDAB     "]
["ŠKODA","ROOMSTER (5J)","1.2 TDI",null,"2010",3,2015,5,55,75,1199,5950,5507,575,"Engine type :: nafta | Engine code :: CFWA | Number of cylinders :: 3 | Valves per cylinder :: 4 | Fuel :: nafta | Drive type :: predny pohon | Refueling :: Priame vstrekovanie","CFWA",null,null,null,null,null,null,null,"ŠKODA > ROOMSTER (5J) > 1.2 TDI ; 3/2010 - 5/2015 ; 55kW ; 75HP ; CFWA     "]
["ŠKODA","OCTAVIA Combi (1Z5)","2.0 TDI 16V 4x4",null,"2010",5,2013,2,103,140,1968,6042,5162,575,"Engine type :: nafta | Engine code :: CFHC | Number of cylinders :: 4 | Valves per cylinder :: 4 | Fuel :: nafta | Drive type :: pohon vsetkych kolies | Refueling :: Priame vstrekovanie","CFHC",null,null,null,null,null,null,null,"ŠKODA > OCTAVIA Combi (1Z5) > 2.0 TDI 16V 4x4 ; 5/2010 - 2/2013 ; 103kW ; 140HP ; CFHC     "]
["ŠKODA","SUPERB (3T4)","2.0 TSI",null,"2010",5,2015,5,147,200,1984,6306,7588,575,"Engine type :: Benzinovy motor | Engine code :: CCZA | Number of cylinders :: 4 | Valves per cylinder :: 4 | Fuel :: Benzín | Drive type :: predny pohon | Refueling :: Priame vstrekovanie","CCZA",null,null,null,null,null,null,null,"ŠKODA > SUPERB (3T4) > 2.0 TSI ; 5/2010 - 5/2015 ; 147kW ; 200HP ; CCZA     "]
["ŠKODA","SUPERB (3T4)","1.6 TDI",null,"2010",9,2015,5,77,105,1598,6314,7588,575,"Engine type :: nafta | Engine code :: CAYC | Number of cylinders :: 4 | Valves per cylinder :: 4 | Fuel :: nafta | Drive type :: predny pohon | Refueling :: Priame vstrekovanie","CAYC",null,null,null,null,null,null,null,"ŠKODA > SUPERB (3T4) > 1.6 TDI ; 9/2010 - 5/2015 ; 77kW ; 105HP ; CAYC     "]
["ŠKODA","SUPERB Kombi (3T5)","2.0 TSI",null,"2010",5,2015,5,147,200,1984,6326,8495,575,"Engine type :: Benzinovy motor | Engine code :: CCZA | Number of cylinders :: 4 | Valves per cylinder :: 4 | Fuel :: Benzín | Drive type :: predny pohon | Refueling :: Priame vstrekovanie","CCZA",null,null,null,null,null,null,null,"ŠKODA > SUPERB Kombi (3T5) > 2.0 TSI ; 5/2010 - 5/2015 ; 147kW ; 200HP ; CCZA     "]
["ŠKODA","SUPERB Kombi (3T5)","1.6 TDI",null,"2010",9,2015,5,77,105,1598,6339,8495,575,"Engine type :: nafta | Engine code :: CAYC | Number of cylinders :: 4 | Valves per cylinder :: 4 | Fuel :: nafta | Drive type :: predny pohon | Refueling :: Priame vstrekovanie","CAYC",null,null,null,null,null,null,null,"ŠKODA > SUPERB Kombi (3T5) > 1.6 TDI ; 9/2010 - 5/2015 ; 77kW ; 105HP ; CAYC     "]
["ŠKODA","YETI (5L)","1.6 TDI",null,"2010",11,null,null,77,105,1598,6345,8486,575,"Engine type :: nafta | Engine code :: CAYC | Number of cylinders :: 4 | Valves per cylinder :: 4 | Fuel :: nafta | Drive type :: predny pohon | Refueling :: Priame vstrekovanie","CAYC",null,null,null,null,null,null,null,"ŠKODA > YETI (5L) > 1.6 TDI ; 11/2010 - / ; 77kW ; 105HP ; CAYC     "]
["ŠKODA","OCTAVIA Combi (1Z5)","1.2",null,"2004",5,2006,5,55,75,1390,6799,5162,575,"Engine type :: Benzinovy motor | Engine code :: BCA | Number of cylinders :: 4 | Valves per cylinder :: 4 | Fuel :: Benzín | Drive type :: predny pohon | Refueling :: vstrekovanie do sacieho potrubia/karburator","BCA",null,null,null,null,null,null,null,"ŠKODA > OCTAVIA Combi (1Z5) > 1.2 ; 5/2004 - 5/2006 ; 55kW ; 75HP ; BCA     "]
["ŠKODA","OCTAVIA Combi (1Z5)","1.8 TSI 4x4",null,"2009",3,2013,2,112,152,1798,6800,5162,575,"Engine type :: Benzinovy motor | Engine code :: CDAB | Number of cylinders :: 4 | Valves per cylinder :: 4 | Fuel :: Benzín | Drive type :: pohon vsetkych kolies | Refueling :: Priame vstrekovanie","CDAB",null,null,null,null,null,null,null,"ŠKODA > OCTAVIA Combi (1Z5) > 1.8 TSI 4x4 ; 3/2009 - 2/2013 ; 112kW ; 152HP ; CDAB     "]
["ŠKODA","OCTAVIA (1Z3)","1.8 TSI",null,"2009",3,2013,6,112,152,1798,7867,5120,575,"Engine type :: Benzinovy motor | Engine code :: CDAB | Number of cylinders :: 4 | Valves per cylinder :: 4 | Fuel :: Benzín | Drive type :: predny pohon | Refueling :: Priame vstrekovanie","CDAB",null,null,null,null,null,null,null,"ŠKODA > OCTAVIA (1Z3) > 1.8 TSI ; 3/2009 - 6/2013 ; 112kW ; 152HP ; CDAB     "]
["ŠKODA","OCTAVIA Combi (1Z5)","1.8 TSI",null,"2009",3,2013,6,112,152,1798,7868,5162,575,"Engine type :: Benzinovy motor | Engine code :: CDAB | Number of cylinders :: 4 | Valves per cylinder :: 4 | Fuel :: Benzín | Drive type :: predny pohon | Refueling :: Priame vstrekovanie","CDAB",null,null,null,null,null,null,null,"ŠKODA > OCTAVIA Combi (1Z5) > 1.8 TSI ; 3/2009 - 6/2013 ; 112kW ; 152HP ; CDAB     "]
["ŠKODA","OCTAVIA (1Z3)","2.0 TDI",null,"2010",3,2013,6,81,110,1968,7894,5120,575,"Engine type :: nafta | Engine code :: CFHF, CLCA | Number of cylinders :: 4 | Valves per cylinder :: 4 | Fuel :: nafta | Drive type :: predny pohon | Refueling :: Priame vstrekovanie","CFHF","CLCA",null,null,null,null,null,null,"ŠKODA > OCTAVIA (1Z3) > 2.0 TDI ; 3/2010 - 6/2013 ; 81kW ; 110HP ; CFHF CLCA    "]
["ŠKODA","OCTAVIA Combi (1Z5)","2.0 TDI",null,"2010",3,2013,6,81,110,1968,7904,5162,575,"Engine type :: nafta | Engine code :: CFHF, CLCA | Number of cylinders :: 4 | Valves per cylinder :: 4 | Fuel :: nafta | Drive type :: predny pohon | Refueling :: Priame vstrekovanie","CFHF","CLCA",null,null,null,null,null,null,"ŠKODA > OCTAVIA Combi (1Z5) > 2.0 TDI ; 3/2010 - 6/2013 ; 81kW ; 110HP ; CFHF CLCA    "]
["ŠKODA","OCTAVIA (1U2)","1.6",null,"1996",9,2004,9,"55kW",75,1598,7907,1904,575,"Engine type :: Benzinovy motor | Engine code :: AEE | Number of cylinders :: 4 | Valves per cylinder :: 2 | Brake type :: Kotuc/bubon | Braking system :: hydraulicky | Fuel :: Benzín | Type of catalyst :: s riadenym (trojcestnym) katalyzatorom | Drive type :: predny pohon | Drive :: 5-stupnova prevodovka | Refueling :: vstrekovanie do sacieho potrubia/karburator","AEE",null,null,null,null,null,null,null,"ŠKODA > OCTAVIA (1U2) > 1.6 ; 9/1996 - 9/2004 ; 55kWkW ; 75HP ; AEE     "]
["ŠKODA","OCTAVIA (1U2)","1.8",null,"1996",9,2000,7,92,125,1781,7908,1904,575,"Engine type :: Benzinovy motor | Engine code :: AGN | Number of cylinders :: 4 | Valves per cylinder :: 5 | Brake type :: Kotucova brzda | Braking system :: hydraulicky | Fuel :: Benzín | Type of catalyst :: s riadenym (trojcestnym) katalyzatorom | Drive type :: predny pohon | Refueling :: vstrekovanie do sacieho potrubia/karburator","AGN",null,null,null,null,null,null,null,"ŠKODA > OCTAVIA (1U2) > 1.8 ; 9/1996 - 7/2000 ; 92kW ; 125HP ; AGN     "]
["ŠKODA","OCTAVIA (1U2)","1.9 TDI",null,"1996",9,2010,3,66,90,1896,7909,1904,575,"Engine type :: nafta | Engine code :: AGR, ALH | Number of cylinders :: 4 | Valves per cylinder :: 2 | Brake type :: Kotuc/bubon | Braking system :: hydraulicky | Fuel :: nafta | Drive type :: predny pohon | Drive :: manualna/automaticka prevodovka | Refueling :: Priame vstrekovanie","AGR","ALH",null,null,null,null,null,null,"ŠKODA > OCTAVIA (1U2) > 1.9 TDI ; 9/1996 - 3/2010 ; 66kW ; 90HP ; AGR ALH    "]
["ŠKODA","OCTAVIA (1U2)","1.6",null,"1997",2,2007,12,74,101,1595,8009,1904,575,"Engine type :: Benzinovy motor | Engine code :: AEH, AKL | Number of cylinders :: 4 | Valves per cylinder :: 2 | Brake type :: Kotuc/bubon | Braking system :: hydraulicky | Fuel :: Benzín | Type of catalyst :: s riadenym (trojcestnym) katalyzatorom | Drive type :: predny pohon | Drive :: manualna/automaticka prevodovka | Refueling :: vstrekovanie do sacieho potrubia/karburator","AEH","AKL",null,null,null,null,null,null,"ŠKODA > OCTAVIA (1U2) > 1.6 ; 2/1997 - 12/2007 ; 74kW ; 101HP ; AEH AKL    "]
["ŠKODA","OCTAVIA (1U2)","1.9 SDI",null,"1997",6,2003,12,50,68,1896,8704,1904,575,"Engine type :: nafta | Engine code :: AGP, AQM | Number of cylinders :: 4 | Valves per cylinder :: 2 | Braking system :: hydraulicky | Fuel :: nafta | Drive type :: predny pohon | Refueling :: Priame vstrekovanie","AGP","AQM",null,null,null,null,null,null,"ŠKODA > OCTAVIA (1U2) > 1.9 SDI ; 6/1997 - 12/2003 ; 50kW ; 68HP ; AGP AQM    "]
["ŠKODA","OCTAVIA (1U2)","1.9 TDI",null,"1997",8,2006,1,81,110,1896,9063,1904,575,"Engine type :: nafta | Engine code :: AHF, ASV | Number of cylinders :: 4 | Valves per cylinder :: 2 | Brake type :: Kotucova brzda | Braking system :: hydraulicky | Fuel :: nafta | Drive type :: predny pohon | Drive :: 5-stupnova prevodovka | Refueling :: Priame vstrekovanie","AHF","ASV",null,null,null,null,null,null,"ŠKODA > OCTAVIA (1U2) > 1.9 TDI ; 8/1997 - 1/2006 ; 81kW ; 110HP ; AHF ASV    "]
["ŠKODA","FABIA","1.2 12V",null,"2011",11,2014,12,44,60,1198,9409,6363,575,"Engine type :: Benzinovy motor | Engine code :: CGPB | Number of cylinders :: 3 | Valves per cylinder :: 4 | Fuel :: Benzín | Drive type :: predny pohon | Refueling :: vstrekovanie do sacieho potrubia/karburator","CGPB",null,null,null,null,null,null,null,"ŠKODA > FABIA > 1.2 12V ; 11/2011 - 12/2014 ; 44kW ; 60HP ; CGPB     "]
["ŠKODA","FABIA Combi","1.2 12V",null,"2011",11,2014,12,44,60,1198,9410,6395,575,"Engine type :: Benzinovy motor | Engine code :: CGPB | Number of cylinders :: 3 | Valves per cylinder :: 4 | Fuel :: Benzín | Drive type :: predny pohon | Refueling :: vstrekovanie do sacieho potrubia/karburator","CGPB",null,null,null,null,null,null,null,"ŠKODA > FABIA Combi > 1.2 12V ; 11/2011 - 12/2014 ; 44kW ; 60HP ; CGPB     "]
["ŠKODA","YETI (5L)","1.8 TSI 4x4",null,"2009",11,null,null,112,152,1798,9491,8486,575,"Engine type :: Benzinovy motor | Engine code :: CDAB | Number of cylinders :: 4 | Valves per cylinder :: 4 | Fuel :: Benzín | Drive type :: pohon vsetkych kolies | Refueling :: Priame vstrekovanie","CDAB",null,null,null,null,null,null,null,"ŠKODA > YETI (5L) > 1.8 TSI 4x4 ; 11/2009 - / ; 112kW ; 152HP ; CDAB     "]
["ŠKODA","OCTAVIA Combi (1U5)","1.6",null,"1998",7,2007,12,74,101,1595,9515,3560,575,"Engine type :: Benzinovy motor | Engine code :: AEH, AKL | Number of cylinders :: 4 | Valves per cylinder :: 2 | Braking system :: hydraulicky | Fuel :: Benzín | Type of catalyst :: s riadenym (trojcestnym) katalyzatorom | Drive type :: predny pohon | Refueling :: vstrekovanie do sacieho potrubia/karburator","AEH","AKL",null,null,null,null,null,null,"ŠKODA > OCTAVIA Combi (1U5) > 1.6 ; 7/1998 - 12/2007 ; 74kW ; 101HP ; AEH AKL    "]
["ŠKODA","OCTAVIA Combi (1U5)","1.8 20V",null,"1998",7,2000,7,92,125,1781,9516,3560,575,"Engine type :: Benzinovy motor | Engine code :: AGN | Number of cylinders :: 4 | Valves per cylinder :: 5 | Brake type :: Kotucova brzda | Braking system :: hydraulicky | Fuel :: Benzín | Type of catalyst :: s riadenym (trojcestnym) katalyzatorom | Drive type :: predny pohon | Refueling :: vstrekovanie do sacieho potrubia/karburator","AGN",null,null,null,null,null,null,null,"ŠKODA > OCTAVIA Combi (1U5) > 1.8 20V ; 7/1998 - 7/2000 ; 92kW ; 125HP ; AGN     "]
["ŠKODA","OCTAVIA Combi (1U5)","1.9 SDI",null,"1998",7,2003,12,50,68,1896,9517,3560,575,"Engine type :: nafta | Engine code :: AGP, AQM | Number of cylinders :: 4 | Valves per cylinder :: 2 | Braking system :: hydraulicky | Fuel :: nafta | Drive type :: predny pohon | Drive :: Manualna prevodovka | Refueling :: Priame vstrekovanie","AGP","AQM",null,null,null,null,null,null,"ŠKODA > OCTAVIA Combi (1U5) > 1.9 SDI ; 7/1998 - 12/2003 ; 50kW ; 68HP ; AGP AQM    "]
["ŠKODA","OCTAVIA Combi (1U5)","1.9 TDI",null,"1998",7,2010,3,66,90,1896,9518,3560,575,"Engine type :: nafta | Engine code :: AGR, ALH | Number of cylinders :: 4 | Valves per cylinder :: 2 | Brake type :: Kotuc/bubon | Braking system :: hydraulicky | Fuel :: nafta | Drive type :: predny pohon | Drive :: 5-stupnova prevodovka | Refueling :: Priame vstrekovanie","AGR","ALH",null,null,null,null,null,null,"ŠKODA > OCTAVIA Combi (1U5) > 1.9 TDI ; 7/1998 - 3/2010 ; 66kW ; 90HP ; AGR ALH    "]
["ŠKODA","OCTAVIA Combi (1U5)","1.9 TDI",null,"1998",7,2006,1,81,110,1896,9519,3560,575,"Engine type :: nafta | Engine code :: AHF, ASV | Number of cylinders :: 4 | Valves per cylinder :: 2 | Braking system :: hydraulicky | Fuel :: nafta | Drive type :: predny pohon | Drive :: Manualna prevodovka | Refueling :: Priame vstrekovanie","AHF","ASV",null,null,null,null,null,null,"ŠKODA > OCTAVIA Combi (1U5) > 1.9 TDI ; 7/1998 - 1/2006 ; 81kW ; 110HP ; AHF ASV    "]
["ŠKODA","OCTAVIA Combi (1U5)","1.8 T",null,"1998",7,2010,12,110,150,1781,10270,3560,575,"Engine type :: Benzinovy motor | Engine code :: AGU, ARX, ARZ, AUM | Number of cylinders :: 4 | Valves per cylinder :: 5 | Braking system :: hydraulicky | Fuel :: Benzín | Type of catalyst :: s riadenym (trojcestnym) katalyzatorom | Drive type :: predny pohon | Refueling :: vstrekovanie do sacieho potrubia/karburator","AGU","ARX","ARZ","AUM",null,null,null,null,"ŠKODA > OCTAVIA Combi (1U5) > 1.8 T ; 7/1998 - 12/2010 ; 110kW ; 150HP ; AGU ARX ARZ AUM  "]
["ŠKODA","SUPERB Kombi (3T5)","2.0 TDI 16V 4x4",null,"2010",11,2015,5,103,140,1968,10573,8495,575,"Engine type :: nafta | Engine code :: CFFB | Number of cylinders :: 4 | Valves per cylinder :: 4 | Fuel :: nafta | Drive type :: pohon vsetkych kolies | Refueling :: Priame vstrekovanie","CFFB",null,null,null,null,null,null,null,"ŠKODA > SUPERB Kombi (3T5) > 2.0 TDI 16V 4x4 ; 11/2010 - 5/2015 ; 103kW ; 140HP ; CFFB     "]
["ŠKODA","SUPERB (3T4)","2.0 TDI 16V 4x4",null,"2010",11,2015,5,103,140,1968,10574,7588,575,"Engine type :: nafta | Engine code :: CFFB | Number of cylinders :: 4 | Valves per cylinder :: 4 | Fuel :: nafta | Drive type :: pohon vsetkych kolies | Refueling :: Priame vstrekovanie","CFFB",null,null,null,null,null,null,null,"ŠKODA > SUPERB (3T4) > 2.0 TDI 16V 4x4 ; 11/2010 - 5/2015 ; 103kW ; 140HP ; CFFB     "]
["ŠKODA","YETI (5L)","2.0 TDI",null,"2011",11,null,null,103,140,1968,10974,8486,575,"Engine type :: nafta | Engine code :: CFHC | Number of cylinders :: 4 | Valves per cylinder :: 4 | Fuel :: nafta | Drive type :: predny pohon | Refueling :: Priame vstrekovanie","CFHC",null,null,null,null,null,null,null,"ŠKODA > YETI (5L) > 2.0 TDI ; 11/2011 - / ; 103kW ; 140HP ; CFHC     "]
["ŠKODA","ROOMSTER (5J)","1.9 TDI",null,"2006",3,2006,5,74,101,1896,10996,5507,575,"Engine type :: nafta | Engine code :: AXR | Number of cylinders :: 4 | Valves per cylinder :: 2 | Fuel :: nafta | Drive type :: predny pohon | Refueling :: Priame vstrekovanie","AXR",null,null,null,null,null,null,null,"ŠKODA > ROOMSTER (5J) > 1.9 TDI ; 3/2006 - 5/2006 ; 74kW ; 101HP ; AXR     "]
["ŠKODA","SUPERB Kombi (3T5)","1.9 TDI",null,"2009",10,2010,11,77,105,1896,11006,8495,575,"Engine type :: nafta | Engine code :: BLS, BXE | Number of cylinders :: 4 | Valves per cylinder :: 2 | Fuel :: nafta | Drive type :: predny pohon | Refueling :: Priame vstrekovanie","BLS","BXE",null,null,null,null,null,null,"ŠKODA > SUPERB Kombi (3T5) > 1.9 TDI ; 10/2009 - 11/2010 ; 77kW ; 105HP ; BLS BXE    "]
["ŠKODA","OCTAVIA (1U2)","1.8 T",null,"1997",8,2010,12,110,150,1781,11346,1904,575,"Engine type :: Benzinovy motor | Engine code :: AGU, ARX, ARZ, AUM | Number of cylinders :: 4 | Valves per cylinder :: 5 | Brake type :: Kotucova brzda | Braking system :: hydraulicky | Fuel :: Benzín | Type of catalyst :: s riadenym (trojcestnym) katalyzatorom | Drive type :: predny pohon | Drive :: manualna/automaticka prevodovka | Refueling :: vstrekovanie do sacieho potrubia/karburator","AGU","ARX","ARZ","AUM",null,null,null,null,"ŠKODA > OCTAVIA (1U2) > 1.8 T ; 8/1997 - 12/2010 ; 110kW ; 150HP ; AGU ARX ARZ AUM  "]
["ŠKODA","OCTAVIA Combi (1U5)","1.6",null,"1998",7,2004,9,55,75,1598,11629,3560,575,"Engine type :: Benzinovy motor | Engine code :: AEE | Number of cylinders :: 4 | Valves per cylinder :: 2 | Brake type :: Kotuc/bubon | Braking system :: hydraulicky | Fuel :: Benzín | Type of catalyst :: s riadenym (trojcestnym) katalyzatorom | Drive type :: predny pohon | Drive :: 5-stupnova prevodovka | Refueling :: vstrekovanie do sacieho potrubia/karburator","AEE",null,null,null,null,null,null,null,"ŠKODA > OCTAVIA Combi (1U5) > 1.6 ; 7/1998 - 9/2004 ; 55kW ; 75HP ; AEE     "]
["ŠKODA","OCTAVIA Combi (1U5)","1.9 TDI 4x4",null,"1999",11,2006,2,66,90,1896,12243,3560,575,"Engine type :: nafta | Engine code :: AGR | Number of cylinders :: 4 | Valves per cylinder :: 2 | Brake type :: Kotuc/bubon | Braking system :: hydraulicky | Fuel :: nafta | Drive type :: pohon vsetkych kolies | Drive :: 5-stupnova prevodovka | Refueling :: Priame vstrekovanie","AGR",null,null,null,null,null,null,null,"ŠKODA > OCTAVIA Combi (1U5) > 1.9 TDI 4x4 ; 11/1999 - 2/2006 ; 66kW ; 90HP ; AGR     "]
["ŠKODA","OCTAVIA (1U2)","2.0",null,"1999",4,2007,5,85,116,1984,13085,1904,575,"Engine type :: Benzinovy motor | Engine code :: AEG, APK, AQY, AZH, AZJ | Number of cylinders :: 4 | Valves per cylinder :: 2 | Brake type :: Kotucova brzda | Braking system :: hydraulicky | Fuel :: Benzín | Type of catalyst :: s riadenym (trojcestnym) katalyzatorom | Drive type :: predny pohon | Drive :: manualna/automaticka prevodovka | Refueling :: vstrekovanie do sacieho potrubia/karburator","AEG","APK","AQY","AZH","AZJ",null,null,null,"ŠKODA > OCTAVIA (1U2) > 2.0 ; 4/1999 - 5/2007 ; 85kW ; 116HP ; AEG APK AQY AZH AZJ "]
["ŠKODA","OCTAVIA Combi (1U5)","2.0",null,"1999",4,2007,5,85,116,1984,13086,3560,575,"Engine type :: Benzinovy motor | Engine code :: AEG, APK, AQY, AZH, AZJ | Number of cylinders :: 4 | Valves per cylinder :: 2 | Braking system :: hydraulicky | Fuel :: Benzín | Type of catalyst :: s riadenym (trojcestnym) katalyzatorom | Drive type :: predny pohon | Refueling :: vstrekovanie do sacieho potrubia/karburator","AEG","APK","AQY","AZH","AZJ",null,null,null,"ŠKODA > OCTAVIA Combi (1U5) > 2.0 ; 4/1999 - 5/2007 ; 85kW ; 116HP ; AEG APK AQY AZH AZJ "]
["ŠKODA","FABIA (6Y2)","1.4 16V",null,"1999",12,2008,3,74,100,1390,13362,4383,575,"Engine type :: Benzinovy motor | Engine code :: AUB, BBZ | Number of cylinders :: 4 | Valves per cylinder :: 4 | Braking system :: hydraulicky | Fuel :: Benzín | Type of catalyst :: s riadenym (trojcestnym) katalyzatorom | Drive type :: predny pohon | Refueling :: vstrekovanie do sacieho potrubia/karburator","AUB","BBZ",null,null,null,null,null,null,"ŠKODA > FABIA (6Y2) > 1.4 16V ; 12/1999 - 3/2008 ; 74kW ; 100HP ; AUB BBZ    "]
["ŠKODA","FABIA (6Y2)","1.4",null,"1999",8,2003,5,50,68,1397,13363,4383,575,"Engine type :: Benzinovy motor | Engine code :: AME, AQW, ATZ | Number of cylinders :: 4 | Valves per cylinder :: 2 | Braking system :: hydraulicky | Fuel :: Benzín | Type of catalyst :: s riadenym (trojcestnym) katalyzatorom | Drive type :: predny pohon | Refueling :: vstrekovanie do sacieho potrubia/karburator","AME","AQW","ATZ",null,null,null,null,null,"ŠKODA > FABIA (6Y2) > 1.4 ; 8/1999 - 5/2003 ; 50kW ; 68HP ; AME AQW ATZ   "]
["ŠKODA","FABIA (6Y2)","1.9 SDI",null,"1999",12,2008,3,47,64,1896,13364,4383,575,"Engine type :: nafta | Engine code :: ASY | Number of cylinders :: 4 | Valves per cylinder :: 2 | Braking system :: hydraulicky | Fuel :: nafta | Drive type :: predny pohon | Refueling :: Priame vstrekovanie","ASY",null,null,null,null,null,null,null,"ŠKODA > FABIA (6Y2) > 1.9 SDI ; 12/1999 - 3/2008 ; 47kW ; 64HP ; ASY     "]
["ŠKODA","FABIA (6Y2)","1.0",null,"1999",12,2002,8,37,50,996,14277,4383,575,"Engine type :: Benzinovy motor | Engine code :: AQV, ARV | Number of cylinders :: 4 | Valves per cylinder :: 2 | Braking system :: hydraulicky | Fuel :: Benzín | Type of catalyst :: s riadenym (trojcestnym) katalyzatorom | Drive type :: predny pohon | Refueling :: vstrekovanie do sacieho potrubia/karburator","AQV","ARV",null,null,null,null,null,null,"ŠKODA > FABIA (6Y2) > 1.0 ; 12/1999 - 8/2002 ; 37kW ; 50HP ; AQV ARV    "]
["ŠKODA","FABIA (6Y2)","1.9 TDI",null,"2000",1,2008,3,74,100,1896,14278,4383,575,"Engine type :: nafta | Engine code :: ATD, AXR | Number of cylinders :: 4 | Valves per cylinder :: 2 | Braking system :: hydraulicky | Fuel :: nafta | Drive type :: predny pohon | Refueling :: Priame vstrekovanie","ATD","AXR",null,null,null,null,null,null,"ŠKODA > FABIA (6Y2) > 1.9 TDI ; 1/2000 - 3/2008 ; 74kW ; 100HP ; ATD AXR    "]
["ŠKODA","OCTAVIA (1U2)","1.4",null,"1999",4,2001,3,44,60,1397,14748,1904,575,"Engine type :: Benzinovy motor | Engine code :: AMD | Number of cylinders :: 4 | Valves per cylinder :: 2 | Braking system :: hydraulicky | Fuel :: Benzín | Type of catalyst :: s riadenym (trojcestnym) katalyzatorom | Drive type :: predny pohon | Refueling :: vstrekovanie do sacieho potrubia/karburator","AMD",null,null,null,null,null,null,null,"ŠKODA > OCTAVIA (1U2) > 1.4 ; 4/1999 - 3/2001 ; 44kW ; 60HP ; AMD     "]
["ŠKODA","FABIA (6Y2)","1.4",null,"2000",8,2002,8,44,60,1397,15106,4383,575,"Engine type :: Benzinovy motor | Engine code :: AZE, AZF | Number of cylinders :: 4 | Valves per cylinder :: 2 | Fuel :: Benzín | Type of catalyst :: s riadenym (trojcestnym) katalyzatorom | Drive type :: predny pohon | Refueling :: vstrekovanie do sacieho potrubia/karburator","AZE","AZF",null,null,null,null,null,null,"ŠKODA > FABIA (6Y2) > 1.4 ; 8/2000 - 8/2002 ; 44kW ; 60HP ; AZE AZF    "]
["ŠKODA","FABIA (6Y2)","1.4 16V",null,"1999",12,2008,3,55,75,1390,15107,4383,575,"Engine type :: Benzinovy motor | Engine code :: AUA, BBY, BKY | Number of cylinders :: 4 | Valves per cylinder :: 4 | Fuel :: Benzín | Type of catalyst :: s riadenym (trojcestnym) katalyzatorom | Drive type :: predny pohon | Drive :: manualna/automaticka prevodovka | Refueling :: vstrekovanie do sacieho potrubia/karburator","AUA","BBY","BKY",null,null,null,null,null,"ŠKODA > FABIA (6Y2) > 1.4 16V ; 12/1999 - 3/2008 ; 55kW ; 75HP ; AUA BBY BKY   "]
["ŠKODA","OCTAVIA (1U2)","1.4 16V",null,"2000",9,2010,12,55,75,1390,15292,1904,575,"Engine type :: Benzinovy motor | Engine code :: AXP, BCA | Number of cylinders :: 4 | Valves per cylinder :: 4 | Brake type :: Kotuc/bubon | Braking system :: hydraulicky | Fuel :: Benzín | Type of catalyst :: s riadenym (trojcestnym) katalyzatorom | Drive type :: predny pohon | Drive :: 5-stupnova prevodovka | Refueling :: vstrekovanie do sacieho potrubia/karburator","AXP","BCA",null,null,null,null,null,null,"ŠKODA > OCTAVIA (1U2) > 1.4 16V ; 9/2000 - 12/2010 ; 55kW ; 75HP ; AXP BCA    "]
["ŠKODA","OCTAVIA (1U2)","RS 1.8 T",null,"2001",5,2006,1,132,180,1781,15293,1904,575,"Engine type :: Benzinovy motor | Engine code :: AUQ | Number of cylinders :: 4 | Valves per cylinder :: 5 | Fuel :: Benzín | Type of catalyst :: s riadenym (trojcestnym) katalyzatorom | Drive type :: predny pohon | Refueling :: vstrekovanie do sacieho potrubia/karburator","AUQ",null,null,null,null,null,null,null,"ŠKODA > OCTAVIA (1U2) > RS 1.8 T ; 5/2001 - 1/2006 ; 132kW ; 180HP ; AUQ     "]
["ŠKODA","OCTAVIA Combi (1U5)","1.9 TDI 4x4",null,"2000",9,2006,1,74,100,1896,15294,3560,575,"Engine type :: nafta | Engine code :: ATD | Number of cylinders :: 4 | Valves per cylinder :: 2 | Brake type :: Kotuc/bubon | Braking system :: hydraulicky | Fuel :: nafta | Drive type :: pohon vsetkych kolies | Drive :: Manualna prevodovka | Refueling :: Priame vstrekovanie","ATD",null,null,null,null,null,null,null,"ŠKODA > OCTAVIA Combi (1U5) > 1.9 TDI 4x4 ; 9/2000 - 1/2006 ; 74kW ; 100HP ; ATD     "]
["ŠKODA","FABIA Combi (6Y5)","1.4",null,"2000",4,2003,5,50,68,1397,15503,4727,575,"Engine type :: Benzinovy motor | Engine code :: AME, AQW, ATZ | Number of cylinders :: 4 | Valves per cylinder :: 2 | Brake type :: Kotuc/bubon | Braking system :: hydraulicky | Fuel :: Benzín | Type of catalyst :: s riadenym (trojcestnym) katalyzatorom | Drive type :: predny pohon | Drive :: 5-stupnova prevodovka | Refueling :: vstrekovanie do sacieho potrubia/karburator","AME","AQW","ATZ",null,null,null,null,null,"ŠKODA > FABIA Combi (6Y5) > 1.4 ; 4/2000 - 5/2003 ; 50kW ; 68HP ; AME AQW ATZ   "]
["ŠKODA","FABIA Combi (6Y5)","1.9 SDI",null,"2000",4,2007,12,47,64,1896,15504,4727,575,"Engine type :: nafta | Engine code :: ASY | Number of cylinders :: 4 | Valves per cylinder :: 2 | Braking system :: hydraulicky | Fuel :: nafta | Drive type :: predny pohon | Refueling :: Priame vstrekovanie","ASY",null,null,null,null,null,null,null,"ŠKODA > FABIA Combi (6Y5) > 1.9 SDI ; 4/2000 - 12/2007 ; 47kW ; 64HP ; ASY     "]
["ŠKODA","FABIA Combi (6Y5)","1.4 16V",null,"2000",5,2007,12,55,75,1390,15582,4727,575,"Engine type :: Benzinovy motor | Engine code :: AUA, BBY, BKY | Number of cylinders :: 4 | Valves per cylinder :: 4 | Fuel :: Benzín | Type of catalyst :: s riadenym (trojcestnym) katalyzatorom | Drive type :: predny pohon | Drive :: manualna/automaticka prevodovka | Refueling :: vstrekovanie do sacieho potrubia/karburator","AUA","BBY","BKY",null,null,null,null,null,"ŠKODA > FABIA Combi (6Y5) > 1.4 16V ; 5/2000 - 12/2007 ; 55kW ; 75HP ; AUA BBY BKY   "]
["ŠKODA","FABIA Combi (6Y5)","1.4 16V",null,"2000",4,2007,12,74,100,1390,15583,4727,575,"Engine type :: Benzinovy motor | Engine code :: AUB, BBZ | Number of cylinders :: 4 | Valves per cylinder :: 4 | Fuel :: Benzín | Type of catalyst :: s riadenym (trojcestnym) katalyzatorom | Drive type :: predny pohon | Drive :: manualna/automaticka prevodovka | Refueling :: vstrekovanie do sacieho potrubia/karburator","AUB","BBZ",null,null,null,null,null,null,"ŠKODA > FABIA Combi (6Y5) > 1.4 16V ; 4/2000 - 12/2007 ; 74kW ; 100HP ; AUB BBZ    "]
["ŠKODA","FABIA Combi (6Y5)","1.9 TDI",null,"2000",4,2007,12,74,100,1896,15584,4727,575,"Engine type :: nafta | Engine code :: ATD, AXR | Number of cylinders :: 4 | Valves per cylinder :: 2 | Fuel :: nafta | Drive type :: predny pohon | Refueling :: Priame vstrekovanie","ATD","AXR",null,null,null,null,null,null,"ŠKODA > FABIA Combi (6Y5) > 1.9 TDI ; 4/2000 - 12/2007 ; 74kW ; 100HP ; ATD AXR    "]
["ŠKODA","FABIA Combi (6Y5)","2.0",null,"2000",4,2007,12,85,116,1984,15585,4727,575,"Engine type :: Benzinovy motor | Engine code :: AZL | Number of cylinders :: 4 | Valves per cylinder :: 2 | Fuel :: Benzín | Type of catalyst :: s riadenym (trojcestnym) katalyzatorom | Drive type :: predny pohon | Refueling :: vstrekovanie do sacieho potrubia/karburator","AZL",null,null,null,null,null,null,null,"ŠKODA > FABIA Combi (6Y5) > 2.0 ; 4/2000 - 12/2007 ; 85kW ; 116HP ; AZL     "]
["ŠKODA","FABIA (6Y2)","2.0",null,"1999",12,2008,3,85,116,1984,15586,4383,575,"Engine type :: Benzinovy motor | Engine code :: AZL | Number of cylinders :: 4 | Valves per cylinder :: 2 | Fuel :: Benzín | Type of catalyst :: s riadenym (trojcestnym) katalyzatorom | Drive type :: predny pohon | Refueling :: vstrekovanie do sacieho potrubia/karburator","AZL",null,null,null,null,null,null,null,"ŠKODA > FABIA (6Y2) > 2.0 ; 12/1999 - 3/2008 ; 85kW ; 116HP ; AZL     "]
["ŠKODA","OCTAVIA Combi (1U5)","2.0 4x4",null,"2000",1,2010,12,88,120,1984,15905,3560,575,"Engine type :: Benzinovy motor | Engine code :: ATF | Number of cylinders :: 4 | Valves per cylinder :: 2 | Fuel :: Benzín | Type of catalyst :: s riadenym (trojcestnym) katalyzatorom | Drive type :: pohon vsetkych kolies | Refueling :: vstrekovanie do sacieho potrubia/karburator","ATF",null,null,null,null,null,null,null,"ŠKODA > OCTAVIA Combi (1U5) > 2.0 4x4 ; 1/2000 - 12/2010 ; 88kW ; 120HP ; ATF     "]
["ŠKODA","OCTAVIA (1U2)","1.6",null,"2000",11,2010,12,75,102,1595,15910,1904,575,"Engine type :: Benzinovy motor | Engine code :: AVU, BFQ | Number of cylinders :: 4 | Valves per cylinder :: 2 | Fuel :: Benzín | Type of catalyst :: s riadenym (trojcestnym) katalyzatorom | Drive type :: predny pohon | Refueling :: vstrekovanie do sacieho potrubia/karburator","AVU","BFQ",null,null,null,null,null,null,{"$f":"CONCATENATE(A67,\" > \",B67,\" > \",C67,\" ; \", F67,\"/\",E67,\" - \",H67,\"/\",G67,\" ; \",I67,\"kW\",\" ; \",J67,\"HP\",\" ; \",P67,\" \",Q67,\" \",R67,\" \",S67,\" \",T67,\" \",U67 )","v":"ŠKODA > OCTAVIA (1U2) > 1.6 ; 11/2000 - 12/2010 ; 75kW ; 102HP ; AVU BFQ    "}]
["ŠKODA","OCTAVIA Combi (1U5)","1.4 16V",null,"2000",8,2010,12,55,75,1390,15917,3560,575,"Engine type :: Benzinovy motor | Engine code :: AXP, BCA | Number of cylinders :: 4 | Valves per cylinder :: 4 | Fuel :: Benzín | Type of catalyst :: s riadenym (trojcestnym) katalyzatorom | Drive type :: predny pohon | Refueling :: vstrekovanie do sacieho potrubia/karburator","AXP","BCA",null,null,null,null,null,null,"ŠKODA > OCTAVIA Combi (1U5) > 1.4 16V ; 8/2000 - 12/2010 ; 55kW ; 75HP ; AXP BCA    "]
["ŠKODA","OCTAVIA Combi (1U5)","1.6",null,"2000",9,2010,12,75,102,1595,15918,3560,575,"Engine type :: Benzinovy motor | Engine code :: AVU, BFQ | Number of cylinders :: 4 | Valves per cylinder :: 2 | Fuel :: Benzín | Type of catalyst :: s riadenym (trojcestnym) katalyzatorom | Drive type :: predny pohon | Refueling :: vstrekovanie do sacieho potrubia/karburator","AVU","BFQ",null,null,null,null,null,null,"ŠKODA > OCTAVIA Combi (1U5) > 1.6 ; 9/2000 - 12/2010 ; 75kW ; 102HP ; AVU BFQ    "]
["ŠKODA","FABIA limuzina (6Y3)","1.9 TDI",null,"2000",1,2007,12,74,100,1896,15937,4777,575,"Engine type :: nafta | Engine code :: ATD, AXR | Number of cylinders :: 4 | Valves per cylinder :: 2 | Fuel :: nafta | Drive type :: predny pohon | Refueling :: Priame vstrekovanie","ATD","AXR",null,null,null,null,null,null,"ŠKODA > FABIA limuzina (6Y3) > 1.9 TDI ; 1/2000 - 12/2007 ; 74kW ; 100HP ; ATD AXR    "]
["ŠKODA","FABIA limuzina (6Y3)","1.4 16V",null,"1999",10,2007,12,55,75,1390,15938,4777,575,"Engine type :: Benzinovy motor | Engine code :: AUA, BBY, BKY | Number of cylinders :: 4 | Valves per cylinder :: 4 | Fuel :: Benzín | Type of catalyst :: s riadenym (trojcestnym) katalyzatorom | Drive type :: predny pohon | Drive :: manualna/automaticka prevodovka | Refueling :: vstrekovanie do sacieho potrubia/karburator","AUA","BBY","BKY",null,null,null,null,null,"ŠKODA > FABIA limuzina (6Y3) > 1.4 16V ; 10/1999 - 12/2007 ; 55kW ; 75HP ; AUA BBY BKY   "]
["ŠKODA","CITIGO","1.0",null,"2011",10,null,null,44,60,999,15989,10126,575,"Engine type :: Benzinovy motor | Engine code :: CHYA | Number of cylinders :: 3 | Valves per cylinder :: 4 | Fuel :: Benzín | Drive type :: predny pohon | Refueling :: vstrekovanie do sacieho potrubia/karburator","CHYA",null,null,null,null,null,null,null,"ŠKODA > CITIGO > 1.0 ; 10/2011 - / ; 44kW ; 60HP ; CHYA     "]
["ŠKODA","CITIGO","1.0",null,"2011",10,null,null,55,75,999,15995,10126,575,"Engine type :: Benzinovy motor | Engine code :: CHYB | Number of cylinders :: 3 | Valves per cylinder :: 4 | Fuel :: Benzín | Drive type :: predny pohon | Refueling :: vstrekovanie do sacieho potrubia/karburator","CHYB",null,null,null,null,null,null,null,"ŠKODA > CITIGO > 1.0 ; 10/2011 - / ; 55kW ; 75HP ; CHYB     "]
["ŠKODA","FABIA limuzina (6Y3)","1.9 SDI",null,"1999",11,2007,12,47,64,1896,16058,4777,575,"Engine type :: nafta | Engine code :: ASY | Number of cylinders :: 4 | Valves per cylinder :: 2 | Braking system :: hydraulicky | Fuel :: nafta | Drive type :: predny pohon | Refueling :: Priame vstrekovanie","ASY",null,null,null,null,null,null,null,"ŠKODA > FABIA limuzina (6Y3) > 1.9 SDI ; 11/1999 - 12/2007 ; 47kW ; 64HP ; ASY     "]
["ŠKODA","FABIA limuzina (6Y3)","1.4",null,"2001",7,2003,5,50,68,1397,16059,4777,575,"Engine type :: Benzinovy motor | Engine code :: AME, AQW, ATZ | Number of cylinders :: 4 | Valves per cylinder :: 2 | Braking system :: hydraulicky | Fuel :: Benzín | Type of catalyst :: s riadenym (trojcestnym) katalyzatorom | Drive type :: predny pohon | Refueling :: vstrekovanie do sacieho potrubia/karburator","AME","AQW","ATZ",null,null,null,null,null,"ŠKODA > FABIA limuzina (6Y3) > 1.4 ; 7/2001 - 5/2003 ; 50kW ; 68HP ; AME AQW ATZ   "]
["ŠKODA","FABIA limuzina (6Y3)","1.4 16V",null,"1999",12,2007,12,74,100,1390,16060,4777,575,"Engine type :: Benzinovy motor | Engine code :: AUB, BBZ | Number of cylinders :: 4 | Valves per cylinder :: 4 | Braking system :: hydraulicky | Fuel :: Benzín | Type of catalyst :: s riadenym (trojcestnym) katalyzatorom | Drive type :: predny pohon | Refueling :: vstrekovanie do sacieho potrubia/karburator","AUB","BBZ",null,null,null,null,null,null,"ŠKODA > FABIA limuzina (6Y3) > 1.4 16V ; 12/1999 - 12/2007 ; 74kW ; 100HP ; AUB BBZ    "]
["ŠKODA","OCTAVIA (1U2)","1.8 T 4x4",null,"2001",5,2006,5,110,150,1781,16086,1904,575,"Engine type :: Benzinovy motor | Engine code :: ARX | Number of cylinders :: 4 | Valves per cylinder :: 5 | Braking system :: hydraulicky | Fuel :: Benzín | Type of catalyst :: s riadenym (trojcestnym) katalyzatorom | Drive type :: pohon vsetkych kolies | Refueling :: vstrekovanie do sacieho potrubia/karburator","ARX",null,null,null,null,null,null,null,"ŠKODA > OCTAVIA (1U2) > 1.8 T 4x4 ; 5/2001 - 5/2006 ; 110kW ; 150HP ; ARX     "]
["ŠKODA","OCTAVIA Combi (1U5)","1.8 T 4x4",null,"2001",5,2006,5,110,150,1781,16087,3560,575,"Engine type :: Benzinovy motor | Engine code :: ARX | Number of cylinders :: 4 | Valves per cylinder :: 5 | Braking system :: hydraulicky | Fuel :: Benzín | Type of catalyst :: s riadenym (trojcestnym) katalyzatorom | Drive type :: pohon vsetkych kolies | Refueling :: vstrekovanie do sacieho potrubia/karburator","ARX",null,null,null,null,null,null,null,"ŠKODA > OCTAVIA Combi (1U5) > 1.8 T 4x4 ; 5/2001 - 5/2006 ; 110kW ; 150HP ; ARX     "]
["ŠKODA","OCTAVIA Combi (1U5)","2.0 4x4",null,"2000",8,2004,9,85,116,1984,16088,3560,575,"Engine type :: Benzinovy motor | Engine code :: AZH, AZJ | Number of cylinders :: 4 | Valves per cylinder :: 2 | Braking system :: hydraulicky | Fuel :: Benzín | Type of catalyst :: s riadenym (trojcestnym) katalyzatorom | Drive type :: pohon vsetkych kolies | Refueling :: vstrekovanie do sacieho potrubia/karburator","AZH","AZJ",null,null,null,null,null,null,"ŠKODA > OCTAVIA Combi (1U5) > 2.0 4x4 ; 8/2000 - 9/2004 ; 85kW ; 116HP ; AZH AZJ    "]
["ŠKODA","FABIA limuzina (6Y3)","2.0",null,"1999",12,2007,12,85,116,1984,16290,4777,575,"Engine type :: Benzinovy motor | Engine code :: AZL | Number of cylinders :: 4 | Valves per cylinder :: 2 | Fuel :: Benzín | Type of catalyst :: s riadenym (trojcestnym) katalyzatorom | Drive type :: predny pohon | Refueling :: vstrekovanie do sacieho potrubia/karburator","AZL",null,null,null,null,null,null,null,"ŠKODA > FABIA limuzina (6Y3) > 2.0 ; 12/1999 - 12/2007 ; 85kW ; 116HP ; AZL     "]
["ŠKODA","SUPERB (3U4)","1.8 T",null,"2001",12,2008,3,110,150,1781,16291,4837,575,"Engine type :: Benzinovy motor | Engine code :: AWT | Number of cylinders :: 4 | Valves per cylinder :: 5 | Brake type :: Kotucova brzda | Braking system :: hydraulicky | Fuel :: Benzín | Type of catalyst :: s riadenym (trojcestnym) katalyzatorom | Drive type :: predny pohon | Drive :: 5-stupnova prevodovka | Refueling :: vstrekovanie do sacieho potrubia/karburator","AWT",null,null,null,null,null,null,null,"ŠKODA > SUPERB (3U4) > 1.8 T ; 12/2001 - 3/2008 ; 110kW ; 150HP ; AWT     "]
["ŠKODA","SUPERB (3U4)","2.0",null,"2001",12,2008,3,85,115,1984,16292,4837,575,"Engine type :: Benzinovy motor | Engine code :: AZM | Number of cylinders :: 4 | Valves per cylinder :: 2 | Brake type :: Kotucova brzda | Braking system :: hydraulicky | Fuel :: Benzín | Type of catalyst :: s riadenym (trojcestnym) katalyzatorom | Drive type :: predny pohon | Drive :: 5-stupnova prevodovka | Refueling :: vstrekovanie do sacieho potrubia/karburator","AZM",null,null,null,null,null,null,null,"ŠKODA > SUPERB (3U4) > 2.0 ; 12/2001 - 3/2008 ; 85kW ; 115HP ; AZM     "]
["ŠKODA","SUPERB (3U4)","2.8 V6",null,"2001",12,2008,3,142,193,2771,16293,4837,575,"Engine type :: Benzinovy motor | Engine code :: AMX | Number of cylinders :: 6 | Valves per cylinder :: 5 | Brake type :: Kotucova brzda | Braking system :: hydraulicky | Fuel :: Benzín | Type of catalyst :: s riadenym (trojcestnym) katalyzatorom | Drive type :: predny pohon | Drive :: manualna/automaticka prevodovka | Refueling :: vstrekovanie do sacieho potrubia/karburator","AMX",null,null,null,null,null,null,null,"ŠKODA > SUPERB (3U4) > 2.8 V6 ; 12/2001 - 3/2008 ; 142kW ; 193HP ; AMX     "]
["ŠKODA","SUPERB (3U4)","1.9 TDI",null,"2001",12,2008,3,96,130,1896,16294,4837,575,"Engine type :: nafta | Engine code :: AVF, AWX | Number of cylinders :: 4 | Valves per cylinder :: 2 | Brake type :: Kotucova brzda | Braking system :: hydraulicky | Fuel :: nafta | Drive type :: predny pohon | Drive :: 5-stupnova prevodovka | Refueling :: Priame vstrekovanie","AVF","AWX",null,null,null,null,null,null,"ŠKODA > SUPERB (3U4) > 1.9 TDI ; 12/2001 - 3/2008 ; 96kW ; 130HP ; AVF AWX    "]
["ŠKODA","SUPERB (3U4)","2.5 TDI",null,"2001",12,2003,8,114,155,2496,16295,4837,575,"Engine type :: nafta | Engine code :: AYM | Number of cylinders :: 6 | Valves per cylinder :: 4 | Brake type :: Kotucova brzda | Braking system :: hydraulicky | Fuel :: nafta | Drive type :: predny pohon | Drive :: manualna/automaticka prevodovka | Refueling :: Priame vstrekovanie","AYM",null,null,null,null,null,null,null,"ŠKODA > SUPERB (3U4) > 2.5 TDI ; 12/2001 - 8/2003 ; 114kW ; 155HP ; AYM     "]
["ŠKODA","FABIA (6Y2)","1.2",null,"2002",8,2008,3,40,54,1198,16944,4383,575,"Engine type :: Benzinovy motor | Engine code :: AWY, BMD | Number of cylinders :: 3 | Valves per cylinder :: 2 | Fuel :: Benzín | Type of catalyst :: s riadenym (trojcestnym) katalyzatorom | Drive type :: predny pohon | Refueling :: vstrekovanie do sacieho potrubia/karburator","AWY","BMD",null,null,null,null,null,null,"ŠKODA > FABIA (6Y2) > 1.2 ; 8/2002 - 3/2008 ; 40kW ; 54HP ; AWY BMD    "]
["ŠKODA","OCTAVIA Combi (1U5)","RS 1.8 T",null,"2002",8,2006,1,132,180,1781,16945,3560,575,"Engine type :: Benzinovy motor | Engine code :: AUQ | Number of cylinders :: 4 | Valves per cylinder :: 5 | Fuel :: Benzín | Type of catalyst :: s riadenym (trojcestnym) katalyzatorom | Drive type :: predny pohon | Refueling :: vstrekovanie do sacieho potrubia/karburator","AUQ",null,null,null,null,null,null,null,"ŠKODA > OCTAVIA Combi (1U5) > RS 1.8 T ; 8/2002 - 1/2006 ; 132kW ; 180HP ; AUQ     "]
["ŠKODA","SUPERB (3U4)","1.9 TDI",null,"2002",8,2005,10,74,101,1896,17008,4837,575,"Engine type :: nafta | Engine code :: AVB | Number of cylinders :: 4 | Valves per cylinder :: 2 | Fuel :: nafta | Drive type :: predny pohon | Refueling :: Priame vstrekovanie","AVB",null,null,null,null,null,null,null,"ŠKODA > SUPERB (3U4) > 1.9 TDI ; 8/2002 - 10/2005 ; 74kW ; 101HP ; AVB     "]
["ŠKODA","FABIA Combi (6Y5)","1.4",null,"2000",4,2003,3,44,60,1397,17321,4727,575,"Engine type :: Benzinovy motor | Engine code :: AZE, AZF | Number of cylinders :: 4 | Valves per cylinder :: 2 | Fuel :: Benzín | Drive type :: predny pohon | Refueling :: vstrekovanie do sacieho potrubia/karburator","AZE","AZF",null,null,null,null,null,null,"ŠKODA > FABIA Combi (6Y5) > 1.4 ; 4/2000 - 3/2003 ; 44kW ; 60HP ; AZE AZF    "]
["ŠKODA","FABIA (6Y2)","1.2",null,"2003",1,2008,3,47,64,1198,17393,4383,575,"Engine type :: Benzinovy motor | Engine code :: AZQ, BME | Number of cylinders :: 3 | Valves per cylinder :: 4 | Fuel :: Benzín | Drive type :: predny pohon | Refueling :: vstrekovanie do sacieho potrubia/karburator","AZQ","BME",null,null,null,null,null,null,"ŠKODA > FABIA (6Y2) > 1.2 ; 1/2003 - 3/2008 ; 47kW ; 64HP ; AZQ BME    "]
["ŠKODA","FABIA limuzina (6Y3)","1.2",null,"2003",1,2007,12,47,64,1198,17394,4777,575,"Engine type :: Benzinovy motor | Engine code :: AZQ, BME | Number of cylinders :: 3 | Valves per cylinder :: 4 | Fuel :: Benzín | Drive type :: predny pohon | Refueling :: vstrekovanie do sacieho potrubia/karburator","AZQ","BME",null,null,null,null,null,null,"ŠKODA > FABIA limuzina (6Y3) > 1.2 ; 1/2003 - 12/2007 ; 47kW ; 64HP ; AZQ BME    "]
["ŠKODA","FABIA Combi (6Y5)","1.2",null,"2003",1,2007,12,47,64,1198,17395,4727,575,"Engine type :: Benzinovy motor | Engine code :: AZQ, BME | Number of cylinders :: 3 | Valves per cylinder :: 4 | Fuel :: Benzín | Drive type :: predny pohon | Refueling :: vstrekovanie do sacieho potrubia/karburator","AZQ","BME",null,null,null,null,null,null,"ŠKODA > FABIA Combi (6Y5) > 1.2 ; 1/2003 - 12/2007 ; 47kW ; 64HP ; AZQ BME    "]
["ŠKODA","FABIA (6Y2)","1.9 TDI RS",null,"2003",6,2008,3,96,130,1896,17456,4383,575,"Engine type :: nafta | Engine code :: ASZ, BLT | Number of cylinders :: 4 | Valves per cylinder :: 2 | Fuel :: nafta | Drive type :: predny pohon | Refueling :: Priame vstrekovanie","ASZ","BLT",null,null,null,null,null,null,"ŠKODA > FABIA (6Y2) > 1.9 TDI RS ; 6/2003 - 3/2008 ; 96kW ; 130HP ; ASZ BLT    "]
["ŠKODA","OCTAVIA (1U2)","1.9 TDI",null,"2002",9,2004,9,96,130,1896,17475,1904,575,"Engine type :: nafta | Engine code :: ASZ | Number of cylinders :: 4 | Valves per cylinder :: 2 | Fuel :: nafta | Drive type :: predny pohon | Refueling :: Priame vstrekovanie","ASZ",null,null,null,null,null,null,null,"ŠKODA > OCTAVIA (1U2) > 1.9 TDI ; 9/2002 - 9/2004 ; 96kW ; 130HP ; ASZ     "]
["ŠKODA","OCTAVIA Combi (1U5)","1.9 TDI",null,"2002",9,2004,9,96,130,1896,17476,3560,575,"Engine type :: nafta | Engine code :: ASZ | Number of cylinders :: 4 | Valves per cylinder :: 2 | Fuel :: nafta | Drive type :: predny pohon | Refueling :: Priame vstrekovanie","ASZ",null,null,null,null,null,null,null,"ŠKODA > OCTAVIA Combi (1U5) > 1.9 TDI ; 9/2002 - 9/2004 ; 96kW ; 130HP ; ASZ     "]
["ŠKODA","FABIA limuzina (6Y3)","1.4 TDI",null,"2003",4,2007,12,55,75,1422,17517,4777,575,"Engine type :: nafta | Engine code :: AMF | Number of cylinders :: 3 | Valves per cylinder :: 2 | Fuel :: nafta | Drive type :: predny pohon | Refueling :: Priame vstrekovanie","AMF",null,null,null,null,null,null,null,"ŠKODA > FABIA limuzina (6Y3) > 1.4 TDI ; 4/2003 - 12/2007 ; 55kW ; 75HP ; AMF     "]
["ŠKODA","FABIA Combi (6Y5)","1.4 TDI",null,"2003",4,2007,12,55,75,1422,17518,4727,575,"Engine type :: nafta | Engine code :: AMF | Number of cylinders :: 3 | Valves per cylinder :: 2 | Fuel :: nafta | Drive type :: predny pohon | Refueling :: Priame vstrekovanie","AMF",null,null,null,null,null,null,null,"ŠKODA > FABIA Combi (6Y5) > 1.4 TDI ; 4/2003 - 12/2007 ; 55kW ; 75HP ; AMF     "]
["ŠKODA","FABIA (6Y2)","1.4 TDI",null,"2003",4,2008,3,55,75,1422,17519,4383,575,"Engine type :: nafta | Engine code :: AMF | Number of cylinders :: 3 | Valves per cylinder :: 2 | Fuel :: nafta | Drive type :: predny pohon | Refueling :: Priame vstrekovanie","AMF",null,null,null,null,null,null,null,"ŠKODA > FABIA (6Y2) > 1.4 TDI ; 4/2003 - 3/2008 ; 55kW ; 75HP ; AMF     "]
["ŠKODA","OCTAVIA (1Z3)","1.9 TDI",null,"2004",6,2010,12,77,105,1896,17970,5120,575,"Engine type :: nafta | Engine code :: BJB, BKC, BLS, BXE | Number of cylinders :: 4 | Valves per cylinder :: 2 | Fuel :: nafta | Drive type :: predny pohon | Refueling :: Priame vstrekovanie","BJB","BKC","BLS","BXE",null,null,null,null,"ŠKODA > OCTAVIA (1Z3) > 1.9 TDI ; 6/2004 - 12/2010 ; 77kW ; 105HP ; BJB BKC BLS BXE  "]
["ŠKODA","OCTAVIA (1Z3)","2.0 TDI 16V",null,"2004",2,2013,4,103,140,1968,17971,5120,575,"Engine type :: nafta | Engine code :: BKD, CFHC, CLCB | Number of cylinders :: 4 | Valves per cylinder :: 4 | Fuel :: nafta | Drive type :: predny pohon | Refueling :: Priame vstrekovanie","BKD","CFHC","CLCB",null,null,null,null,null,"ŠKODA > OCTAVIA (1Z3) > 2.0 TDI 16V ; 2/2004 - 4/2013 ; 103kW ; 140HP ; BKD CFHC CLCB   "]
["ŠKODA","OCTAVIA (1Z3)","1.4",null,"2004",5,2006,5,55,75,1390,17972,5120,575,"Engine type :: Benzinovy motor | Engine code :: BCA | Number of cylinders :: 4 | Valves per cylinder :: 4 | Fuel :: Benzín | Drive type :: predny pohon | Refueling :: vstrekovanie do sacieho potrubia/karburator","BCA",null,null,null,null,null,null,null,"ŠKODA > OCTAVIA (1Z3) > 1.4 ; 5/2004 - 5/2006 ; 55kW ; 75HP ; BCA     "]
["ŠKODA","OCTAVIA (1Z3)","1.6",null,"2004",6,2013,6,75,102,1595,17973,5120,575,"Engine type :: Benzinovy motor | Engine code :: BGU, BSE, BSF, CCSA, CMXA | Number of cylinders :: 4 | Valves per cylinder :: 2 | Fuel :: Benzín | Drive type :: predny pohon | Refueling :: vstrekovanie do sacieho potrubia/karburator","BGU","BSE","BSF","CCSA","CMXA",null,null,null,"ŠKODA > OCTAVIA (1Z3) > 1.6 ; 6/2004 - 6/2013 ; 75kW ; 102HP ; BGU BSE BSF CCSA CMXA "]
["ŠKODA","OCTAVIA (1Z3)","1.6 FSI",null,"2004",2,2008,10,85,115,1598,17974,5120,575,"Engine type :: Benzinovy motor | Engine code :: BLF | Number of cylinders :: 4 | Valves per cylinder :: 4 | Fuel :: Benzín | Drive type :: predny pohon | Refueling :: Priame vstrekovanie","BLF",null,null,null,null,null,null,null,"ŠKODA > OCTAVIA (1Z3) > 1.6 FSI ; 2/2004 - 10/2008 ; 85kW ; 115HP ; BLF     "]
["ŠKODA","SUPERB (3U4)","2.5 TDI",null,"2003",6,2008,3,120,163,2496,18005,4837,575,"Engine type :: nafta | Engine code :: BDG | Number of cylinders :: 6 | Valves per cylinder :: 4 | Fuel :: nafta | Drive type :: predny pohon | Refueling :: Priame vstrekovanie","BDG",null,null,null,null,null,null,null,"ŠKODA > SUPERB (3U4) > 2.5 TDI ; 6/2003 - 3/2008 ; 120kW ; 163HP ; BDG     "]
["ŠKODA","FABIA limuzina (6Y3)","1.2",null,"2001",7,2007,12,40,54,1198,18149,4777,575,"Engine type :: Benzinovy motor | Engine code :: AWY, BMD | Number of cylinders :: 3 | Valves per cylinder :: 2 | Fuel :: Benzín | Type of catalyst :: s riadenym (trojcestnym) katalyzatorom | Drive type :: predny pohon | Refueling :: vstrekovanie do sacieho potrubia/karburator","AWY","BMD",null,null,null,null,null,null,"ŠKODA > FABIA limuzina (6Y3) > 1.2 ; 7/2001 - 12/2007 ; 40kW ; 54HP ; AWY BMD    "]
["ŠKODA","FABIA limuzina (6Y3)","1.4",null,"2000",4,2002,8,44,60,1397,18150,4777,575,"Engine type :: Benzinovy motor | Engine code :: AZE, AZF | Number of cylinders :: 4 | Valves per cylinder :: 2 | Fuel :: Benzín | Type of catalyst :: s riadenym (trojcestnym) katalyzatorom | Drive type :: predny pohon | Refueling :: vstrekovanie do sacieho potrubia/karburator","AZE","AZF",null,null,null,null,null,null,"ŠKODA > FABIA limuzina (6Y3) > 1.4 ; 4/2000 - 8/2002 ; 44kW ; 60HP ; AZE AZF    "]
["ŠKODA","OCTAVIA Combi (1Z5)","1.6",null,"2004",9,2013,6,75,102,1595,18246,5162,575,"Engine type :: Benzinovy motor | Engine code :: BGU, BSE, BSF, CCSA, CMXA | Number of cylinders :: 4 | Valves per cylinder :: 2 | Fuel :: Benzín | Drive type :: predny pohon | Refueling :: vstrekovanie do sacieho potrubia/karburator","BGU","BSE","BSF","CCSA","CMXA",null,null,null,"ŠKODA > OCTAVIA Combi (1Z5) > 1.6 ; 9/2004 - 6/2013 ; 75kW ; 102HP ; BGU BSE BSF CCSA CMXA "]
["ŠKODA","OCTAVIA Combi (1Z5)","1.6 FSI",null,"2004",2,2008,10,85,115,1598,18247,5162,575,"Engine type :: Benzinovy motor | Engine code :: BLF | Number of cylinders :: 4 | Valves per cylinder :: 4 | Fuel :: Benzín | Drive type :: predny pohon | Refueling :: Priame vstrekovanie","BLF",null,null,null,null,null,null,null,"ŠKODA > OCTAVIA Combi (1Z5) > 1.6 FSI ; 2/2004 - 10/2008 ; 85kW ; 115HP ; BLF     "]
["ŠKODA","OCTAVIA Combi (1Z5)","1.9 TDI",null,"2004",9,2010,12,77,105,1896,18248,5162,575,"Engine type :: nafta | Engine code :: BJB, BKC, BLS, BXE | Number of cylinders :: 4 | Valves per cylinder :: 2 | Fuel :: nafta | Drive type :: predny pohon | Refueling :: Priame vstrekovanie","BJB","BKC","BLS","BXE",null,null,null,null,"ŠKODA > OCTAVIA Combi (1Z5) > 1.9 TDI ; 9/2004 - 12/2010 ; 77kW ; 105HP ; BJB BKC BLS BXE  "]
["ŠKODA","OCTAVIA Combi (1Z5)","2.0 TDI 16V",null,"2004",2,2013,5,103,140,1968,18249,5162,575,"Engine type :: nafta | Engine code :: BKD, CFHC, CLCB | Number of cylinders :: 4 | Valves per cylinder :: 4 | Fuel :: nafta | Drive type :: predny pohon | Refueling :: Priame vstrekovanie","BKD","CFHC","CLCB",null,null,null,null,null,"ŠKODA > OCTAVIA Combi (1Z5) > 2.0 TDI 16V ; 2/2004 - 5/2013 ; 103kW ; 140HP ; BKD CFHC CLCB   "]
["ŠKODA","OCTAVIA (1Z3)","2.0 FSI",null,"2004",11,2008,10,110,150,1984,18478,5120,575,"Engine type :: Benzinovy motor | Engine code :: BLR, BLY, BVY, BVZ | Number of cylinders :: 4 | Valves per cylinder :: 4 | Fuel :: Benzín | Drive type :: predny pohon | Refueling :: Priame vstrekovanie","BLR","BLY","BVY","BVZ",null,null,null,null,"ŠKODA > OCTAVIA (1Z3) > 2.0 FSI ; 11/2004 - 10/2008 ; 110kW ; 150HP ; BLR BLY BVY BVZ  "]
["ŠKODA","OCTAVIA Combi (1Z5)","2.0 FSI",null,"2004",11,2008,10,110,150,1984,18479,5162,575,"Engine type :: Benzinovy motor | Engine code :: BLR, BLY, BVY, BVZ | Number of cylinders :: 4 | Valves per cylinder :: 4 | Fuel :: Benzín | Drive type :: predny pohon | Refueling :: Priame vstrekovanie","BLR","BLY","BVY","BVZ",null,null,null,null,"ŠKODA > OCTAVIA Combi (1Z5) > 2.0 FSI ; 11/2004 - 10/2008 ; 110kW ; 150HP ; BLR BLY BVY BVZ  "]
["ŠKODA","OCTAVIA Combi (1Z5)","2.0 FSI 4x4",null,"2004",11,2008,10,110,150,1984,18480,5162,575,"Engine type :: Benzinovy motor | Engine code :: BLX, BVX | Number of cylinders :: 4 | Valves per cylinder :: 4 | Fuel :: Benzín | Drive type :: pohon vsetkych kolies | Refueling :: Priame vstrekovanie","BLX","BVX",null,null,null,null,null,null,"ŠKODA > OCTAVIA Combi (1Z5) > 2.0 FSI 4x4 ; 11/2004 - 10/2008 ; 110kW ; 150HP ; BLX BVX    "]
["ŠKODA","OCTAVIA Combi (1Z5)","1.9 TDI 4x4",null,"2004",11,2010,12,77,105,1896,18481,5162,575,"Engine type :: nafta | Engine code :: BKC, BLS, BXE | Number of cylinders :: 4 | Valves per cylinder :: 2 | Fuel :: nafta | Drive type :: pohon vsetkych kolies | Refueling :: Priame vstrekovanie","BKC","BLS","BXE",null,null,null,null,null,"ŠKODA > OCTAVIA Combi (1Z5) > 1.9 TDI 4x4 ; 11/2004 - 12/2010 ; 77kW ; 105HP ; BKC BLS BXE   "]
["ŠKODA","FABIA (6Y2)","1.4 TDI",null,"2005",10,2008,3,51,70,1422,19225,4383,575,"Engine type :: nafta | Engine code :: BNM | Number of cylinders :: 3 | Valves per cylinder :: 2 | Fuel :: nafta | Drive type :: predny pohon | Refueling :: Priame vstrekovanie","BNM",null,null,null,null,null,null,null,"ŠKODA > FABIA (6Y2) > 1.4 TDI ; 10/2005 - 3/2008 ; 51kW ; 70HP ; BNM     "]
["ŠKODA","FABIA (6Y2)","1.4 TDI",null,"2005",10,2008,3,59,80,1422,19226,4383,575,"Engine type :: nafta | Engine code :: BNV | Number of cylinders :: 3 | Valves per cylinder :: 2 | Fuel :: nafta | Drive type :: predny pohon | Refueling :: Priame vstrekovanie","BNV",null,null,null,null,null,null,null,"ŠKODA > FABIA (6Y2) > 1.4 TDI ; 10/2005 - 3/2008 ; 59kW ; 80HP ; BNV     "]
["ŠKODA","FABIA limuzina (6Y3)","1.4 TDI",null,"2005",10,2007,12,51,70,1422,19227,4777,575,"Engine type :: nafta | Engine code :: BNM | Number of cylinders :: 3 | Valves per cylinder :: 2 | Fuel :: nafta | Drive type :: predny pohon | Refueling :: Priame vstrekovanie","BNM",null,null,null,null,null,null,null,"ŠKODA > FABIA limuzina (6Y3) > 1.4 TDI ; 10/2005 - 12/2007 ; 51kW ; 70HP ; BNM     "]
["ŠKODA","FABIA limuzina (6Y3)","1.4 TDI",null,"2005",10,2007,12,59,80,1422,19228,4777,575,"Engine type :: nafta | Engine code :: BNV | Number of cylinders :: 3 | Valves per cylinder :: 2 | Fuel :: nafta | Drive type :: predny pohon | Refueling :: Priame vstrekovanie","BNV",null,null,null,null,null,null,null,"ŠKODA > FABIA limuzina (6Y3) > 1.4 TDI ; 10/2005 - 12/2007 ; 59kW ; 80HP ; BNV     "]
["ŠKODA","FABIA Combi (6Y5)","1.4 TDI",null,"2005",10,2007,12,51,70,1422,19229,4727,575,"Engine type :: nafta | Engine code :: BNM | Number of cylinders :: 3 | Valves per cylinder :: 2 | Fuel :: nafta | Drive type :: predny pohon | Refueling :: Priame vstrekovanie","BNM",null,null,null,null,null,null,null,"ŠKODA > FABIA Combi (6Y5) > 1.4 TDI ; 10/2005 - 12/2007 ; 51kW ; 70HP ; BNM     "]
["ŠKODA","FABIA Combi (6Y5)","1.4 TDI",null,"2005",10,2007,12,59,80,1422,19230,4727,575,"Engine type :: nafta | Engine code :: BNV | Number of cylinders :: 3 | Valves per cylinder :: 2 | Fuel :: nafta | Drive type :: predny pohon | Refueling :: Priame vstrekovanie","BNV",null,null,null,null,null,null,null,"ŠKODA > FABIA Combi (6Y5) > 1.4 TDI ; 10/2005 - 12/2007 ; 59kW ; 80HP ; BNV     "]
["ŠKODA","FABIA Combi (6Y5)","1.2",null,"2001",7,2007,12,40,54,1198,19270,4727,575,"Engine type :: Benzinovy motor | Engine code :: AWY, BMD | Number of cylinders :: 3 | Valves per cylinder :: 2 | Fuel :: Benzín | Type of catalyst :: s riadenym (trojcestnym) katalyzatorom | Drive type :: predny pohon | Refueling :: vstrekovanie do sacieho potrubia/karburator","AWY","BMD",null,null,null,null,null,null,"ŠKODA > FABIA Combi (6Y5) > 1.2 ; 7/2001 - 12/2007 ; 40kW ; 54HP ; AWY BMD    "]
["ŠKODA","ROOMSTER (5J)","1.2",null,"2006",5,2007,1,47,64,1198,19273,5507,575,"Engine type :: Benzinovy motor | Engine code :: BME | Number of cylinders :: 3 | Valves per cylinder :: 4 | Fuel :: Benzín | Drive type :: predny pohon | Refueling :: vstrekovanie do sacieho potrubia/karburator","BME",null,null,null,null,null,null,null,"ŠKODA > ROOMSTER (5J) > 1.2 ; 5/2006 - 1/2007 ; 47kW ; 64HP ; BME     "]
["ŠKODA","ROOMSTER (5J)","1.4",null,"2006",9,2015,5,63,86,1390,19274,5507,575,"Engine type :: Benzinovy motor | Engine code :: BXW, CGGB | Number of cylinders :: 4 | Valves per cylinder :: 4 | Fuel :: Benzín | Drive type :: predny pohon | Refueling :: vstrekovanie do sacieho potrubia/karburator","BXW","CGGB",null,null,null,null,null,null,"ŠKODA > ROOMSTER (5J) > 1.4 ; 9/2006 - 5/2015 ; 63kW ; 86HP ; BXW CGGB    "]
["ŠKODA","ROOMSTER (5J)","1.6",null,"2006",9,2015,5,77,105,1598,19275,5507,575,"Engine type :: Benzinovy motor | Engine code :: BTS, CFNA | Number of cylinders :: 4 | Valves per cylinder :: 4 | Fuel :: Benzín | Drive type :: predny pohon | Refueling :: vstrekovanie do sacieho potrubia/karburator","BTS","CFNA",null,null,null,null,null,null,"ŠKODA > ROOMSTER (5J) > 1.6 ; 9/2006 - 5/2015 ; 77kW ; 105HP ; BTS CFNA    "]
["ŠKODA","ROOMSTER (5J)","1.4 TDI",null,"2006",7,2010,3,51,70,1422,19276,5507,575,"Engine type :: nafta | Engine code :: BNM | Number of cylinders :: 3 | Valves per cylinder :: 2 | Fuel :: nafta | Drive type :: predny pohon | Refueling :: Priame vstrekovanie","BNM",null,null,null,null,null,null,null,"ŠKODA > ROOMSTER (5J) > 1.4 TDI ; 7/2006 - 3/2010 ; 51kW ; 70HP ; BNM     "]
["ŠKODA","ROOMSTER (5J)","1.4 TDI",null,"2006",9,2010,3,59,80,1422,19277,5507,575,"Engine type :: nafta | Engine code :: BMS, BNV | Number of cylinders :: 3 | Valves per cylinder :: 2 | Fuel :: nafta | Drive type :: predny pohon | Refueling :: Priame vstrekovanie","BMS","BNV",null,null,null,null,null,null,"ŠKODA > ROOMSTER (5J) > 1.4 TDI ; 9/2006 - 3/2010 ; 59kW ; 80HP ; BMS BNV    "]
["ŠKODA","ROOMSTER (5J)","1.9 TDI",null,"2006",9,2010,3,77,105,1896,19278,5507,575,"Engine type :: nafta | Engine code :: BLS, BSW | Number of cylinders :: 4 | Valves per cylinder :: 2 | Fuel :: nafta | Drive type :: predny pohon | Refueling :: Priame vstrekovanie","BLS","BSW",null,null,null,null,null,null,"ŠKODA > ROOMSTER (5J) > 1.9 TDI ; 9/2006 - 3/2010 ; 77kW ; 105HP ; BLS BSW    "]
["ŠKODA","OCTAVIA (1Z3)","2.0 RS",null,"2005",10,2013,2,147,200,1984,19458,5120,575,"Engine type :: Benzinovy motor | Engine code :: BWA, CCZA | Number of cylinders :: 4 | Valves per cylinder :: 4 | Fuel :: Benzín | Drive type :: predny pohon | Refueling :: Priame vstrekovanie","BWA","CCZA",null,null,null,null,null,null,"ŠKODA > OCTAVIA (1Z3) > 2.0 RS ; 10/2005 - 2/2013 ; 147kW ; 200HP ; BWA CCZA    "]
["ŠKODA","OCTAVIA Combi (1Z5)","2.0 RS",null,"2005",10,2013,2,147,200,1984,19459,5162,575,"Engine type :: Benzinovy motor | Engine code :: BWA, CCZA | Number of cylinders :: 4 | Valves per cylinder :: 4 | Fuel :: Benzín | Drive type :: predny pohon | Refueling :: Priame vstrekovanie","BWA","CCZA",null,null,null,null,null,null,"ŠKODA > OCTAVIA Combi (1Z5) > 2.0 RS ; 10/2005 - 2/2013 ; 147kW ; 200HP ; BWA CCZA    "]
["ŠKODA","OCTAVIA (1Z3)","1.4",null,"2004",6,2013,4,59,80,1390,19820,5120,575,"Engine type :: Benzinovy motor | Engine code :: BUD, CGGA | Number of cylinders :: 4 | Valves per cylinder :: 4 | Fuel :: Benzín | Drive type :: predny pohon | Refueling :: vstrekovanie do sacieho potrubia/karburator","BUD","CGGA",null,null,null,null,null,null,"ŠKODA > OCTAVIA (1Z3) > 1.4 ; 6/2004 - 4/2013 ; 59kW ; 80HP ; BUD CGGA    "]
["ŠKODA","OCTAVIA Combi (1Z5)","2.0 TDI 4x4",null,"2006",7,2010,5,103,140,1968,19821,5162,575,"Engine type :: nafta | Engine code :: BMM | Number of cylinders :: 4 | Valves per cylinder :: 2 | Fuel :: nafta | Drive type :: pohon vsetkych kolies | Refueling :: Priame vstrekovanie","BMM",null,null,null,null,null,null,null,{"$f":"CONCATENATE(A131,\" > \",B131,\" > \",C131,\" ; \", F131,\"/\",E131,\" - \",H131,\"/\",G131,\" ; \",I131,\"kW\",\" ; \",J131,\"HP\",\" ; \",P131,\" \",Q131,\" \",R131,\" \",S131,\" \",T131,\" \",U131 )","v":"ŠKODA > OCTAVIA Combi (1Z5) > 2.0 TDI 4x4 ; 7/2006 - 5/2010 ; 103kW ; 140HP ; BMM     "}]
["ŠKODA","FABIA limuzina (6Y3)","1.4 16V",null,"2006",4,2007,12,59,80,1390,19901,4777,575,"Engine type :: Benzinovy motor | Engine code :: BUD | Number of cylinders :: 4 | Valves per cylinder :: 4 | Fuel :: Benzín | Drive type :: predny pohon | Refueling :: vstrekovanie do sacieho potrubia/karburator","BUD",null,null,null,null,null,null,null,"ŠKODA > FABIA limuzina (6Y3) > 1.4 16V ; 4/2006 - 12/2007 ; 59kW ; 80HP ; BUD     "]
["ŠKODA","FABIA Combi (6Y5)","1.4 16V",null,"2006",4,2007,12,59,80,1390,19905,4727,575,"Engine type :: Benzinovy motor | Engine code :: BUD | Number of cylinders :: 4 | Valves per cylinder :: 4 | Fuel :: Benzín | Drive type :: predny pohon | Refueling :: vstrekovanie do sacieho potrubia/karburator","BUD",null,null,null,null,null,null,null,"ŠKODA > FABIA Combi (6Y5) > 1.4 16V ; 4/2006 - 12/2007 ; 59kW ; 80HP ; BUD     "]
["ŠKODA","OCTAVIA (1Z3)","2.0 TDI",null,"2005",11,2010,5,103,140,1968,20001,5120,575,"Engine type :: nafta | Engine code :: BMM | Number of cylinders :: 4 | Valves per cylinder :: 2 | Fuel :: nafta | Drive type :: predny pohon | Refueling :: Priame vstrekovanie","BMM",null,null,null,null,null,null,null,"ŠKODA > OCTAVIA (1Z3) > 2.0 TDI ; 11/2005 - 5/2010 ; 103kW ; 140HP ; BMM     "]
["ŠKODA","OCTAVIA Combi (1Z5)","2.0 TDI",null,"2005",11,2010,5,103,140,1968,20002,5162,575,"Engine type :: nafta | Engine code :: BMM | Number of cylinders :: 4 | Valves per cylinder :: 2 | Fuel :: nafta | Drive type :: predny pohon | Refueling :: Priame vstrekovanie","BMM",null,null,null,null,null,null,null,"ŠKODA > OCTAVIA Combi (1Z5) > 2.0 TDI ; 11/2005 - 5/2010 ; 103kW ; 140HP ; BMM     "]
["ŠKODA","SUPERB (3U4)","2.0 TDI",null,"2005",10,2008,3,103,140,1968,20003,4837,575,"Engine type :: nafta | Engine code :: BSS | Number of cylinders :: 4 | Valves per cylinder :: 2 | Fuel :: nafta | Drive type :: predny pohon | Refueling :: Priame vstrekovanie","BSS",null,null,null,null,null,null,null,"ŠKODA > SUPERB (3U4) > 2.0 TDI ; 10/2005 - 3/2008 ; 103kW ; 140HP ; BSS     "]
["ŠKODA","FABIA","1.2",null,"2006",12,2014,12,44,60,1198,22944,6363,575,"Engine type :: Benzinovy motor | Engine code :: BBM, CHFA | Number of cylinders :: 3 | Valves per cylinder :: 2 | Fuel :: Benzín | Drive type :: predny pohon | Refueling :: vstrekovanie do sacieho potrubia/karburator","BBM","CHFA",null,null,null,null,null,null,"ŠKODA > FABIA > 1.2 ; 12/2006 - 12/2014 ; 44kW ; 60HP ; BBM CHFA    "]
["ŠKODA","FABIA","1.2",null,"2007",1,2014,12,51,70,1198,22945,6363,575,"Engine type :: Benzinovy motor | Engine code :: BZG, CEVA, CGPA, CHTA | Number of cylinders :: 3 | Valves per cylinder :: 4 | Fuel :: Benzín | Drive type :: predny pohon | Refueling :: vstrekovanie do sacieho potrubia/karburator","BZG","CEVA","CGPA","CHTA",null,null,null,null,"ŠKODA > FABIA > 1.2 ; 1/2007 - 12/2014 ; 51kW ; 70HP ; BZG CEVA CGPA CHTA  "]
["ŠKODA","FABIA","1.4",null,"2007",1,2014,12,63,86,1390,22946,6363,575,"Engine type :: Benzinovy motor | Engine code :: BXW, CGGB | Number of cylinders :: 4 | Valves per cylinder :: 4 | Fuel :: Benzín | Drive type :: predny pohon | Refueling :: vstrekovanie do sacieho potrubia/karburator","BXW","CGGB",null,null,null,null,null,null,"ŠKODA > FABIA > 1.4 ; 1/2007 - 12/2014 ; 63kW ; 86HP ; BXW CGGB    "]
["ŠKODA","FABIA","1.6",null,"2007",4,2014,12,77,105,1598,22947,6363,575,"Engine type :: Benzinovy motor | Engine code :: BTS, CFNA | Number of cylinders :: 4 | Valves per cylinder :: 4 | Fuel :: Benzín | Drive type :: predny pohon | Refueling :: vstrekovanie do sacieho potrubia/karburator","BTS","CFNA",null,null,null,null,null,null,"ŠKODA > FABIA > 1.6 ; 4/2007 - 12/2014 ; 77kW ; 105HP ; BTS CFNA    "]
["ŠKODA","FABIA","1.4 TDI",null,"2007",2,2010,3,51,70,1422,22948,6363,575,"Engine type :: nafta | Engine code :: BNM | Number of cylinders :: 3 | Valves per cylinder :: 2 | Fuel :: nafta | Drive type :: predny pohon | Refueling :: Priame vstrekovanie","BNM",null,null,null,null,null,null,null,"ŠKODA > FABIA > 1.4 TDI ; 2/2007 - 3/2010 ; 51kW ; 70HP ; BNM     "]
["ŠKODA","FABIA","1.4 TDI",null,"2007",1,2010,3,59,80,1422,22949,6363,575,"Engine type :: nafta | Engine code :: BMS, BNV | Number of cylinders :: 3 | Valves per cylinder :: 2 | Fuel :: nafta | Drive type :: predny pohon | Refueling :: Priame vstrekovanie","BMS","BNV",null,null,null,null,null,null,"ŠKODA > FABIA > 1.4 TDI ; 1/2007 - 3/2010 ; 59kW ; 80HP ; BMS BNV    "]
["ŠKODA","FABIA","1.9 TDI",null,"2007",4,2010,3,77,105,1896,22950,6363,575,"Engine type :: nafta | Engine code :: BLS, BSW | Number of cylinders :: 4 | Valves per cylinder :: 2 | Fuel :: nafta | Drive type :: predny pohon | Refueling :: Priame vstrekovanie","BLS","BSW",null,null,null,null,null,null,"ŠKODA > FABIA > 1.9 TDI ; 4/2007 - 3/2010 ; 77kW ; 105HP ; BLS BSW    "]
["ŠKODA","FABIA Combi","1.2",null,"2007",10,2014,12,51,70,1198,23165,6395,575,"Engine type :: Benzinovy motor | Engine code :: BZG, CEVA, CGPA, CHTA | Number of cylinders :: 3 | Valves per cylinder :: 4 | Fuel :: Benzín | Drive type :: predny pohon | Refueling :: vstrekovanie do sacieho potrubia/karburator","BZG","CEVA","CGPA","CHTA",null,null,null,null,"ŠKODA > FABIA Combi > 1.2 ; 10/2007 - 12/2014 ; 51kW ; 70HP ; BZG CEVA CGPA CHTA  "]
["ŠKODA","FABIA Combi","1.4",null,"2007",10,2014,12,63,86,1390,23166,6395,575,"Engine type :: Benzinovy motor | Engine code :: BXW, CGGB | Number of cylinders :: 4 | Valves per cylinder :: 4 | Fuel :: Benzín | Drive type :: predny pohon | Refueling :: vstrekovanie do sacieho potrubia/karburator","BXW","CGGB",null,null,null,null,null,null,"ŠKODA > FABIA Combi > 1.4 ; 10/2007 - 12/2014 ; 63kW ; 86HP ; BXW CGGB    "]
["ŠKODA","FABIA Combi","1.6",null,"2007",10,2014,12,77,105,1598,23167,6395,575,"Engine type :: Benzinovy motor | Engine code :: BTS, CFNA | Number of cylinders :: 4 | Valves per cylinder :: 4 | Fuel :: Benzín | Drive type :: predny pohon | Refueling :: vstrekovanie do sacieho potrubia/karburator","BTS","CFNA",null,null,null,null,null,null,"ŠKODA > FABIA Combi > 1.6 ; 10/2007 - 12/2014 ; 77kW ; 105HP ; BTS CFNA    "]
["ŠKODA","FABIA Combi","1.4 TDI",null,"2007",10,2010,3,51,70,1422,23168,6395,575,"Engine type :: nafta | Engine code :: BNM | Number of cylinders :: 3 | Valves per cylinder :: 2 | Fuel :: nafta | Drive type :: predny pohon | Refueling :: Priame vstrekovanie","BNM",null,null,null,null,null,null,null,"ŠKODA > FABIA Combi > 1.4 TDI ; 10/2007 - 3/2010 ; 51kW ; 70HP ; BNM     "]
["ŠKODA","FABIA Combi","1.4 TDI",null,"2007",10,2010,3,59,80,1422,23169,6395,575,"Engine type :: nafta | Engine code :: BMS, BNV | Number of cylinders :: 3 | Valves per cylinder :: 2 | Fuel :: nafta | Drive type :: predny pohon | Refueling :: Priame vstrekovanie","BMS","BNV",null,null,null,null,null,null,"ŠKODA > FABIA Combi > 1.4 TDI ; 10/2007 - 3/2010 ; 59kW ; 80HP ; BMS BNV    "]
["ŠKODA","FABIA Combi","1.9 TDI",null,"2007",10,2010,3,77,105,1896,23170,6395,575,"Engine type :: nafta | Engine code :: BLS, BSW | Number of cylinders :: 4 | Valves per cylinder :: 2 | Fuel :: nafta | Drive type :: predny pohon | Refueling :: Priame vstrekovanie","BLS","BSW",null,null,null,null,null,null,"ŠKODA > FABIA Combi > 1.9 TDI ; 10/2007 - 3/2010 ; 77kW ; 105HP ; BLS BSW    "]
["ŠKODA","OCTAVIA Combi (1U5)","1.9 TDI",null,"2000",8,2010,12,74,100,1896,23268,3560,575,"Engine type :: nafta | Engine code :: AXR | Number of cylinders :: 4 | Valves per cylinder :: 2 | Fuel :: nafta | Drive type :: predny pohon | Refueling :: Priame vstrekovanie","AXR",null,null,null,null,null,null,null,"ŠKODA > OCTAVIA Combi (1U5) > 1.9 TDI ; 8/2000 - 12/2010 ; 74kW ; 100HP ; AXR     "]
["ŠKODA","OCTAVIA Combi (1Z5)","1.4",null,"2006",5,2013,6,59,80,1390,23290,5162,575,"Engine type :: Benzinovy motor | Engine code :: BUD, CGGA | Number of cylinders :: 4 | Valves per cylinder :: 4 | Fuel :: Benzín | Drive type :: predny pohon | Refueling :: vstrekovanie do sacieho potrubia/karburator","BUD","CGGA",null,null,null,null,null,null,"ŠKODA > OCTAVIA Combi (1Z5) > 1.4 ; 5/2006 - 6/2013 ; 59kW ; 80HP ; BUD CGGA    "]
["ŠKODA","OCTAVIA (1U2)","1.9 TDI",null,"2005",10,2010,12,74,100,1896,23291,1904,575,"Engine type :: nafta | Engine code :: AXR | Number of cylinders :: 4 | Valves per cylinder :: 2 | Fuel :: nafta | Drive type :: predny pohon | Refueling :: Priame vstrekovanie","AXR",null,null,null,null,null,null,null,"ŠKODA > OCTAVIA (1U2) > 1.9 TDI ; 10/2005 - 12/2010 ; 74kW ; 100HP ; AXR     "]
["ŠKODA","ROOMSTER (5J)","1.2",null,"2007",1,2015,5,51,70,1198,23292,5507,575,"Engine type :: Benzinovy motor | Engine code :: BZG, CGPA | Number of cylinders :: 3 | Valves per cylinder :: 4 | Fuel :: Benzín | Drive type :: predny pohon | Refueling :: vstrekovanie do sacieho potrubia/karburator","BZG","CGPA",null,null,null,null,null,null,"ŠKODA > ROOMSTER (5J) > 1.2 ; 1/2007 - 5/2015 ; 51kW ; 70HP ; BZG CGPA    "]
["ŠKODA","SUPERB (3U4)","1.9 TDI",null,"2007",1,2008,3,85,115,1896,23293,4837,575,"Engine type :: nafta | Engine code :: BPZ | Number of cylinders :: 4 | Valves per cylinder :: 2 | Fuel :: nafta | Drive type :: predny pohon | Refueling :: Priame vstrekovanie","BPZ",null,null,null,null,null,null,null,"ŠKODA > SUPERB (3U4) > 1.9 TDI ; 1/2007 - 3/2008 ; 85kW ; 115HP ; BPZ     "]
["ŠKODA","SUPERB (3U4)","1.9 TDI",null,"2005",10,2007,5,77,105,1896,23294,4837,575,"Engine type :: nafta | Engine code :: BSV | Number of cylinders :: 4 | Valves per cylinder :: 2 | Fuel :: nafta | Drive type :: predny pohon | Refueling :: Priame vstrekovanie","BSV",null,null,null,null,null,null,null,"ŠKODA > SUPERB (3U4) > 1.9 TDI ; 10/2005 - 5/2007 ; 77kW ; 105HP ; BSV     "]
["ŠKODA","OCTAVIA (1Z3)","2.0 TDI RS",null,"2006",4,2013,2,125,170,1968,26623,5120,575,"Engine type :: nafta | Engine code :: BMN, CEGA | Number of cylinders :: 4 | Valves per cylinder :: 4 | Fuel :: nafta | Drive type :: predny pohon | Refueling :: Priame vstrekovanie","BMN","CEGA",null,null,null,null,null,null,"ŠKODA > OCTAVIA (1Z3) > 2.0 TDI RS ; 4/2006 - 2/2013 ; 125kW ; 170HP ; BMN CEGA    "]
["ŠKODA","OCTAVIA Combi (1Z5)","2.0 TDI RS",null,"2006",4,2013,2,125,170,1968,26624,5162,575,"Engine type :: nafta | Engine code :: BMN, CEGA | Number of cylinders :: 4 | Valves per cylinder :: 4 | Fuel :: nafta | Drive type :: predny pohon | Refueling :: Priame vstrekovanie","BMN","CEGA",null,null,null,null,null,null,"ŠKODA > OCTAVIA Combi (1Z5) > 2.0 TDI RS ; 4/2006 - 2/2013 ; 125kW ; 170HP ; BMN CEGA    "]
["ŠKODA","FABIA Combi","1.2",null,"2007",10,2014,11,44,60,1198,28175,6395,575,"Engine type :: Benzinovy motor | Engine code :: BBM, CHFA | Number of cylinders :: 3 | Valves per cylinder :: 2 | Fuel :: Benzín | Drive type :: predny pohon | Refueling :: vstrekovanie do sacieho potrubia/karburator","BBM","CHFA",null,null,null,null,null,null,"ŠKODA > FABIA Combi > 1.2 ; 10/2007 - 11/2014 ; 44kW ; 60HP ; BBM CHFA    "]
["ŠKODA","OCTAVIA (1Z3)","1.8 TSI",null,"2007",6,2013,4,118,160,1798,28203,5120,575,"Engine type :: Benzinovy motor | Engine code :: BZB, CDAA | Number of cylinders :: 4 | Valves per cylinder :: 4 | Fuel :: Benzín | Drive type :: predny pohon | Refueling :: Priame vstrekovanie","BZB","CDAA",null,null,null,null,null,null,"ŠKODA > OCTAVIA (1Z3) > 1.8 TSI ; 6/2007 - 4/2013 ; 118kW ; 160HP ; BZB CDAA    "]
["ŠKODA","OCTAVIA Combi (1Z5)","1.8 TSI",null,"2007",6,2013,4,118,160,1798,28204,5162,575,"Engine type :: Benzinovy motor | Engine code :: BZB, CDAA | Number of cylinders :: 4 | Valves per cylinder :: 4 | Fuel :: Benzín | Drive type :: predny pohon | Refueling :: Priame vstrekovanie","BZB","CDAA",null,null,null,null,null,null,"ŠKODA > OCTAVIA Combi (1Z5) > 1.8 TSI ; 6/2007 - 4/2013 ; 118kW ; 160HP ; BZB CDAA    "]
["ŠKODA","OCTAVIA (1Z3)","2.0 TDI",null,"2004",2,2010,5,100,136,1968,28206,5120,575,"Engine type :: nafta | Engine code :: AZV | Number of cylinders :: 4 | Valves per cylinder :: 4 | Fuel :: nafta | Drive type :: predny pohon | Refueling :: Priame vstrekovanie","AZV",null,null,null,null,null,null,null,"ŠKODA > OCTAVIA (1Z3) > 2.0 TDI ; 2/2004 - 5/2010 ; 100kW ; 136HP ; AZV     "]
["ŠKODA","OCTAVIA Combi (1Z5)","2.0 TDI 16V",null,"2004",2,2010,5,100,136,1968,28207,5162,575,"Engine type :: nafta | Engine code :: AZV | Number of cylinders :: 4 | Valves per cylinder :: 4 | Fuel :: nafta | Drive type :: predny pohon | Refueling :: Priame vstrekovanie","AZV",null,null,null,null,null,null,null,"ŠKODA > OCTAVIA Combi (1Z5) > 2.0 TDI 16V ; 2/2004 - 5/2010 ; 100kW ; 136HP ; AZV     "]
["ŠKODA","SUPERB (3T4)","1.4 TSI",null,"2008",7,2015,5,92,125,1390,28252,7588,575,"Engine type :: Benzinovy motor | Engine code :: CAXC | Number of cylinders :: 4 | Valves per cylinder :: 4 | Fuel :: Benzín | Drive type :: predny pohon | Refueling :: Priame vstrekovanie","CAXC",null,null,null,null,null,null,null,"ŠKODA > SUPERB (3T4) > 1.4 TSI ; 7/2008 - 5/2015 ; 92kW ; 125HP ; CAXC     "]
["ŠKODA","SUPERB (3T4)","1.8 TSI",null,"2008",3,2015,5,118,160,1798,28253,7588,575,"Engine type :: Benzinovy motor | Engine code :: BZB, CDAA | Number of cylinders :: 4 | Valves per cylinder :: 4 | Fuel :: Benzín | Drive type :: predny pohon | Refueling :: Priame vstrekovanie","BZB","CDAA",null,null,null,null,null,null,"ŠKODA > SUPERB (3T4) > 1.8 TSI ; 3/2008 - 5/2015 ; 118kW ; 160HP ; BZB CDAA    "]
["ŠKODA","SUPERB (3T4)","1.8 TSI 4x4",null,"2008",11,2015,5,118,160,1798,28254,7588,575,"Engine type :: Benzinovy motor | Engine code :: CDAA | Number of cylinders :: 4 | Valves per cylinder :: 4 | Fuel :: Benzín | Drive type :: pohon vsetkych kolies | Refueling :: Priame vstrekovanie","CDAA",null,null,null,null,null,null,null,"ŠKODA > SUPERB (3T4) > 1.8 TSI 4x4 ; 11/2008 - 5/2015 ; 118kW ; 160HP ; CDAA     "]
["ŠKODA","SUPERB (3T4)","1.9 TDI",null,"2008",3,2010,11,77,105,1896,28255,7588,575,"Engine type :: nafta | Engine code :: BLS, BXE | Number of cylinders :: 4 | Valves per cylinder :: 2 | Fuel :: nafta | Drive type :: predny pohon | Refueling :: Priame vstrekovanie","BLS","BXE",null,null,null,null,null,null,"ŠKODA > SUPERB (3T4) > 1.9 TDI ; 3/2008 - 11/2010 ; 77kW ; 105HP ; BLS BXE    "]
["ŠKODA","SUPERB (3T4)","2.0 TDI",null,"2008",3,2010,5,103,140,1968,28256,7588,575,"Engine type :: nafta | Engine code :: BMP | Number of cylinders :: 4 | Valves per cylinder :: 2 | Fuel :: nafta | Drive type :: predny pohon | Refueling :: Priame vstrekovanie","BMP",null,null,null,null,null,null,null,"ŠKODA > SUPERB (3T4) > 2.0 TDI ; 3/2008 - 5/2010 ; 103kW ; 140HP ; BMP     "]
["ŠKODA","SUPERB (3T4)","2.0 TDI",null,"2008",7,2015,5,125,170,1968,28257,7588,575,"Engine type :: nafta | Engine code :: CBBB, CFGB | Number of cylinders :: 4 | Valves per cylinder :: 4 | Fuel :: nafta | Drive type :: predny pohon | Refueling :: Priame vstrekovanie","CBBB","CFGB",null,null,null,null,null,null,"ŠKODA > SUPERB (3T4) > 2.0 TDI ; 7/2008 - 5/2015 ; 125kW ; 170HP ; CBBB CFGB    "]
["ŠKODA","SUPERB (3T4)","3.6 V6 4x4",null,"2008",11,2015,5,191,260,3580,28258,7588,575,"Engine type :: Benzinovy motor | Engine code :: CDVA | Number of cylinders :: 6 | Valves per cylinder :: 4 | Fuel :: Benzín | Drive type :: pohon vsetkych kolies | Refueling :: Priame vstrekovanie","CDVA",null,null,null,null,null,null,null,"ŠKODA > SUPERB (3T4) > 3.6 V6 4x4 ; 11/2008 - 5/2015 ; 191kW ; 260HP ; CDVA     "]
["ŠKODA","SUPERB (3T4)","2.0 TDI 4x4",null,"2008",9,2015,5,125,170,1968,28282,7588,575,"Engine type :: nafta | Engine code :: CBBB, CFGB | Number of cylinders :: 4 | Valves per cylinder :: 4 | Fuel :: nafta | Drive type :: pohon vsetkych kolies | Refueling :: Priame vstrekovanie","CBBB","CFGB",null,null,null,null,null,null,"ŠKODA > SUPERB (3T4) > 2.0 TDI 4x4 ; 9/2008 - 5/2015 ; 125kW ; 170HP ; CBBB CFGB    "]
["ŠKODA","OCTAVIA (1Z3)","1.6 MultiFuel",null,"2008",1,2013,6,75,102,1595,30441,5120,575,"Engine type :: Benzinovy motor | Engine code :: CCSA, CMXA | Number of cylinders :: 4 | Valves per cylinder :: 2 | Fuel :: Benzin/Etanol | Drive type :: predny pohon | Refueling :: vstrekovanie do sacieho potrubia/karburator","CCSA","CMXA",null,null,null,null,null,null,"ŠKODA > OCTAVIA (1Z3) > 1.6 MultiFuel ; 1/2008 - 6/2013 ; 75kW ; 102HP ; CCSA CMXA    "]
["ŠKODA","OCTAVIA Combi (1Z5)","1.6 MultiFuel",null,"2008",1,2013,6,75,102,1595,30442,5162,575,"Engine type :: Benzinovy motor | Engine code :: CCSA, CMXA | Number of cylinders :: 4 | Valves per cylinder :: 2 | Fuel :: Benzin/Etanol | Drive type :: predny pohon | Refueling :: vstrekovanie do sacieho potrubia/karburator","CCSA","CMXA",null,null,null,null,null,null,"ŠKODA > OCTAVIA Combi (1Z5) > 1.6 MultiFuel ; 1/2008 - 6/2013 ; 75kW ; 102HP ; CCSA CMXA    "]
["ŠKODA","OCTAVIA (1Z3)","1.6 TDI",null,"2009",6,2013,4,77,105,1598,31590,5120,575,"Engine type :: nafta | Engine code :: CAYC | Number of cylinders :: 4 | Valves per cylinder :: 4 | Fuel :: nafta | Drive type :: predny pohon | Refueling :: Priame vstrekovanie","CAYC",null,null,null,null,null,null,null,"ŠKODA > OCTAVIA (1Z3) > 1.6 TDI ; 6/2009 - 4/2013 ; 77kW ; 105HP ; CAYC     "]
["ŠKODA","OCTAVIA Combi (1Z5)","1.6 TDI",null,"2009",6,2013,4,77,105,1598,31591,5162,575,"Engine type :: nafta | Engine code :: CAYC | Number of cylinders :: 4 | Valves per cylinder :: 4 | Fuel :: nafta | Drive type :: predny pohon | Refueling :: Priame vstrekovanie","CAYC",null,null,null,null,null,null,null,"ŠKODA > OCTAVIA Combi (1Z5) > 1.6 TDI ; 6/2009 - 4/2013 ; 77kW ; 105HP ; CAYC     "]
["ŠKODA","OCTAVIA (1Z3)","1.4 TSI",null,"2008",11,2013,6,90,122,1390,31592,5120,575,"Engine type :: Benzinovy motor | Engine code :: CAXA | Number of cylinders :: 4 | Valves per cylinder :: 4 | Fuel :: Benzín | Drive type :: predny pohon | Refueling :: Priame vstrekovanie","CAXA",null,null,null,null,null,null,null,"ŠKODA > OCTAVIA (1Z3) > 1.4 TSI ; 11/2008 - 6/2013 ; 90kW ; 122HP ; CAXA     "]
["ŠKODA","OCTAVIA Combi (1Z5)","1.4 TSI",null,"2008",11,2013,6,90,122,1390,31593,5162,575,"Engine type :: Benzinovy motor | Engine code :: CAXA | Number of cylinders :: 4 | Valves per cylinder :: 4 | Fuel :: Benzín | Drive type :: predny pohon | Refueling :: Priame vstrekovanie","CAXA",null,null,null,null,null,null,null,"ŠKODA > OCTAVIA Combi (1Z5) > 1.4 TSI ; 11/2008 - 6/2013 ; 90kW ; 122HP ; CAXA     "]
["ŠKODA","OCTAVIA Combi (1Z5)","1.8 TSI 4x4",null,"2008",11,2013,2,118,160,1798,31594,5162,575,"Engine type :: Benzinovy motor | Engine code :: CDAA | Number of cylinders :: 4 | Valves per cylinder :: 4 | Fuel :: Benzín | Drive type :: pohon vsetkych kolies | Refueling :: Priame vstrekovanie","CDAA",null,null,null,null,null,null,null,"ŠKODA > OCTAVIA Combi (1Z5) > 1.8 TSI 4x4 ; 11/2008 - 2/2013 ; 118kW ; 160HP ; CDAA     "]
["ŠKODA","SUPERB (3T4)","2.0 TDI 16V",null,"2009",1,2015,5,103,140,1968,31965,7588,575,"Engine type :: nafta | Engine code :: BKD, CFFB, CLJA | Number of cylinders :: 4 | Valves per cylinder :: 4 | Fuel :: nafta | Drive type :: predny pohon | Refueling :: Priame vstrekovanie","BKD","CFFB","CLJA",null,null,null,null,null,"ŠKODA > SUPERB (3T4) > 2.0 TDI 16V ; 1/2009 - 5/2015 ; 103kW ; 140HP ; BKD CFFB CLJA   "]
["ŠKODA","YETI (5L)","1.2 TSI",null,"2009",9,null,null,77,105,1197,32750,8486,575,"Engine type :: Benzinovy motor | Engine code :: CBZB | Number of cylinders :: 4 | Valves per cylinder :: 2 | Fuel :: Benzín | Drive type :: predny pohon | Refueling :: Priame vstrekovanie","CBZB",null,null,null,null,null,null,null,"ŠKODA > YETI (5L) > 1.2 TSI ; 9/2009 - / ; 77kW ; 105HP ; CBZB     "]
["ŠKODA","YETI (5L)","1.8 TSI 4x4",null,"2009",5,null,null,118,160,1798,32751,8486,575,"Engine type :: Benzinovy motor | Engine code :: CDAA | Number of cylinders :: 4 | Valves per cylinder :: 4 | Fuel :: Benzín | Drive type :: pohon vsetkych kolies | Refueling :: Priame vstrekovanie","CDAA",null,null,null,null,null,null,null,"ŠKODA > YETI (5L) > 1.8 TSI 4x4 ; 5/2009 - / ; 118kW ; 160HP ; CDAA     "]
["ŠKODA","YETI (5L)","2.0 TDI",null,"2009",11,null,null,81,110,1968,32752,8486,575,"Engine type :: nafta | Engine code :: CFHA, CLCA | Number of cylinders :: 4 | Valves per cylinder :: 4 | Fuel :: nafta | Drive type :: predny pohon | Refueling :: Priame vstrekovanie","CFHA","CLCA",null,null,null,null,null,null,"ŠKODA > YETI (5L) > 2.0 TDI ; 11/2009 - / ; 81kW ; 110HP ; CFHA CLCA    "]
["ŠKODA","YETI (5L)","2.0 TDI 4x4",null,"2009",11,null,null,81,110,1968,32753,8486,575,"Engine type :: nafta | Engine code :: CFHF | Number of cylinders :: 4 | Valves per cylinder :: 4 | Fuel :: nafta | Drive type :: pohon vsetkych kolies | Refueling :: Priame vstrekovanie","CFHF",null,null,null,null,null,null,null,"ŠKODA > YETI (5L) > 2.0 TDI 4x4 ; 11/2009 - / ; 81kW ; 110HP ; CFHF     "]
["ŠKODA","YETI (5L)","2.0 TDI 4x4",null,"2009",5,null,null,103,140,1968,32754,8486,575,"Engine type :: nafta | Engine code :: CBDB, CFHC, CLCB | Number of cylinders :: 4 | Valves per cylinder :: 4 | Fuel :: nafta | Drive type :: pohon vsetkych kolies | Refueling :: Priame vstrekovanie","CBDB","CFHC","CLCB",null,null,null,null,null,"ŠKODA > YETI (5L) > 2.0 TDI 4x4 ; 5/2009 - / ; 103kW ; 140HP ; CBDB CFHC CLCB   "]
["ŠKODA","YETI (5L)","2.0 TDI 4x4",null,"2009",11,null,null,125,170,1968,32755,8486,575,"Engine type :: nafta | Engine code :: CEGA, CFJA | Number of cylinders :: 4 | Valves per cylinder :: 4 | Fuel :: nafta | Drive type :: pohon vsetkych kolies | Refueling :: Priame vstrekovanie","CEGA","CFJA",null,null,null,null,null,null,"ŠKODA > YETI (5L) > 2.0 TDI 4x4 ; 11/2009 - / ; 125kW ; 170HP ; CEGA CFJA    "]
["ŠKODA","SUPERB Kombi (3T5)","1.4 TSI",null,"2009",10,2015,5,92,125,1390,32783,8495,575,"Engine type :: Benzinovy motor | Engine code :: CAXC | Number of cylinders :: 4 | Valves per cylinder :: 4 | Fuel :: Benzín | Drive type :: predny pohon | Refueling :: Priame vstrekovanie","CAXC",null,null,null,null,null,null,null,"ŠKODA > SUPERB Kombi (3T5) > 1.4 TSI ; 10/2009 - 5/2015 ; 92kW ; 125HP ; CAXC     "]
["ŠKODA","SUPERB Kombi (3T5)","1.8 TSI",null,"2009",10,2015,5,118,160,1798,32784,8495,575,"Engine type :: Benzinovy motor | Engine code :: CDAA | Number of cylinders :: 4 | Valves per cylinder :: 4 | Fuel :: Benzín | Drive type :: predny pohon | Refueling :: Priame vstrekovanie","CDAA",null,null,null,null,null,null,null,"ŠKODA > SUPERB Kombi (3T5) > 1.8 TSI ; 10/2009 - 5/2015 ; 118kW ; 160HP ; CDAA     "]
["ŠKODA","SUPERB Kombi (3T5)","1.8 TSI 4x4",null,"2009",10,2015,5,118,160,1798,32785,8495,575,"Engine type :: Benzinovy motor | Engine code :: CDAA | Number of cylinders :: 4 | Valves per cylinder :: 4 | Fuel :: Benzín | Drive type :: pohon vsetkych kolies | Refueling :: Priame vstrekovanie","CDAA",null,null,null,null,null,null,null,"ŠKODA > SUPERB Kombi (3T5) > 1.8 TSI 4x4 ; 10/2009 - 5/2015 ; 118kW ; 160HP ; CDAA     "]
["ŠKODA","SUPERB Kombi (3T5)","3.6 V6 4x4",null,"2009",10,2015,5,191,260,3580,32786,8495,575,"Engine type :: Benzinovy motor | Engine code :: CDVA | Number of cylinders :: 6 | Valves per cylinder :: 4 | Fuel :: Benzín | Drive type :: pohon vsetkych kolies | Refueling :: Priame vstrekovanie","CDVA",null,null,null,null,null,null,null,"ŠKODA > SUPERB Kombi (3T5) > 3.6 V6 4x4 ; 10/2009 - 5/2015 ; 191kW ; 260HP ; CDVA     "]
["ŠKODA","SUPERB Kombi (3T5)","2.0 TDI 16V",null,"2009",10,2015,5,103,140,1968,32787,8495,575,"Engine type :: nafta | Engine code :: BKD, CFFB, CLJA | Number of cylinders :: 4 | Valves per cylinder :: 4 | Fuel :: nafta | Drive type :: predny pohon | Refueling :: Priame vstrekovanie","BKD","CFFB","CLJA",null,null,null,null,null,"ŠKODA > SUPERB Kombi (3T5) > 2.0 TDI 16V ; 10/2009 - 5/2015 ; 103kW ; 140HP ; BKD CFFB CLJA   "]
["ŠKODA","SUPERB Kombi (3T5)","2.0 TDI",null,"2009",10,2015,5,125,170,1968,32788,8495,575,"Engine type :: nafta | Engine code :: CBBB, CFGB | Number of cylinders :: 4 | Valves per cylinder :: 4 | Fuel :: nafta | Drive type :: predny pohon | Refueling :: Priame vstrekovanie","CBBB","CFGB",null,null,null,null,null,null,"ŠKODA > SUPERB Kombi (3T5) > 2.0 TDI ; 10/2009 - 5/2015 ; 125kW ; 170HP ; CBBB CFGB    "]
["ŠKODA","SUPERB Kombi (3T5)","2.0 TDI 4x4",null,"2009",10,2015,5,125,170,1968,32789,8495,575,"Engine type :: nafta | Engine code :: CBBB, CFGB | Number of cylinders :: 4 | Valves per cylinder :: 4 | Fuel :: nafta | Drive type :: pohon vsetkych kolies | Refueling :: Priame vstrekovanie","CBBB","CFGB",null,null,null,null,null,null,"ŠKODA > SUPERB Kombi (3T5) > 2.0 TDI 4x4 ; 10/2009 - 5/2015 ; 125kW ; 170HP ; CBBB CFGB    "]
["ŠKODA","FABIA","1.2 TSI",null,"2010",3,2014,12,77,105,1197,33243,6363,575,"Engine type :: Benzinovy motor | Engine code :: CBZB | Number of cylinders :: 4 | Valves per cylinder :: 2 | Fuel :: Benzín | Drive type :: predny pohon | Refueling :: Priame vstrekovanie","CBZB",null,null,null,null,null,null,null,"ŠKODA > FABIA > 1.2 TSI ; 3/2010 - 12/2014 ; 77kW ; 105HP ; CBZB     "]
["ŠKODA","FABIA Combi","1.2 TSI",null,"2010",3,2014,12,77,105,1197,33244,6395,575,"Engine type :: Benzinovy motor | Engine code :: CBZB | Number of cylinders :: 4 | Valves per cylinder :: 2 | Fuel :: Benzín | Drive type :: predny pohon | Refueling :: Priame vstrekovanie","CBZB",null,null,null,null,null,null,null,"ŠKODA > FABIA Combi > 1.2 TSI ; 3/2010 - 12/2014 ; 77kW ; 105HP ; CBZB     "]
["ŠKODA","OCTAVIA (1Z3)","1.2 TSI",null,"2010",2,2013,6,77,105,1197,33245,5120,575,"Engine type :: Benzinovy motor | Engine code :: CBZB | Number of cylinders :: 4 | Valves per cylinder :: 2 | Fuel :: Benzín | Drive type :: predny pohon | Refueling :: Priame vstrekovanie","CBZB",null,null,null,null,null,null,null,"ŠKODA > OCTAVIA (1Z3) > 1.2 TSI ; 2/2010 - 6/2013 ; 77kW ; 105HP ; CBZB     "]
["ŠKODA","OCTAVIA Combi (1Z5)","1.2 TSI",null,"2010",2,2013,4,77,105,1197,33246,5162,575,"Engine type :: Benzinovy motor | Engine code :: CBZB | Number of cylinders :: 4 | Valves per cylinder :: 2 | Fuel :: Benzín | Drive type :: predny pohon | Refueling :: Priame vstrekovanie","CBZB",null,null,null,null,null,null,null,{"$f":"CONCATENATE(A195,\" > \",B195,\" > \",C195,\" ; \", F195,\"/\",E195,\" - \",H195,\"/\",G195,\" ; \",I195,\"kW\",\" ; \",J195,\"HP\",\" ; \",P195,\" \",Q195,\" \",R195,\" \",S195,\" \",T195,\" \",U195 )","v":"ŠKODA > OCTAVIA Combi (1Z5) > 1.2 TSI ; 2/2010 - 4/2013 ; 77kW ; 105HP ; CBZB     "}]
["ŠKODA","ROOMSTER (5J)","1.2 TSI",null,"2010",3,2015,5,77,105,1197,33247,5507,575,"Engine type :: Benzinovy motor | Engine code :: CBZB | Number of cylinders :: 4 | Valves per cylinder :: 2 | Fuel :: Benzín | Drive type :: predny pohon | Refueling :: Priame vstrekovanie","CBZB",null,null,null,null,null,null,null,"ŠKODA > ROOMSTER (5J) > 1.2 TSI ; 3/2010 - 5/2015 ; 77kW ; 105HP ; CBZB     "]
["ŠKODA","FABIA","1.2 TSI",null,"2010",3,2014,12,63,86,1197,33311,6363,575,"Engine type :: Benzinovy motor | Engine code :: CBZA | Number of cylinders :: 4 | Valves per cylinder :: 2 | Fuel :: Benzín | Drive type :: predny pohon | Refueling :: Priame vstrekovanie","CBZA",null,null,null,null,null,null,null,"ŠKODA > FABIA > 1.2 TSI ; 3/2010 - 12/2014 ; 63kW ; 86HP ; CBZA     "]
["ŠKODA","FABIA Combi","1.2 TSI",null,"2010",3,2014,12,63,86,1197,33312,6395,575,"Engine type :: Benzinovy motor | Engine code :: CBZA | Number of cylinders :: 4 | Valves per cylinder :: 2 | Fuel :: Benzín | Drive type :: predny pohon | Refueling :: Priame vstrekovanie","CBZA",null,null,null,null,null,null,null,"ŠKODA > FABIA Combi > 1.2 TSI ; 3/2010 - 12/2014 ; 63kW ; 86HP ; CBZA     "]
["ŠKODA","ROOMSTER (5J)","1.2 TSI",null,"2010",3,2015,5,63,86,1197,33313,5507,575,"Engine type :: Benzinovy motor | Engine code :: CBZA | Number of cylinders :: 4 | Valves per cylinder :: 2 | Fuel :: Benzín | Drive type :: predny pohon | Refueling :: Priame vstrekovanie","CBZA",null,null,null,null,null,null,null,"ŠKODA > ROOMSTER (5J) > 1.2 TSI ; 3/2010 - 5/2015 ; 63kW ; 86HP ; CBZA     "]
["ŠKODA","FABIA","1.6 TDI",null,"2010",3,2014,12,66,90,1598,33314,6363,575,"Engine type :: nafta | Engine code :: CAYB | Number of cylinders :: 4 | Valves per cylinder :: 4 | Fuel :: nafta | Drive type :: predny pohon | Refueling :: Priame vstrekovanie","CAYB",null,null,null,null,null,null,null,"ŠKODA > FABIA > 1.6 TDI ; 3/2010 - 12/2014 ; 66kW ; 90HP ; CAYB     "]
["ŠKODA","FABIA","1.6 TDI",null,"2010",3,2014,12,77,105,1598,33315,6363,575,"Engine type :: nafta | Engine code :: CAYC | Number of cylinders :: 4 | Valves per cylinder :: 4 | Fuel :: nafta | Drive type :: predny pohon | Refueling :: Priame vstrekovanie","CAYC",null,null,null,null,null,null,null,"ŠKODA > FABIA > 1.6 TDI ; 3/2010 - 12/2014 ; 77kW ; 105HP ; CAYC     "]
["ŠKODA","FABIA Combi","1.6 TDI",null,"2010",3,2014,12,66,90,1598,33316,6395,575,"Engine type :: nafta | Engine code :: CAYB | Number of cylinders :: 4 | Valves per cylinder :: 4 | Fuel :: nafta | Drive type :: predny pohon | Refueling :: Priame vstrekovanie","CAYB",null,null,null,null,null,null,null,"ŠKODA > FABIA Combi > 1.6 TDI ; 3/2010 - 12/2014 ; 66kW ; 90HP ; CAYB     "]
["ŠKODA","FABIA Combi","1.6 TDI",null,"2010",3,2014,12,77,105,1598,33317,6395,575,"Engine type :: nafta | Engine code :: CAYC | Number of cylinders :: 4 | Valves per cylinder :: 4 | Fuel :: nafta | Drive type :: predny pohon | Refueling :: Priame vstrekovanie","CAYC",null,null,null,null,null,null,null,"ŠKODA > FABIA Combi > 1.6 TDI ; 3/2010 - 12/2014 ; 77kW ; 105HP ; CAYC     "]
["ŠKODA","ROOMSTER (5J)","1.6 TDI",null,"2010",3,2015,5,66,90,1598,33320,5507,575,"Engine type :: nafta | Engine code :: CAYB | Number of cylinders :: 4 | Valves per cylinder :: 4 | Fuel :: nafta | Drive type :: predny pohon | Refueling :: Priame vstrekovanie","CAYB",null,null,null,null,null,null,null,"ŠKODA > ROOMSTER (5J) > 1.6 TDI ; 3/2010 - 5/2015 ; 66kW ; 90HP ; CAYB     "]
["ŠKODA","ROOMSTER (5J)","1.6 TDI",null,"2010",3,2015,5,77,105,1598,33321,5507,575,"Engine type :: nafta | Engine code :: CAYC | Number of cylinders :: 4 | Valves per cylinder :: 4 | Fuel :: nafta | Drive type :: predny pohon | Refueling :: Priame vstrekovanie","CAYC",null,null,null,null,null,null,null,"ŠKODA > ROOMSTER (5J) > 1.6 TDI ; 3/2010 - 5/2015 ; 77kW ; 105HP ; CAYC     "]
["ŠKODA","SUPERB Kombi (3T5)","2.0 TDI",null,"2009",10,2010,3,103,140,1968,33322,8495,575,"Engine type :: nafta | Engine code :: BMP | Number of cylinders :: 4 | Valves per cylinder :: 2 | Fuel :: nafta | Drive type :: predny pohon | Refueling :: Priame vstrekovanie","BMP",null,null,null,null,null,null,null,"ŠKODA > SUPERB Kombi (3T5) > 2.0 TDI ; 10/2009 - 3/2010 ; 103kW ; 140HP ; BMP     "]
["ŠKODA","SUPERB (3T4)","3.6 FSI 4x4",null,"2009",4,2015,5,191,260,3597,33485,7588,575,"Engine type :: Benzinovy motor | Number of cylinders :: 6 | Valves per cylinder :: 4 | Fuel :: Benzín | Drive type :: pohon vsetkych kolies | Refueling :: Priame vstrekovanie","",null,null,null,null,null,null,null,"ŠKODA > SUPERB (3T4) > 3.6 FSI 4x4 ; 4/2009 - 5/2015 ; 191kW ; 260HP ;      "]
["ŠKODA","FABIA","1.6 TDI",null,"2010",4,2014,12,55,75,1598,33679,6363,575,"Engine type :: nafta | Engine code :: CAYA | Number of cylinders :: 4 | Valves per cylinder :: 4 | Fuel :: nafta | Drive type :: predny pohon | Refueling :: Priame vstrekovanie","CAYA",null,null,null,null,null,null,null,"ŠKODA > FABIA > 1.6 TDI ; 4/2010 - 12/2014 ; 55kW ; 75HP ; CAYA     "]
["ŠKODA","FABIA Combi","1.6 TDI",null,"2010",4,2014,12,55,75,1598,33680,6395,575,"Engine type :: nafta | Engine code :: CAYA | Number of cylinders :: 4 | Valves per cylinder :: 4 | Fuel :: nafta | Drive type :: predny pohon | Refueling :: Priame vstrekovanie","CAYA",null,null,null,null,null,null,null,"ŠKODA > FABIA Combi > 1.6 TDI ; 4/2010 - 12/2014 ; 55kW ; 75HP ; CAYA     "]
["ŠKODA","FABIA","1.4 TSI RS",null,"2010",5,2014,12,132,180,1390,33681,6363,575,"Engine type :: Benzinovy motor | Engine code :: CAVE, CTHE | Number of cylinders :: 4 | Valves per cylinder :: 4 | Fuel :: Benzín | Drive type :: predny pohon | Refueling :: Priame vstrekovanie","CAVE","CTHE",null,null,null,null,null,null,"ŠKODA > FABIA > 1.4 TSI RS ; 5/2010 - 12/2014 ; 132kW ; 180HP ; CAVE CTHE    "]
["ŠKODA","FABIA Combi","1.4 TSI RS",null,"2010",5,2014,12,132,180,1390,33682,6395,575,"Engine type :: Benzinovy motor | Engine code :: CAVE, CTHE | Number of cylinders :: 4 | Valves per cylinder :: 4 | Fuel :: Benzín | Drive type :: predny pohon | Refueling :: Priame vstrekovanie","CAVE","CTHE",null,null,null,null,null,null,"ŠKODA > FABIA Combi > 1.4 TSI RS ; 5/2010 - 12/2014 ; 132kW ; 180HP ; CAVE CTHE    "]
["ŠKODA","YETI (5L)","1.4 TSI",null,"2010",6,null,null,90,122,1390,33683,8486,575,"Engine type :: Benzinovy motor | Engine code :: CAXA | Number of cylinders :: 4 | Valves per cylinder :: 4 | Fuel :: Benzín | Drive type :: predny pohon | Refueling :: Priame vstrekovanie","CAXA",null,null,null,null,null,null,null,"ŠKODA > YETI (5L) > 1.4 TSI ; 6/2010 - / ; 90kW ; 122HP ; CAXA     "]
["ŠKODA","FABIA","1.2 TDI",null,"2010",5,2014,12,55,75,1199,33876,6363,575,"Engine type :: nafta | Engine code :: CFWA | Number of cylinders :: 3 | Valves per cylinder :: 4 | Fuel :: nafta | Drive type :: predny pohon | Refueling :: Priame vstrekovanie","CFWA",null,null,null,null,null,null,null,"ŠKODA > FABIA > 1.2 TDI ; 5/2010 - 12/2014 ; 55kW ; 75HP ; CFWA     "]
["ŠKODA","FABIA Combi","1.2 TDI",null,"2010",5,2014,12,55,75,1199,33877,6395,575,"Engine type :: nafta | Engine code :: CFWA | Number of cylinders :: 3 | Valves per cylinder :: 4 | Fuel :: nafta | Drive type :: predny pohon | Refueling :: Priame vstrekovanie","CFWA",null,null,null,null,null,null,null,"ŠKODA > FABIA Combi > 1.2 TDI ; 5/2010 - 12/2014 ; 55kW ; 75HP ; CFWA     "]
["ŠKODA","RAPID Spaceback (NH1)","1.2 TSI",null,"2012",7,null,null,63,86,1197,39229,11519,575,"Engine type :: Benzinovy motor | Engine code :: CBZA | Number of cylinders :: 4 | Valves per cylinder :: 2 | Fuel :: Benzín | Drive type :: predny pohon | Refueling :: Priame vstrekovanie","CBZA",null,null,null,null,null,null,null,"ŠKODA > RAPID Spaceback (NH1) > 1.2 TSI ; 7/2012 - / ; 63kW ; 86HP ; CBZA     "]
["ŠKODA","RAPID Spaceback (NH1)","1.2 TSI",null,"2012",7,null,null,77,105,1197,39231,11519,575,"Engine type :: Benzinovy motor | Engine code :: CBZB | Number of cylinders :: 4 | Valves per cylinder :: 2 | Fuel :: Benzín | Drive type :: predny pohon | Refueling :: Priame vstrekovanie","CBZB",null,null,null,null,null,null,null,"ŠKODA > RAPID Spaceback (NH1) > 1.2 TSI ; 7/2012 - / ; 77kW ; 105HP ; CBZB     "]
["ŠKODA","RAPID Spaceback (NH1)","1.6 TDI",null,"2012",7,null,null,77,105,1598,39271,11519,575,"Engine type :: nafta | Engine code :: CAYC, CLNA | Number of cylinders :: 4 | Valves per cylinder :: 4 | Fuel :: nafta | Drive type :: predny pohon | Refueling :: Priame vstrekovanie","CAYC","CLNA",null,null,null,null,null,null,"ŠKODA > RAPID Spaceback (NH1) > 1.6 TDI ; 7/2012 - / ; 77kW ; 105HP ; CAYC CLNA    "]
["ŠKODA","RAPID Spaceback (NH1)","1.4 TSI",null,"2012",7,null,null,90,122,1390,52392,11519,575,"Engine type :: Benzinovy motor | Engine code :: CAXA | Number of cylinders :: 4 | Valves per cylinder :: 4 | Fuel :: Benzín | Drive type :: predny pohon | Refueling :: Priame vstrekovanie","CAXA",null,null,null,null,null,null,null,"ŠKODA > RAPID Spaceback (NH1) > 1.4 TSI ; 7/2012 - / ; 90kW ; 122HP ; CAXA     "]
["ŠKODA","RAPID Spaceback (NH1)","1.6 TDI",null,"2013",8,null,null,66,90,1598,52395,11519,575,"Engine type :: nafta | Engine code :: CAYB | Number of cylinders :: 4 | Valves per cylinder :: 4 | Fuel :: nafta | Drive type :: predny pohon | Refueling :: Priame vstrekovanie","CAYB",null,null,null,null,null,null,null,"ŠKODA > RAPID Spaceback (NH1) > 1.6 TDI ; 8/2013 - / ; 66kW ; 90HP ; CAYB     "]
["ŠKODA","RAPID (NH3)","1.2",null,"2012",7,null,null,55,75,1198,56161,10587,575,"Engine type :: Benzinovy motor | Engine code :: CGPC | Number of cylinders :: 3 | Valves per cylinder :: 4 | Fuel :: Benzín | Drive type :: predny pohon | Refueling :: vstrekovanie do sacieho potrubia/karburator","CGPC",null,null,null,null,null,null,null,"ŠKODA > RAPID (NH3) > 1.2 ; 7/2012 - / ; 55kW ; 75HP ; CGPC     "]
["ŠKODA","RAPID (NH3)","1.2 TSI",null,"2012",7,null,null,63,86,1197,56162,10587,575,"Engine type :: Benzinovy motor | Engine code :: CBZA | Number of cylinders :: 4 | Valves per cylinder :: 2 | Fuel :: Benzín | Drive type :: predny pohon | Refueling :: Priame vstrekovanie","CBZA",null,null,null,null,null,null,null,"ŠKODA > RAPID (NH3) > 1.2 TSI ; 7/2012 - / ; 63kW ; 86HP ; CBZA     "]
["ŠKODA","RAPID (NH3)","1.2 TSI",null,"2012",7,null,null,77,105,1197,56165,10587,575,"Engine type :: Benzinovy motor | Engine code :: CBZB | Number of cylinders :: 4 | Valves per cylinder :: 2 | Fuel :: Benzín | Drive type :: predny pohon | Refueling :: Priame vstrekovanie","CBZB",null,null,null,null,null,null,null,"ŠKODA > RAPID (NH3) > 1.2 TSI ; 7/2012 - / ; 77kW ; 105HP ; CBZB     "]
["ŠKODA","RAPID (NH3)","1.4 TSI",null,"2012",7,null,null,90,122,1390,56167,10587,575,"Engine type :: Benzinovy motor | Engine code :: CAXA | Number of cylinders :: 4 | Valves per cylinder :: 4 | Fuel :: Benzín | Drive type :: predny pohon | Refueling :: Priame vstrekovanie","CAXA",null,null,null,null,null,null,null,"ŠKODA > RAPID (NH3) > 1.4 TSI ; 7/2012 - / ; 90kW ; 122HP ; CAXA     "]
["ŠKODA","RAPID (NH3)","1.6 TDI",null,"2012",7,null,null,77,105,1598,56170,10587,575,"Engine type :: nafta | Engine code :: CAYC, CLNA | Number of cylinders :: 4 | Valves per cylinder :: 4 | Fuel :: nafta | Drive type :: predny pohon | Refueling :: Priame vstrekovanie","CAYC","CLNA",null,null,null,null,null,null,"ŠKODA > RAPID (NH3) > 1.6 TDI ; 7/2012 - / ; 77kW ; 105HP ; CAYC CLNA    "]
["ŠKODA","OCTAVIA (5E3)","1.4 TSI",null,"2012",11,null,null,103,140,1395,58750,11195,575,"Engine type :: Benzinovy motor | Engine code :: CHPA | Number of cylinders :: 4 | Valves per cylinder :: 4 | Fuel :: Benzín | Drive type :: predny pohon | Refueling :: Priame vstrekovanie","CHPA",null,null,null,null,null,null,null,"ŠKODA > OCTAVIA (5E3) > 1.4 TSI ; 11/2012 - / ; 103kW ; 140HP ; CHPA     "]
["ŠKODA","OCTAVIA (5E3)","1.2 TSI",null,"2012",11,null,null,63,86,1197,58757,11195,575,"Engine type :: Benzinovy motor | Engine code :: CJZB | Number of cylinders :: 4 | Valves per cylinder :: 4 | Fuel :: Benzín | Drive type :: predny pohon | Refueling :: Priame vstrekovanie","CJZB",null,null,null,null,null,null,null,"ŠKODA > OCTAVIA (5E3) > 1.2 TSI ; 11/2012 - / ; 63kW ; 86HP ; CJZB     "]
["ŠKODA","OCTAVIA (5E3)","1.2 TSI",null,"2012",11,null,null,77,105,1197,58758,11195,575,"Engine type :: Benzinovy motor | Engine code :: CJZA | Number of cylinders :: 4 | Valves per cylinder :: 4 | Fuel :: Benzín | Drive type :: predny pohon | Refueling :: Priame vstrekovanie","CJZA",null,null,null,null,null,null,null,"ŠKODA > OCTAVIA (5E3) > 1.2 TSI ; 11/2012 - / ; 77kW ; 105HP ; CJZA     "]
["ŠKODA","OCTAVIA (5E3)","1.8 TSI",null,"2012",11,null,null,132,180,1798,58759,11195,575,"Engine type :: Benzinovy motor | Engine code :: CJSA | Number of cylinders :: 4 | Valves per cylinder :: 4 | Fuel :: Benzín | Drive type :: predny pohon | Refueling :: Priame vstrekovanie","CJSA",null,null,null,null,null,null,null,"ŠKODA > OCTAVIA (5E3) > 1.8 TSI ; 11/2012 - / ; 132kW ; 180HP ; CJSA     "]
["ŠKODA","OCTAVIA (5E3)","1.6 TDI",null,"2012",11,null,null,77,105,1598,58760,11195,575,"Engine type :: nafta | Engine code :: CLHA | Number of cylinders :: 4 | Valves per cylinder :: 4 | Fuel :: nafta | Drive type :: predny pohon | Refueling :: Priame vstrekovanie","CLHA",null,null,null,null,null,null,null,"ŠKODA > OCTAVIA (5E3) > 1.6 TDI ; 11/2012 - / ; 77kW ; 105HP ; CLHA     "]
["ŠKODA","OCTAVIA (5E3)","2.0 TDI",null,"2012",11,null,null,110,150,1968,58761,11195,575,"Engine type :: nafta | Engine code :: CKFC, CRMB | Number of cylinders :: 4 | Valves per cylinder :: 4 | Fuel :: nafta | Drive type :: predny pohon | Refueling :: Priame vstrekovanie","CKFC","CRMB",null,null,null,null,null,null,"ŠKODA > OCTAVIA (5E3) > 2.0 TDI ; 11/2012 - / ; 110kW ; 150HP ; CKFC CRMB    "]
["ŠKODA","OCTAVIA Combi (5E5)","1.2 TSI",null,"2012",11,null,null,63,86,1197,58762,11196,575,"Engine type :: Benzinovy motor | Engine code :: CJZB | Number of cylinders :: 4 | Valves per cylinder :: 4 | Fuel :: Benzín | Drive type :: predny pohon | Refueling :: Priame vstrekovanie","CJZB",null,null,null,null,null,null,null,"ŠKODA > OCTAVIA Combi (5E5) > 1.2 TSI ; 11/2012 - / ; 63kW ; 86HP ; CJZB     "]
["ŠKODA","OCTAVIA Combi (5E5)","1.2 TSI",null,"2012",11,null,null,77,105,1197,58763,11196,575,"Engine type :: Benzinovy motor | Engine code :: CJZA | Number of cylinders :: 4 | Valves per cylinder :: 4 | Fuel :: Benzín | Drive type :: predny pohon | Refueling :: Priame vstrekovanie","CJZA",null,null,null,null,null,null,null,"ŠKODA > OCTAVIA Combi (5E5) > 1.2 TSI ; 11/2012 - / ; 77kW ; 105HP ; CJZA     "]
["ŠKODA","OCTAVIA Combi (5E5)","1.4 TSI",null,"2012",11,null,null,103,140,1395,58764,11196,575,"Engine type :: Benzinovy motor | Engine code :: CHPA | Number of cylinders :: 4 | Valves per cylinder :: 4 | Fuel :: Benzín | Drive type :: predny pohon | Refueling :: Priame vstrekovanie","CHPA",null,null,null,null,null,null,null,"ŠKODA > OCTAVIA Combi (5E5) > 1.4 TSI ; 11/2012 - / ; 103kW ; 140HP ; CHPA     "]
["ŠKODA","OCTAVIA Combi (5E5)","1.8 TSI",null,"2012",11,null,null,132,180,1798,58765,11196,575,"Engine type :: Benzinovy motor | Engine code :: CJSA, CJSB | Number of cylinders :: 4 | Valves per cylinder :: 4 | Fuel :: Benzín | Drive type :: predny pohon | Refueling :: Priame vstrekovanie","CJSA","CJSB",null,null,null,null,null,null,"ŠKODA > OCTAVIA Combi (5E5) > 1.8 TSI ; 11/2012 - / ; 132kW ; 180HP ; CJSA CJSB    "]
["ŠKODA","OCTAVIA Combi (5E5)","1.6 TDI",null,"2012",11,null,null,77,105,1598,58766,11196,575,"Engine type :: nafta | Engine code :: CLHA | Number of cylinders :: 4 | Valves per cylinder :: 4 | Fuel :: nafta | Drive type :: predny pohon | Refueling :: Priame vstrekovanie","CLHA",null,null,null,null,null,null,null,"ŠKODA > OCTAVIA Combi (5E5) > 1.6 TDI ; 11/2012 - / ; 77kW ; 105HP ; CLHA     "]
["ŠKODA","OCTAVIA Combi (5E5)","2.0 TDI",null,"2012",11,null,null,110,150,1968,58767,11196,575,"Engine type :: nafta | Engine code :: CKFC, CRMB | Number of cylinders :: 4 | Valves per cylinder :: 4 | Fuel :: nafta | Drive type :: predny pohon | Refueling :: Priame vstrekovanie","CKFC","CRMB",null,null,null,null,null,null,"ŠKODA > OCTAVIA Combi (5E5) > 2.0 TDI ; 11/2012 - / ; 110kW ; 150HP ; CKFC CRMB    "]
["ŠKODA","CITIGO","1.0 CNG",null,"2012",11,null,null,50,68,999,58802,10126,575,"Engine type :: Benzinovy motor | Engine code :: CPGA | Number of cylinders :: 3 | Valves per cylinder :: 4 | Fuel :: CNG | Drive type :: predny pohon | Refueling :: vstrekovanie do sacieho potrubia/karburator","CPGA",null,null,null,null,null,null,null,"ŠKODA > CITIGO > 1.0 CNG ; 11/2012 - / ; 50kW ; 68HP ; CPGA     "]
["ŠKODA","RAPID (NH3)","1.6 TDI",null,"2013",8,null,null,66,90,1598,59062,10587,575,"Engine type :: nafta | Engine code :: CAYB | Number of cylinders :: 4 | Valves per cylinder :: 4 | Fuel :: nafta | Drive type :: predny pohon | Refueling :: Priame vstrekovanie","CAYB",null,null,null,null,null,null,null,"ŠKODA > RAPID (NH3) > 1.6 TDI ; 8/2013 - / ; 66kW ; 90HP ; CAYB     "]
["ŠKODA","RAPID (NH3)","1.6",null,"2012",7,null,null,77,105,1598,59064,10587,575,"Engine type :: Benzinovy motor | Engine code :: CFNA | Number of cylinders :: 4 | Valves per cylinder :: 4 | Fuel :: Benzín | Drive type :: predny pohon | Refueling :: vstrekovanie do sacieho potrubia/karburator","CFNA",null,null,null,null,null,null,null,"ŠKODA > RAPID (NH3) > 1.6 ; 7/2012 - / ; 77kW ; 105HP ; CFNA     "]
["ŠKODA","OCTAVIA (5E3)","1.6 TDI",null,"2012",11,null,null,66,90,1598,59077,11195,575,"Engine type :: nafta | Engine code :: CLHB | Number of cylinders :: 4 | Valves per cylinder :: 4 | Fuel :: nafta | Drive type :: predny pohon | Refueling :: Priame vstrekovanie","CLHB",null,null,null,null,null,null,null,"ŠKODA > OCTAVIA (5E3) > 1.6 TDI ; 11/2012 - / ; 66kW ; 90HP ; CLHB     "]
["ŠKODA","OCTAVIA Combi (5E5)","1.6 TDI",null,"2012",11,null,null,66,90,1598,59078,11196,575,"Engine type :: nafta | Engine code :: CLHB | Number of cylinders :: 4 | Valves per cylinder :: 4 | Fuel :: nafta | Drive type :: predny pohon | Refueling :: Priame vstrekovanie","CLHB",null,null,null,null,null,null,null,"ŠKODA > OCTAVIA Combi (5E5) > 1.6 TDI ; 11/2012 - / ; 66kW ; 90HP ; CLHB     "]
["ŠKODA","OCTAVIA (5E3)","2.0 TDI",null,"2012",11,null,null,105,143,1968,59079,11195,575,"Engine type :: nafta | Engine code :: CKFB, CRVC | Number of cylinders :: 4 | Valves per cylinder :: 4 | Fuel :: nafta | Drive type :: predny pohon | Refueling :: Priame vstrekovanie","CKFB","CRVC",null,null,null,null,null,null,"ŠKODA > OCTAVIA (5E3) > 2.0 TDI ; 11/2012 - / ; 105kW ; 143HP ; CKFB CRVC    "]
["ŠKODA","OCTAVIA Combi (5E5)","2.0 TDI",null,"2012",11,null,null,105,143,1968,59080,11196,575,"Engine type :: nafta | Engine code :: CKFB, CRVC | Number of cylinders :: 4 | Valves per cylinder :: 4 | Fuel :: nafta | Drive type :: predny pohon | Refueling :: Priame vstrekovanie","CKFB","CRVC",null,null,null,null,null,null,"ŠKODA > OCTAVIA Combi (5E5) > 2.0 TDI ; 11/2012 - / ; 105kW ; 143HP ; CKFB CRVC    "]
["ŠKODA","OCTAVIA Combi (5E5)","1.6 TDI 4x4",null,"2012",11,null,null,77,105,1598,59488,11196,575,"Engine type :: nafta | Engine code :: CLHA | Number of cylinders :: 4 | Valves per cylinder :: 4 | Fuel :: nafta | Drive type :: pohon vsetkych kolies | Refueling :: Priame vstrekovanie","CLHA",null,null,null,null,null,null,null,"ŠKODA > OCTAVIA Combi (5E5) > 1.6 TDI 4x4 ; 11/2012 - / ; 77kW ; 105HP ; CLHA     "]
["ŠKODA","OCTAVIA Combi (5E5)","1.8 TSI 4x4",null,"2012",11,null,null,132,180,1798,59489,11196,575,"Engine type :: Benzinovy motor | Engine code :: CJSB | Number of cylinders :: 4 | Valves per cylinder :: 4 | Fuel :: Benzín | Drive type :: pohon vsetkych kolies | Refueling :: Priame vstrekovanie","CJSB",null,null,null,null,null,null,null,"ŠKODA > OCTAVIA Combi (5E5) > 1.8 TSI 4x4 ; 11/2012 - / ; 132kW ; 180HP ; CJSB     "]
["ŠKODA","OCTAVIA Combi (5E5)","2.0 TDI 4x4",null,"2012",11,null,null,110,150,1968,59490,11196,575,"Engine type :: nafta | Engine code :: CKFC | Number of cylinders :: 4 | Valves per cylinder :: 4 | Fuel :: nafta | Drive type :: pohon vsetkych kolies | Refueling :: Priame vstrekovanie","CKFC",null,null,null,null,null,null,null,"ŠKODA > OCTAVIA Combi (5E5) > 2.0 TDI 4x4 ; 11/2012 - / ; 110kW ; 150HP ; CKFC     "]
["ŠKODA","OCTAVIA (5E3)","2.0 TDI RS",null,"2013",5,null,null,135,184,1968,59676,11195,575,"Engine type :: nafta | Engine code :: CUNA, CUPA | Number of cylinders :: 4 | Valves per cylinder :: 4 | Fuel :: nafta | Drive type :: predny pohon | Refueling :: Priame vstrekovanie","CUNA","CUPA",null,null,null,null,null,null,"ŠKODA > OCTAVIA (5E3) > 2.0 TDI RS ; 5/2013 - / ; 135kW ; 184HP ; CUNA CUPA    "]
["ŠKODA","OCTAVIA (5E3)","2.0 TSI RS",null,"2013",5,null,null,162,220,1984,59677,11195,575,"Engine type :: Benzinovy motor | Engine code :: CHHB | Number of cylinders :: 4 | Valves per cylinder :: 4 | Fuel :: Benzín | Drive type :: predny pohon | Refueling :: Priame vstrekovanie","CHHB",null,null,null,null,null,null,null,"ŠKODA > OCTAVIA (5E3) > 2.0 TSI RS ; 5/2013 - / ; 162kW ; 220HP ; CHHB     "]
["ŠKODA","OCTAVIA Combi (5E5)","2.0 TDI RS",null,"2013",5,null,null,135,184,1968,59679,11196,575,"Engine type :: nafta | Engine code :: CUNA, CUPA | Number of cylinders :: 4 | Valves per cylinder :: 4 | Fuel :: nafta | Drive type :: predny pohon | Refueling :: Priame vstrekovanie","CUNA","CUPA",null,null,null,null,null,null,"ŠKODA > OCTAVIA Combi (5E5) > 2.0 TDI RS ; 5/2013 - / ; 135kW ; 184HP ; CUNA CUPA    "]
["ŠKODA","OCTAVIA Combi (5E5)","2.0 TSI RS",null,"2012",11,null,null,162,220,1984,59680,11196,575,"Engine type :: Benzinovy motor | Engine code :: CHHB | Number of cylinders :: 4 | Valves per cylinder :: 4 | Fuel :: Benzín | Drive type :: predny pohon | Refueling :: Priame vstrekovanie","CHHB",null,null,null,null,null,null,null,"ŠKODA > OCTAVIA Combi (5E5) > 2.0 TSI RS ; 11/2012 - / ; 162kW ; 220HP ; CHHB     "]
["ŠKODA","OCTAVIA (5E3)","1.6 TDI",null,"2013",5,null,null,81,110,1598,100629,11195,575,"Engine type :: nafta | Engine code :: CRKB, CXXB, DBKA | Number of cylinders :: 4 | Valves per cylinder :: 4 | Fuel :: nafta | Drive type :: predny pohon | Refueling :: Priame vstrekovanie","CRKB","CXXB","DBKA",null,null,null,null,null,"ŠKODA > OCTAVIA (5E3) > 1.6 TDI ; 5/2013 - / ; 81kW ; 110HP ; CRKB CXXB DBKA   "]
["ŠKODA","OCTAVIA Combi (5E5)","1.6 TDI",null,"2013",5,null,null,81,110,1598,100630,11196,575,"Engine type :: nafta | Engine code :: CRKB, CXXB, DBKA | Number of cylinders :: 4 | Valves per cylinder :: 4 | Fuel :: nafta | Drive type :: predny pohon | Refueling :: Priame vstrekovanie","CRKB","CXXB","DBKA",null,null,null,null,null,"ŠKODA > OCTAVIA Combi (5E5) > 1.6 TDI ; 5/2013 - / ; 81kW ; 110HP ; CRKB CXXB DBKA   "]
["ŠKODA","RAPID Spaceback (NH1)","1.6",null,"2012",7,null,null,77,105,1598,105755,11519,575,"Engine type :: Benzinovy motor | Engine code :: CFNA | Number of cylinders :: 4 | Valves per cylinder :: 4 | Fuel :: Benzín | Drive type :: predny pohon | Refueling :: vstrekovanie do sacieho potrubia/karburator","CFNA",null,null,null,null,null,null,null,"ŠKODA > RAPID Spaceback (NH1) > 1.6 ; 7/2012 - / ; 77kW ; 105HP ; CFNA     "]
["ŠKODA","OCTAVIA (5E3)","1.4 TSI G-TEC",null,"2013",11,null,null,81,110,1395,106544,11195,575,"Engine type :: Benzinovy motor | Engine code :: CPWA | Number of cylinders :: 4 | Valves per cylinder :: 4 | Fuel :: Benzin/zemný plyn (CNG) | Drive type :: predny pohon | Refueling :: Priame vstrekovanie","CPWA",null,null,null,null,null,null,null,"ŠKODA > OCTAVIA (5E3) > 1.4 TSI G-TEC ; 11/2013 - / ; 81kW ; 110HP ; CPWA     "]
["ŠKODA","OCTAVIA Combi (5E5)","1.4 TSI G-TEC",null,"2013",11,null,null,81,110,1395,106545,11196,575,"Engine type :: Benzinovy motor | Engine code :: CPWA | Number of cylinders :: 4 | Valves per cylinder :: 4 | Fuel :: Benzin/zemný plyn (CNG) | Drive type :: predny pohon | Refueling :: Priame vstrekovanie","CPWA",null,null,null,null,null,null,null,"ŠKODA > OCTAVIA Combi (5E5) > 1.4 TSI G-TEC ; 11/2013 - / ; 81kW ; 110HP ; CPWA     "]
["ŠKODA","RAPID Spaceback (NH1)","1.2",null,"2012",7,null,null,55,75,1198,107504,11519,575,"Engine type :: Benzinovy motor | Engine code :: CGPC | Number of cylinders :: 3 | Valves per cylinder :: 4 | Fuel :: Benzín | Drive type :: predny pohon | Refueling :: vstrekovanie do sacieho potrubia/karburator","CGPC",null,null,null,null,null,null,null,"ŠKODA > RAPID Spaceback (NH1) > 1.2 ; 7/2012 - / ; 55kW ; 75HP ; CGPC     "]
["ŠKODA","YETI (5L)","1.6",null,"2014",4,null,null,81,110,1598,107942,8486,575,"Engine type :: Benzinovy motor | Engine code :: CWVA | Number of cylinders :: 4 | Valves per cylinder :: 4 | Fuel :: Benzín | Drive type :: predny pohon | Refueling :: vstrekovanie do sacieho potrubia/karburator","CWVA",null,null,null,null,null,null,null,"ŠKODA > YETI (5L) > 1.6 ; 4/2014 - / ; 81kW ; 110HP ; CWVA     "]
["ŠKODA","OCTAVIA (5E3)","1.6",null,"2014",1,null,null,81,110,1598,107943,11195,575,"Engine type :: Benzinovy motor | Engine code :: CWVA | Number of cylinders :: 4 | Valves per cylinder :: 4 | Fuel :: Benzín | Drive type :: predny pohon | Refueling :: vstrekovanie do sacieho potrubia/karburator","CWVA",null,null,null,null,null,null,null,"ŠKODA > OCTAVIA (5E3) > 1.6 ; 1/2014 - / ; 81kW ; 110HP ; CWVA     "]
["ŠKODA","OCTAVIA Combi (5E5)","1.6",null,"2014",1,null,null,81,110,1598,107944,11196,575,"Engine type :: Benzinovy motor | Engine code :: CWVA | Number of cylinders :: 4 | Valves per cylinder :: 4 | Fuel :: Benzín | Drive type :: predny pohon | Refueling :: vstrekovanie do sacieho potrubia/karburator","CWVA",null,null,null,null,null,null,null,{"$f":"CONCATENATE(A259,\" > \",B259,\" > \",C259,\" ; \", F259,\"/\",E259,\" - \",H259,\"/\",G259,\" ; \",I259,\"kW\",\" ; \",J259,\"HP\",\" ; \",P259,\" \",Q259,\" \",R259,\" \",S259,\" \",T259,\" \",U259 )","v":"ŠKODA > OCTAVIA Combi (5E5) > 1.6 ; 1/2014 - / ; 81kW ; 110HP ; CWVA     "}]
["ŠKODA","OCTAVIA (5E3)","1.6 TDI 4x4",null,"2014",9,null,null,77,105,1598,108643,11195,575,"Engine type :: nafta | Engine code :: CLHA | Number of cylinders :: 4 | Valves per cylinder :: 4 | Fuel :: nafta | Drive type :: pohon vsetkych kolies | Refueling :: Priame vstrekovanie","CLHA",null,null,null,null,null,null,null,"ŠKODA > OCTAVIA (5E3) > 1.6 TDI 4x4 ; 9/2014 - / ; 77kW ; 105HP ; CLHA     "]
["ŠKODA","OCTAVIA (5E3)","1.8 TSI 4x4",null,"2014",9,null,null,132,180,1798,108644,11195,575,"Engine type :: Benzinovy motor | Engine code :: CJSA | Number of cylinders :: 4 | Valves per cylinder :: 4 | Fuel :: Benzín | Drive type :: pohon vsetkych kolies | Refueling :: Priame vstrekovanie","CJSA",null,null,null,null,null,null,null,"ŠKODA > OCTAVIA (5E3) > 1.8 TSI 4x4 ; 9/2014 - / ; 132kW ; 180HP ; CJSA     "]
["ŠKODA","OCTAVIA (5E3)","2.0 TDI 4x4",null,"2014",9,null,null,110,150,1968,108645,11195,575,"Engine type :: nafta | Engine code :: CKFC | Number of cylinders :: 4 | Valves per cylinder :: 4 | Fuel :: nafta | Drive type :: pohon vsetkych kolies | Refueling :: Priame vstrekovanie","CKFC",null,null,null,null,null,null,null,"ŠKODA > OCTAVIA (5E3) > 2.0 TDI 4x4 ; 9/2014 - / ; 110kW ; 150HP ; CKFC     "]
["ŠKODA","OCTAVIA Combi (5E5)","2.0 TDI 4x4",null,"2014",9,null,null,135,184,1968,108648,11196,575,"Engine type :: nafta | Engine code :: CUNA, CUPA | Number of cylinders :: 4 | Valves per cylinder :: 4 | Fuel :: nafta | Drive type :: pohon vsetkych kolies | Refueling :: Priame vstrekovanie","CUNA","CUPA",null,null,null,null,null,null,"ŠKODA > OCTAVIA Combi (5E5) > 2.0 TDI 4x4 ; 9/2014 - / ; 135kW ; 184HP ; CUNA CUPA    "]
["ŠKODA","OCTAVIA (5E3)","2.0 TDI 4x4",null,"2014",9,null,null,135,184,1968,108649,11195,575,"Engine type :: nafta | Engine code :: CUNA, CUPA | Number of cylinders :: 4 | Valves per cylinder :: 4 | Fuel :: nafta | Drive type :: pohon vsetkych kolies | Refueling :: Priame vstrekovanie","CUNA","CUPA",null,null,null,null,null,null,"ŠKODA > OCTAVIA (5E3) > 2.0 TDI 4x4 ; 9/2014 - / ; 135kW ; 184HP ; CUNA CUPA    "]
["ŠKODA","FABIA (NJ3)","1.0",null,"2014",8,null,null,44,60,999,108655,13331,575,"Engine type :: Benzinovy motor | Engine code :: CHYA | Number of cylinders :: 3 | Valves per cylinder :: 4 | Fuel :: Benzín | Drive type :: predny pohon | Refueling :: vstrekovanie do sacieho potrubia/karburator","CHYA",null,null,null,null,null,null,null,"ŠKODA > FABIA (NJ3) > 1.0 ; 8/2014 - / ; 44kW ; 60HP ; CHYA     "]
["ŠKODA","FABIA (NJ3)","1.0",null,"2014",8,null,null,55,75,999,108656,13331,575,"Engine type :: Benzinovy motor | Engine code :: CHYB | Number of cylinders :: 3 | Valves per cylinder :: 4 | Fuel :: Benzín | Drive type :: predny pohon | Refueling :: vstrekovanie do sacieho potrubia/karburator","CHYB",null,null,null,null,null,null,null,"ŠKODA > FABIA (NJ3) > 1.0 ; 8/2014 - / ; 55kW ; 75HP ; CHYB     "]
["ŠKODA","FABIA (NJ3)","1.2 TSI",null,"2014",8,null,null,66,90,1197,108657,13331,575,"Engine type :: Benzinovy motor | Engine code :: CJZC | Number of cylinders :: 4 | Valves per cylinder :: 4 | Fuel :: Benzín | Drive type :: predny pohon | Refueling :: Priame vstrekovanie","CJZC",null,null,null,null,null,null,null,"ŠKODA > FABIA (NJ3) > 1.2 TSI ; 8/2014 - / ; 66kW ; 90HP ; CJZC     "]
["ŠKODA","FABIA (NJ3)","1.2 TSI",null,"2014",8,null,null,81,110,1197,108658,13331,575,"Engine type :: Benzinovy motor | Engine code :: CJZD | Number of cylinders :: 4 | Valves per cylinder :: 4 | Fuel :: Benzín | Drive type :: predny pohon | Refueling :: Priame vstrekovanie","CJZD",null,null,null,null,null,null,null,"ŠKODA > FABIA (NJ3) > 1.2 TSI ; 8/2014 - / ; 81kW ; 110HP ; CJZD     "]
["ŠKODA","FABIA (NJ3)","1.4 TDI",null,"2014",8,null,null,66,90,1422,108659,13331,575,"Engine type :: nafta | Engine code :: CUSB | Number of cylinders :: 3 | Valves per cylinder :: 4 | Fuel :: nafta | Drive type :: predny pohon | Refueling :: Priame vstrekovanie","CUSB",null,null,null,null,null,null,null,"ŠKODA > FABIA (NJ3) > 1.4 TDI ; 8/2014 - / ; 66kW ; 90HP ; CUSB     "]
["ŠKODA","FABIA (NJ3)","1.4 TDI",null,"2014",8,null,null,77,105,1422,108660,13331,575,"Engine type :: nafta | Engine code :: CUTA | Number of cylinders :: 3 | Valves per cylinder :: 4 | Fuel :: nafta | Drive type :: predny pohon | Refueling :: Priame vstrekovanie","CUTA",null,null,null,null,null,null,null,"ŠKODA > FABIA (NJ3) > 1.4 TDI ; 8/2014 - / ; 77kW ; 105HP ; CUTA     "]
["ŠKODA","FABIA Kombi (NJ5)","1.0",null,"2014",10,null,null,55,75,999,108661,13332,575,"Engine type :: Benzinovy motor | Engine code :: CHYB | Number of cylinders :: 3 | Valves per cylinder :: 4 | Fuel :: Benzín | Drive type :: predny pohon | Refueling :: vstrekovanie do sacieho potrubia/karburator","CHYB",null,null,null,null,null,null,null,"ŠKODA > FABIA Kombi (NJ5) > 1.0 ; 10/2014 - / ; 55kW ; 75HP ; CHYB     "]
["ŠKODA","FABIA Kombi (NJ5)","1.2 TSI",null,"2014",10,null,null,66,90,1197,108662,13332,575,"Engine type :: Benzinovy motor | Engine code :: CJZC | Number of cylinders :: 4 | Valves per cylinder :: 4 | Fuel :: Benzín | Drive type :: predny pohon | Refueling :: Priame vstrekovanie","CJZC",null,null,null,null,null,null,null,"ŠKODA > FABIA Kombi (NJ5) > 1.2 TSI ; 10/2014 - / ; 66kW ; 90HP ; CJZC     "]
["ŠKODA","FABIA Kombi (NJ5)","1.2 TSI",null,"2014",10,null,null,81,110,1197,108663,13332,575,"Engine type :: Benzinovy motor | Engine code :: CJZD | Number of cylinders :: 4 | Valves per cylinder :: 4 | Fuel :: Benzín | Drive type :: predny pohon | Refueling :: Priame vstrekovanie","CJZD",null,null,null,null,null,null,null,"ŠKODA > FABIA Kombi (NJ5) > 1.2 TSI ; 10/2014 - / ; 81kW ; 110HP ; CJZD     "]
["ŠKODA","FABIA Kombi (NJ5)","1.4 TDI",null,"2014",10,null,null,66,90,1422,108664,13332,575,"Engine type :: nafta | Engine code :: CUSB | Number of cylinders :: 3 | Valves per cylinder :: 4 | Fuel :: nafta | Drive type :: predny pohon | Refueling :: Priame vstrekovanie","CUSB",null,null,null,null,null,null,null,"ŠKODA > FABIA Kombi (NJ5) > 1.4 TDI ; 10/2014 - / ; 66kW ; 90HP ; CUSB     "]
["ŠKODA","FABIA Kombi (NJ5)","1.4 TDI",null,"2014",10,null,null,77,105,1422,108665,13332,575,"Engine type :: nafta | Engine code :: CUTA | Number of cylinders :: 3 | Valves per cylinder :: 4 | Fuel :: nafta | Drive type :: predny pohon | Refueling :: Priame vstrekovanie","CUTA",null,null,null,null,null,null,null,"ŠKODA > FABIA Kombi (NJ5) > 1.4 TDI ; 10/2014 - / ; 77kW ; 105HP ; CUTA     "]
["ŠKODA","FABIA Kombi (NJ5)","1.0",null,"2014",10,null,null,44,60,999,108666,13332,575,"Engine type :: Benzinovy motor | Engine code :: CHYA | Number of cylinders :: 3 | Valves per cylinder :: 4 | Fuel :: Benzín | Drive type :: predny pohon | Refueling :: vstrekovanie do sacieho potrubia/karburator","CHYA",null,null,null,null,null,null,null,"ŠKODA > FABIA Kombi (NJ5) > 1.0 ; 10/2014 - / ; 44kW ; 60HP ; CHYA     "]
["ŠKODA","SUPERB (3V3)","2.0 TDI",null,"2015",3,null,null,110,150,1968,112394,14018,575,"Engine type :: nafta | Engine code :: CRLB, DFEA | Number of cylinders :: 4 | Valves per cylinder :: 4 | Fuel :: nafta | Drive type :: predny pohon | Refueling :: Priame vstrekovanie","CRLB","DFEA",null,null,null,null,null,null,"ŠKODA > SUPERB (3V3) > 2.0 TDI ; 3/2015 - / ; 110kW ; 150HP ; CRLB DFEA    "]
["ŠKODA","SUPERB (3V3)","2.0 TDI",null,"2015",3,null,null,140,190,1968,112397,14018,575,"Engine type :: nafta | Engine code :: DDAA, DFCA | Number of cylinders :: 4 | Valves per cylinder :: 4 | Fuel :: nafta | Drive type :: predny pohon | Refueling :: Priame vstrekovanie","DDAA","DFCA",null,null,null,null,null,null,"ŠKODA > SUPERB (3V3) > 2.0 TDI ; 3/2015 - / ; 140kW ; 190HP ; DDAA DFCA    "]
["ŠKODA","SUPERB (3V3)","1.4 TSI",null,"2015",3,null,null,110,150,1395,112398,14018,575,"Engine type :: Benzinovy motor | Engine code :: CZDA, CZEA | Number of cylinders :: 4 | Valves per cylinder :: 4 | Fuel :: Benzín | Drive type :: predny pohon | Refueling :: Priame vstrekovanie","CZDA","CZEA",null,null,null,null,null,null,"ŠKODA > SUPERB (3V3) > 1.4 TSI ; 3/2015 - / ; 110kW ; 150HP ; CZDA CZEA    "]
["ŠKODA","SUPERB (3V3)","2.0 TSI 4x4",null,"2015",3,null,null,206,280,1984,112399,14018,575,"Engine type :: Benzinovy motor | Engine code :: CJXA | Number of cylinders :: 4 | Valves per cylinder :: 4 | Fuel :: Benzín | Drive type :: pohon vsetkych kolies | Refueling :: Priame vstrekovanie","CJXA",null,null,null,null,null,null,null,"ŠKODA > SUPERB (3V3) > 2.0 TSI 4x4 ; 3/2015 - / ; 206kW ; 280HP ; CJXA     "]
["ŠKODA","SUPERB (3V3)","1.4 TSI",null,"2015",3,null,null,92,125,1395,113304,14018,575,"Engine type :: Benzinovy motor | Engine code :: CZCA | Number of cylinders :: 4 | Valves per cylinder :: 4 | Fuel :: Benzín | Drive type :: predny pohon | Refueling :: Priame vstrekovanie","CZCA",null,null,null,null,null,null,null,"ŠKODA > SUPERB (3V3) > 1.4 TSI ; 3/2015 - / ; 92kW ; 125HP ; CZCA     "]
["ŠKODA","SUPERB (3V3)","2.0 TSI",null,"2015",3,null,null,162,220,1984,113308,14018,575,"Engine type :: Benzinovy motor | Engine code :: CHHB | Number of cylinders :: 4 | Valves per cylinder :: 4 | Fuel :: Benzín | Drive type :: predny pohon | Refueling :: Priame vstrekovanie","CHHB",null,null,null,null,null,null,null,"ŠKODA > SUPERB (3V3) > 2.0 TSI ; 3/2015 - / ; 162kW ; 220HP ; CHHB     "]
["ŠKODA","SUPERB (3V3)","1.6 TDI",null,"2015",3,null,null,88,120,1598,113310,14018,575,"Engine type :: nafta | Engine code :: DCXA, DCZA | Number of cylinders :: 4 | Valves per cylinder :: 4 | Fuel :: nafta | Drive type :: predny pohon | Refueling :: Priame vstrekovanie","DCXA","DCZA",null,null,null,null,null,null,"ŠKODA > SUPERB (3V3) > 1.6 TDI ; 3/2015 - / ; 88kW ; 120HP ; DCXA DCZA    "]
["ŠKODA","SUPERB (3V3)","2.0 TDI 4x4",null,"2015",3,null,null,140,190,1968,113313,14018,575,"Engine type :: nafta | Engine code :: DDAA, DFCA | Number of cylinders :: 4 | Valves per cylinder :: 4 | Fuel :: nafta | Drive type :: pohon vsetkych kolies | Refueling :: Priame vstrekovanie","DDAA","DFCA",null,null,null,null,null,null,"ŠKODA > SUPERB (3V3) > 2.0 TDI 4x4 ; 3/2015 - / ; 140kW ; 190HP ; DDAA DFCA    "]
["ŠKODA","OCTAVIA (5E3)","1.2 TSI",null,"2015",5,null,null,81,110,1197,115152,11195,575,"Engine type :: Benzinovy motor | Engine code :: CYVB | Number of cylinders :: 4 | Valves per cylinder :: 4 | Fuel :: Benzín | Drive type :: predny pohon | Refueling :: Priame vstrekovanie","CYVB",null,null,null,null,null,null,null,"ŠKODA > OCTAVIA (5E3) > 1.2 TSI ; 5/2015 - / ; 81kW ; 110HP ; CYVB     "]
["ŠKODA","OCTAVIA Combi (5E5)","1.2 TSI",null,"2015",5,null,null,81,110,1197,115154,11196,575,"Engine type :: Benzinovy motor | Engine code :: CYVB | Number of cylinders :: 4 | Valves per cylinder :: 4 | Fuel :: Benzín | Drive type :: predny pohon | Refueling :: Priame vstrekovanie","CYVB",null,null,null,null,null,null,null,"ŠKODA > OCTAVIA Combi (5E5) > 1.2 TSI ; 5/2015 - / ; 81kW ; 110HP ; CYVB     "]
["ŠKODA","OCTAVIA (5E3)","1.4 TSI",null,"2014",8,null,null,110,150,1395,115156,11195,575,"Engine type :: Benzinovy motor | Engine code :: CHPB, CZDA | Number of cylinders :: 4 | Valves per cylinder :: 4 | Fuel :: Benzín | Drive type :: predny pohon | Refueling :: Priame vstrekovanie","CHPB","CZDA",null,null,null,null,null,null,"ŠKODA > OCTAVIA (5E3) > 1.4 TSI ; 8/2014 - / ; 110kW ; 150HP ; CHPB CZDA    "]
["ŠKODA","OCTAVIA Combi (5E5)","1.4 TSI",null,"2014",8,null,null,110,150,1395,115158,11196,575,"Engine type :: Benzinovy motor | Engine code :: CHPB, CZDA | Number of cylinders :: 4 | Valves per cylinder :: 4 | Fuel :: Benzín | Drive type :: predny pohon | Refueling :: Priame vstrekovanie","CHPB","CZDA",null,null,null,null,null,null,"ŠKODA > OCTAVIA Combi (5E5) > 1.4 TSI ; 8/2014 - / ; 110kW ; 150HP ; CHPB CZDA    "]
["ŠKODA","OCTAVIA (5E3)","2.0 TSI RS",null,"2015",5,null,null,169,230,1984,115160,11195,575,"Engine type :: Benzinovy motor | Engine code :: CHHA | Number of cylinders :: 4 | Valves per cylinder :: 4 | Fuel :: Benzín | Drive type :: predny pohon | Refueling :: Priame vstrekovanie","CHHA",null,null,null,null,null,null,null,"ŠKODA > OCTAVIA (5E3) > 2.0 TSI RS ; 5/2015 - / ; 169kW ; 230HP ; CHHA     "]
["ŠKODA","OCTAVIA Combi (5E5)","2.0 TSI RS",null,"2015",5,null,null,169,230,1984,115161,11196,575,"Engine type :: Benzinovy motor | Engine code :: CHHA | Number of cylinders :: 4 | Valves per cylinder :: 4 | Fuel :: Benzín | Drive type :: predny pohon | Refueling :: Priame vstrekovanie","CHHA",null,null,null,null,null,null,null,"ŠKODA > OCTAVIA Combi (5E5) > 2.0 TSI RS ; 5/2015 - / ; 169kW ; 230HP ; CHHA     "]
["ŠKODA","SUPERB Kombi (3V5)","1.4 TSI",null,"2015",3,null,null,92,125,1395,115163,14382,575,"Engine type :: Benzinovy motor | Engine code :: CZCA | Number of cylinders :: 4 | Valves per cylinder :: 4 | Fuel :: Benzín | Drive type :: predny pohon | Refueling :: Priame vstrekovanie","CZCA",null,null,null,null,null,null,null,"ŠKODA > SUPERB Kombi (3V5) > 1.4 TSI ; 3/2015 - / ; 92kW ; 125HP ; CZCA     "]
["ŠKODA","SUPERB Kombi (3V5)","1.4 TSI",null,"2015",3,null,null,110,150,1395,115164,14382,575,"Engine type :: Benzinovy motor | Engine code :: CZDA, CZEA | Number of cylinders :: 4 | Valves per cylinder :: 4 | Fuel :: Benzín | Drive type :: predny pohon | Refueling :: Priame vstrekovanie","CZDA","CZEA",null,null,null,null,null,null,"ŠKODA > SUPERB Kombi (3V5) > 1.4 TSI ; 3/2015 - / ; 110kW ; 150HP ; CZDA CZEA    "]
["ŠKODA","SUPERB Kombi (3V5)","2.0 TSI",null,"2015",3,null,null,162,220,1984,115165,14382,575,"Engine type :: Benzinovy motor | Engine code :: CHHB | Number of cylinders :: 4 | Valves per cylinder :: 4 | Fuel :: Benzín | Drive type :: predny pohon | Refueling :: Priame vstrekovanie","CHHB",null,null,null,null,null,null,null,"ŠKODA > SUPERB Kombi (3V5) > 2.0 TSI ; 3/2015 - / ; 162kW ; 220HP ; CHHB     "]
["ŠKODA","SUPERB Kombi (3V5)","1.6 TDI",null,"2015",3,null,null,88,120,1598,115166,14382,575,"Engine type :: nafta | Engine code :: DCXA, DCZA | Number of cylinders :: 4 | Valves per cylinder :: 4 | Fuel :: nafta | Drive type :: predny pohon | Refueling :: Priame vstrekovanie","DCXA","DCZA",null,null,null,null,null,null,"ŠKODA > SUPERB Kombi (3V5) > 1.6 TDI ; 3/2015 - / ; 88kW ; 120HP ; DCXA DCZA    "]
["ŠKODA","SUPERB Kombi (3V5)","2.0 TDI",null,"2015",3,null,null,110,150,1968,115167,14382,575,"Engine type :: nafta | Engine code :: CRLB, DFEA | Number of cylinders :: 4 | Valves per cylinder :: 4 | Fuel :: nafta | Drive type :: predny pohon | Refueling :: Priame vstrekovanie","CRLB","DFEA",null,null,null,null,null,null,"ŠKODA > SUPERB Kombi (3V5) > 2.0 TDI ; 3/2015 - / ; 110kW ; 150HP ; CRLB DFEA    "]
["ŠKODA","SUPERB Kombi (3V5)","2.0 TDI",null,"2015",3,null,null,140,190,1968,115168,14382,575,"Engine type :: nafta | Engine code :: DDAA, DFCA | Number of cylinders :: 4 | Valves per cylinder :: 4 | Fuel :: nafta | Drive type :: predny pohon | Refueling :: Priame vstrekovanie","DDAA","DFCA",null,null,null,null,null,null,"ŠKODA > SUPERB Kombi (3V5) > 2.0 TDI ; 3/2015 - / ; 140kW ; 190HP ; DDAA DFCA    "]
["ŠKODA","SUPERB Kombi (3V5)","2.0 TDI 4x4",null,"2015",3,null,null,140,190,1968,115169,14382,575,"Engine type :: nafta | Engine code :: DDAA, DFCA | Number of cylinders :: 4 | Valves per cylinder :: 4 | Fuel :: nafta | Drive type :: pohon vsetkych kolies | Refueling :: Priame vstrekovanie","DDAA","DFCA",null,null,null,null,null,null,"ŠKODA > SUPERB Kombi (3V5) > 2.0 TDI 4x4 ; 3/2015 - / ; 140kW ; 190HP ; DDAA DFCA    "]
["ŠKODA","RAPID (NH3)","1.2 TSI",null,"2015",5,null,null,66,90,1197,115178,10587,575,"Engine type :: Benzinovy motor | Engine code :: CJZC | Number of cylinders :: 4 | Valves per cylinder :: 4 | Fuel :: Benzín | Drive type :: predny pohon | Refueling :: Priame vstrekovanie","CJZC",null,null,null,null,null,null,null,"ŠKODA > RAPID (NH3) > 1.2 TSI ; 5/2015 - / ; 66kW ; 90HP ; CJZC     "]
["ŠKODA","RAPID (NH3)","1.2 TSI",null,"2015",5,null,null,81,110,1197,115179,10587,575,"Engine type :: Benzinovy motor | Engine code :: CJZD | Number of cylinders :: 4 | Valves per cylinder :: 4 | Fuel :: Benzín | Drive type :: predny pohon | Refueling :: Priame vstrekovanie","CJZD",null,null,null,null,null,null,null,"ŠKODA > RAPID (NH3) > 1.2 TSI ; 5/2015 - / ; 81kW ; 110HP ; CJZD     "]
["ŠKODA","RAPID (NH3)","1.4 TSI",null,"2015",5,null,null,92,125,1395,115180,10587,575,"Engine type :: Benzinovy motor | Engine code :: CZCA | Number of cylinders :: 4 | Valves per cylinder :: 4 | Fuel :: Benzín | Drive type :: predny pohon | Refueling :: Priame vstrekovanie","CZCA",null,null,null,null,null,null,null,"ŠKODA > RAPID (NH3) > 1.4 TSI ; 5/2015 - / ; 92kW ; 125HP ; CZCA     "]
["ŠKODA","RAPID (NH3)","1.4 TDI",null,"2015",5,null,null,66,90,1422,115181,10587,575,"Engine type :: nafta | Engine code :: CUSB | Number of cylinders :: 3 | Valves per cylinder :: 4 | Fuel :: nafta | Drive type :: predny pohon | Refueling :: Priame vstrekovanie","CUSB",null,null,null,null,null,null,null,"ŠKODA > RAPID (NH3) > 1.4 TDI ; 5/2015 - / ; 66kW ; 90HP ; CUSB     "]
["ŠKODA","RAPID Spaceback (NH1)","1.2 TSI",null,"2015",5,null,null,66,90,1197,115182,11519,575,"Engine type :: Benzinovy motor | Engine code :: CJZC | Number of cylinders :: 4 | Valves per cylinder :: 4 | Fuel :: Benzín | Drive type :: predny pohon | Refueling :: Priame vstrekovanie","CJZC",null,null,null,null,null,null,null,"ŠKODA > RAPID Spaceback (NH1) > 1.2 TSI ; 5/2015 - / ; 66kW ; 90HP ; CJZC     "]
["ŠKODA","RAPID Spaceback (NH1)","1.2 TSI",null,"2015",5,null,null,81,110,1197,115183,11519,575,"Engine type :: Benzinovy motor | Engine code :: CJZD | Number of cylinders :: 4 | Valves per cylinder :: 4 | Fuel :: Benzín | Drive type :: predny pohon | Refueling :: Priame vstrekovanie","CJZD",null,null,null,null,null,null,null,"ŠKODA > RAPID Spaceback (NH1) > 1.2 TSI ; 5/2015 - / ; 81kW ; 110HP ; CJZD     "]
["ŠKODA","RAPID Spaceback (NH1)","1.4 TSI",null,"2015",5,null,null,92,125,1395,115184,11519,575,"Engine type :: Benzinovy motor | Engine code :: CZCA | Number of cylinders :: 4 | Valves per cylinder :: 4 | Fuel :: Benzín | Drive type :: predny pohon | Refueling :: Priame vstrekovanie","CZCA",null,null,null,null,null,null,null,"ŠKODA > RAPID Spaceback (NH1) > 1.4 TSI ; 5/2015 - / ; 92kW ; 125HP ; CZCA     "]
["ŠKODA","RAPID Spaceback (NH1)","1.4 TDI",null,"2015",5,null,null,66,90,1422,115185,11519,575,"Engine type :: nafta | Engine code :: CUSB | Number of cylinders :: 3 | Valves per cylinder :: 4 | Fuel :: nafta | Drive type :: predny pohon | Refueling :: Priame vstrekovanie","CUSB",null,null,null,null,null,null,null,"ŠKODA > RAPID Spaceback (NH1) > 1.4 TDI ; 5/2015 - / ; 66kW ; 90HP ; CUSB     "]
["ŠKODA","RAPID (NH3)","1.6 TDI",null,"2015",5,null,null,85,115,1598,115186,10587,575,"Engine type :: nafta | Engine code :: CXMA | Number of cylinders :: 4 | Valves per cylinder :: 4 | Fuel :: nafta | Drive type :: predny pohon | Refueling :: Priame vstrekovanie","CXMA",null,null,null,null,null,null,null,"ŠKODA > RAPID (NH3) > 1.6 TDI ; 5/2015 - / ; 85kW ; 115HP ; CXMA     "]
["ŠKODA","RAPID Spaceback (NH1)","1.6 TDI",null,"2015",5,null,null,85,115,1598,115187,11519,575,"Engine type :: nafta | Engine code :: CXMA | Number of cylinders :: 4 | Valves per cylinder :: 4 | Fuel :: nafta | Drive type :: predny pohon | Refueling :: Priame vstrekovanie","CXMA",null,null,null,null,null,null,null,"ŠKODA > RAPID Spaceback (NH1) > 1.6 TDI ; 5/2015 - / ; 85kW ; 115HP ; CXMA     "]
["ŠKODA","YETI (5L)","1.2 TSI",null,"2015",5,null,null,81,110,1197,115188,8486,575,"Engine type :: Benzinovy motor | Engine code :: CYVB | Number of cylinders :: 4 | Valves per cylinder :: 4 | Fuel :: Benzín | Drive type :: predny pohon | Refueling :: Priame vstrekovanie","CYVB",null,null,null,null,null,null,null,"ŠKODA > YETI (5L) > 1.2 TSI ; 5/2015 - / ; 81kW ; 110HP ; CYVB     "]
["ŠKODA","YETI (5L)","1.4 TSI",null,"2015",5,null,null,92,125,1395,115189,8486,575,"Engine type :: Benzinovy motor | Engine code :: CZCA | Number of cylinders :: 4 | Valves per cylinder :: 4 | Fuel :: Benzín | Drive type :: predny pohon | Refueling :: Priame vstrekovanie","CZCA",null,null,null,null,null,null,null,"ŠKODA > YETI (5L) > 1.4 TSI ; 5/2015 - / ; 92kW ; 125HP ; CZCA     "]
["ŠKODA","YETI (5L)","1.4 TSI 4x4",null,"2015",5,null,null,110,150,1395,115190,8486,575,"Engine type :: Benzinovy motor | Engine code :: CZDA | Number of cylinders :: 4 | Valves per cylinder :: 4 | Fuel :: Benzín | Drive type :: pohon vsetkych kolies | Refueling :: Priame vstrekovanie","CZDA",null,null,null,null,null,null,null,"ŠKODA > YETI (5L) > 1.4 TSI 4x4 ; 5/2015 - / ; 110kW ; 150HP ; CZDA     "]
["ŠKODA","YETI (5L)","2.0 TDI",null,"2015",5,null,null,110,150,1968,115191,8486,575,"Engine type :: nafta | Engine code :: CUUB | Number of cylinders :: 4 | Valves per cylinder :: 4 | Fuel :: nafta | Drive type :: predny pohon | Refueling :: Priame vstrekovanie","CUUB",null,null,null,null,null,null,null,"ŠKODA > YETI (5L) > 2.0 TDI ; 5/2015 - / ; 110kW ; 150HP ; CUUB     "]
["ŠKODA","YETI (5L)","2.0 TDI 4x4",null,"2015",5,null,null,110,150,1968,115192,8486,575,"Engine type :: nafta | Engine code :: CUUB | Number of cylinders :: 4 | Valves per cylinder :: 4 | Fuel :: nafta | Drive type :: pohon vsetkych kolies | Refueling :: Priame vstrekovanie","CUUB",null,null,null,null,null,null,null,"ŠKODA > YETI (5L) > 2.0 TDI 4x4 ; 5/2015 - / ; 110kW ; 150HP ; CUUB     "]
["ŠKODA","OCTAVIA (5E3)","1.6 TDI 4x4",null,"2015",5,null,null,81,110,1598,115209,11195,575,"Engine type :: nafta | Engine code :: CXXB | Number of cylinders :: 4 | Valves per cylinder :: 4 | Fuel :: nafta | Drive type :: pohon vsetkych kolies | Refueling :: Priame vstrekovanie","CXXB",null,null,null,null,null,null,null,"ŠKODA > OCTAVIA (5E3) > 1.6 TDI 4x4 ; 5/2015 - / ; 81kW ; 110HP ; CXXB     "]
["ŠKODA","OCTAVIA Combi (5E5)","1.6 TDI 4x4",null,"2015",5,null,null,81,110,1598,115210,11196,575,"Engine type :: nafta | Engine code :: CXXB | Number of cylinders :: 4 | Valves per cylinder :: 4 | Fuel :: nafta | Drive type :: pohon vsetkych kolies | Refueling :: Priame vstrekovanie","CXXB",null,null,null,null,null,null,null,"ŠKODA > OCTAVIA Combi (5E5) > 1.6 TDI 4x4 ; 5/2015 - / ; 81kW ; 110HP ; CXXB     "]
["ŠKODA","SUPERB Kombi (3V5)","1.4 TSI 4x4",null,"2015",3,null,null,110,150,1395,115232,14382,575,"Engine type :: Benzinovy motor | Engine code :: CZDA, CZEA | Number of cylinders :: 4 | Valves per cylinder :: 4 | Fuel :: Benzín | Drive type :: pohon vsetkych kolies | Refueling :: Priame vstrekovanie","CZDA","CZEA",null,null,null,null,null,null,"ŠKODA > SUPERB Kombi (3V5) > 1.4 TSI 4x4 ; 3/2015 - / ; 110kW ; 150HP ; CZDA CZEA    "]
["ŠKODA","SUPERB (3V3)","1.4 TSI 4x4",null,"2015",3,null,null,110,150,1395,115233,14018,575,"Engine type :: Benzinovy motor | Engine code :: CZDA, CZEA | Number of cylinders :: 4 | Valves per cylinder :: 4 | Fuel :: Benzín | Drive type :: pohon vsetkych kolies | Refueling :: Priame vstrekovanie","CZDA","CZEA",null,null,null,null,null,null,"ŠKODA > SUPERB (3V3) > 1.4 TSI 4x4 ; 3/2015 - / ; 110kW ; 150HP ; CZDA CZEA    "]
["ŠKODA","SUPERB (3V3)","1.8 TSI",null,"2015",3,null,null,132,180,1798,115235,14018,575,"Engine type :: Benzinovy motor | Engine code :: CJSA, CJSC | Number of cylinders :: 4 | Valves per cylinder :: 4 | Fuel :: Benzín | Drive type :: predny pohon | Refueling :: Priame vstrekovanie","CJSA","CJSC",null,null,null,null,null,null,"ŠKODA > SUPERB (3V3) > 1.8 TSI ; 3/2015 - / ; 132kW ; 180HP ; CJSA CJSC    "]
["ŠKODA","SUPERB Kombi (3V5)","1.8 TSI",null,"2015",3,null,null,132,180,1798,115236,14382,575,"Engine type :: Benzinovy motor | Engine code :: CJSA, CJSC | Number of cylinders :: 4 | Valves per cylinder :: 4 | Fuel :: Benzín | Drive type :: predny pohon | Refueling :: Priame vstrekovanie","CJSA","CJSC",null,null,null,null,null,null,"ŠKODA > SUPERB Kombi (3V5) > 1.8 TSI ; 3/2015 - / ; 132kW ; 180HP ; CJSA CJSC    "]
["ŠKODA","SUPERB (3V3)","2.0 TDI 4x4",null,"2015",3,null,null,110,150,1968,115237,14018,575,"Engine type :: nafta | Engine code :: CRLB, DFEA | Number of cylinders :: 4 | Valves per cylinder :: 4 | Fuel :: nafta | Drive type :: pohon vsetkych kolies | Refueling :: Priame vstrekovanie","CRLB","DFEA",null,null,null,null,null,null,"ŠKODA > SUPERB (3V3) > 2.0 TDI 4x4 ; 3/2015 - / ; 110kW ; 150HP ; CRLB DFEA    "]
["ŠKODA","SUPERB Kombi (3V5)","2.0 TDI 4x4",null,"2015",3,null,null,110,150,1968,115238,14382,575,"Engine type :: nafta | Engine code :: CRLB, DFEA | Number of cylinders :: 4 | Valves per cylinder :: 4 | Fuel :: nafta | Drive type :: pohon vsetkych kolies | Refueling :: Priame vstrekovanie","CRLB","DFEA",null,null,null,null,null,null,"ŠKODA > SUPERB Kombi (3V5) > 2.0 TDI 4x4 ; 3/2015 - / ; 110kW ; 150HP ; CRLB DFEA    "]
["ŠKODA","SUPERB Kombi (3V5)","2.0 TSI 4x4",null,"2015",3,null,null,206,280,1984,115239,14382,575,"Engine type :: Benzinovy motor | Engine code :: CJXA | Number of cylinders :: 4 | Valves per cylinder :: 4 | Fuel :: Benzín | Drive type :: pohon vsetkych kolies | Refueling :: Priame vstrekovanie","CJXA",null,null,null,null,null,null,null,"ŠKODA > SUPERB Kombi (3V5) > 2.0 TSI 4x4 ; 3/2015 - / ; 206kW ; 280HP ; CJXA     "]
["ŠKODA","FABIA (NJ3)","1.4 TDI",null,"2015",5,null,null,55,75,1422,117784,13331,575,"Engine type :: nafta | Engine code :: CUSA | Number of cylinders :: 3 | Valves per cylinder :: 4 | Fuel :: nafta | Drive type :: predny pohon | Refueling :: Priame vstrekovanie","CUSA",null,null,null,null,null,null,null,"ŠKODA > FABIA (NJ3) > 1.4 TDI ; 5/2015 - / ; 55kW ; 75HP ; CUSA     "]
["ŠKODA","FABIA Kombi (NJ5)","1.4 TDI",null,"2015",5,null,null,55,75,1422,117785,13332,575,"Engine type :: nafta | Engine code :: CUSA | Number of cylinders :: 3 | Valves per cylinder :: 4 | Fuel :: nafta | Drive type :: predny pohon | Refueling :: Priame vstrekovanie","CUSA",null,null,null,null,null,null,null,{"$f":"CONCATENATE(A323,\" > \",B323,\" > \",C323,\" ; \", F323,\"/\",E323,\" - \",H323,\"/\",G323,\" ; \",I323,\"kW\",\" ; \",J323,\"HP\",\" ; \",P323,\" \",Q323,\" \",R323,\" \",S323,\" \",T323,\" \",U323 )","v":"ŠKODA > FABIA Kombi (NJ5) > 1.4 TDI ; 5/2015 - / ; 55kW ; 75HP ; CUSA     "}]
["ŠKODA","FABIA (NJ3)","1.6",null,"2015",1,null,null,81,110,1598,117788,13331,575,"Engine type :: Benzinovy motor | Engine code :: CWVA | Number of cylinders :: 4 | Valves per cylinder :: 4 | Fuel :: Benzín | Drive type :: predny pohon | Refueling :: vstrekovanie do sacieho potrubia/karburator","CWVA",null,null,null,null,null,null,null,"ŠKODA > FABIA (NJ3) > 1.6 ; 1/2015 - / ; 81kW ; 110HP ; CWVA     "]
["ŠKODA","FABIA Kombi (NJ5)","1.6",null,"2015",1,null,null,81,110,1598,117789,13332,575,"Engine type :: Benzinovy motor | Engine code :: CWVA | Number of cylinders :: 4 | Valves per cylinder :: 4 | Fuel :: Benzín | Drive type :: predny pohon | Refueling :: vstrekovanie do sacieho potrubia/karburator","CWVA",null,null,null,null,null,null,null,"ŠKODA > FABIA Kombi (NJ5) > 1.6 ; 1/2015 - / ; 81kW ; 110HP ; CWVA     "]
[]
[]
[]
[]
[]
[]
[null,null,null,null,null,null,null,null,null,null,null,null,null,null,null,null,null,null,null,null,null,null,null,"V tomto hárku sa má vyfiltrovať TYP podľa tých TYP1 z hárku1, ktoré sú vyfiltrované v hárku1."]
[null,null,null,null,null,null,null,null,null,null,null,null,null,null,null,null,null,null,null,null,null,null,null,"Tu opäť platí, že ak bude v hárku1 akákoľvek nezhoda medzi tými stĺpcami A,B,D,F,G,H,J,"]
[null,null,null,null,null,null,null,null,null,null,null,null,null,"tento kód spadá pod inú kombináciu kopírovaných údajov v hárku1",null,null,null,null,null,null,null,null,null,"alebo viac TYP1 čísel, nieje možné potom určiť tak jednoducho ako si predstavujete, ktoré vyfiltrované riadky patria spolu do transponovaných dát v harok3"]

{"sheet":"harok3","index":2,"n_rows":12,"n_cols":79,"rows_kept":12,"cut":false,"hidden":false,"merged":[]}
["code","pairCode","name","shortDescription","description","manufacturer","ean","defaultImage","image","image2","image3","image4","image5","defaultCategory","categoryText","categoryText2","categoryText3","categoryText4","categoryText5","categoryText6","categoryText7","categoryText8","categoryText9","categoryText10","categoryText11","categoryText12","categoryText13","categoryText14","categoryText15","categoryText16","categoryText17","categoryText18","categoryText19","categoryText20","categoryText21","categoryText22","categoryText23","categoryText24","categoryText25","categoryText26","categoryText27","categoryText28","categoryText29","categoryText30","categoryText31","categoryText32","categoryText33","categoryText34","categoryText35","categoryText36","categoryText37","categoryText38","categoryText39","categoryText40","categoryText41","categoryText42","categoryText43","categoryText44","categoryText45","categoryText46","categoryText47","categoryText48","categoryText49","categoryText50","categoryText51","categoryText52","categoryText53","categoryText54","categoryText55","categoryText56","categoryText57","categoryText58","categoryText59","categoryText60","categoryText61","categoryText62","price","purchasePrice","productVisibility"]
[272909,null," COMLINE EOF266",0,0,"COMLINE","niečo",null,null,null,null,null,null,null,"ŠKODA > CITIGO > 1.0 ; 10/2011 - / ; 44kW ; 60HP ; CHYA     ","ŠKODA > CITIGO > 1.0 ; 10/2011 - / ; 55kW ; 75HP ; CHYB     ","ŠKODA > OCTAVIA (5E3) > 1.4 TSI ; 11/2012 - / ; 103kW ; 140HP ; CHPA     ","ŠKODA > OCTAVIA (5E3) > 1.2 TSI ; 11/2012 - / ; 63kW ; 86HP ; CJZB     ","ŠKODA > OCTAVIA (5E3) > 1.2 TSI ; 11/2012 - / ; 77kW ; 105HP ; CJZA     ","ŠKODA > OCTAVIA Combi (5E5) > 1.2 TSI ; 11/2012 - / ; 63kW ; 86HP ; CJZB     ","ŠKODA > OCTAVIA Combi (5E5) > 1.2 TSI ; 11/2012 - / ; 77kW ; 105HP ; CJZA     ","ŠKODA > OCTAVIA Combi (5E5) > 1.4 TSI ; 11/2012 - / ; 103kW ; 140HP ; CHPA     "]
[272909,null," COMLINE EOF266",0,0,"COMLINE","iné",null,null,null,null,null,null,null,"ŠKODA > CITIGO > 1.0 CNG ; 11/2012 - / ; 50kW ; 68HP ; CPGA     "]
[]
[]
[]
[]
[]
[]
[]
[]
[null,null,null,null,null,null,null,null,null,null,null,null,null,null,"V tomto výsledku by to potom muselo vyzerať obdobne. V tomto modelovom príklade by jedno auto muselo ísť do ďalšieho riadku."]